Workbook

Sheet Unidades
A1: CODIGO | B1: UNIDAD
A2: 201 | B2: DIRECCIÓN ADMINISTRATIVA
A3: 202 | B3: DIRECCIÓN GENERAL DE CAMINOS
A4: 203 | B4: UNIDAD EJECUTORA DE CONSERVACIÓN VIAL -COVIAL-
A5: 204 | B5: DIRECCIÓN GENERAL DE TRANSPORTES
A6: 205 | B6: DIRECCIÓN GENERAL DE AERONÁUTICA CIVIL
A7: 206 | B7: UNIDAD DE CONSTRUCCIÓN DE EDIFICIOS DEL ESTADO -UCEE-
A8: 207 | B8: DIRECCIÓN GENERAL DE RADIODIFUSIÓN Y TELEVISIÓN NACIONAL
A9: 208 | B9: UNIDAD DE CONTROL Y SUPERVISIÓN DE CABLE -UNCOSU-
A10: 209 | B10: INSTITUTO NACIONAL DE SISMOLOGÍA, VULCANOLOGÍA, METEOROLOGÍA E HIDROLOGÍA -INSIVUMEH-
A11: 210 | B11: DIRECCIÓN GENERAL DE CORREOS Y TELÉGRAFOS
A12: 211 | B12: SUPERINTENDENCIA DE TELECOMUNICACIONES -SIT-
A13: 212 | B13: FONDO PARA EL DESARROLLO DE LA TELEFONÍA -FONDETEL-
A14: 214 | B14: UNIDAD PARA EL DESARROLLO DE VIVIENDA POPULAR -UDEVIPO-
A15: 216 | B15: DIRECCIÓN GENERAL DE PROTECCIÓN Y SEGURIDAD VIAL -PROVIAL-
A16: 217 | B16: FONDO SOCIAL DE SOLIDARIDAD
A17: 218 | B17: FONDO PARA LA VIVIENDA

Sheet Productos
C1: MINISTERIO DE COMUNICACIONES, INFRAESTRUCTURA Y VIVIENDA
C3: SEGUIMIENTO DE EJECUCIÓN FÍSICA Y FINANCIERA
C4: AÑO | D4: 2023
R6: FÍSICA | AP6: FINANCIERO
K7: FÍSICO | O7: FINANCIERO | R7: ENERO | T7: FEBRERO | V7: MARZO | X7: ABRIL | Z7: MAYO | AB7: JUNIO | AD7: JULIO | AF7: AGOSTO | AH7: SEPTIEMBRE | AJ7: OCTUBRE | AL7: NOVIEMBRE | AN7: DICIEMBRE | AP7: ENERO | AR7: FEBRERO | AT7: MARZO | AV7: ABRIL | AX7: MAYO | AZ7: JUNIO | BB7: JULIO | BD7: AGOSTO | BF7: SEPTIEMBRE | BH7: OCTUBRE | BJ7: NOVIEMBRE | BL7: DICIEMBRE
A8: CONCATENADO | C8: UNIDAD | D8: PG | E8: SP | F8: PY | G8: ACT | H8: OB | I8: PRODUCTO | J8: SUBPRODUCTO | K8: UNIDAD DE MEDIDA | L8: INICIAL | M8: VIGENTE | N8: EJECUTADO ACUMULADO | O8: INICIAL | P8: VIGENTE | Q8: EJECUTADO ACUMULADO | R8: MOD | S8: EJEC | T8: MOD | U8: EJEC | V8: MOD | W8: EJEC | X8: MOD | Y8: EJEC | Z8: MOD | AA8: EJEC | AB8: MOD | AC8: EJEC | AD8: MOD | AE8: EJEC | AF8: MOD | AG8: EJEC | AH8: MOD | AI8: EJEC | AJ8: MOD | AK8: EJEC | AL8: MOD | AM8: EJEC | AN8: MOD | AO8: EJEC | AP8: MOD | AQ8: EJEC | AR8: MOD | AS8: EJEC | AT8: MOD | AU8: EJEC | AV8: MOD | AW8: EJEC | AX8: MOD | AY8: EJEC | AZ8: MOD | BA8: EJEC | BB8: MOD | BC8: EJEC | BD8: MOD | BE8: EJEC | BF8: MOD | BG8: EJEC | BH8: MOD | BI8: EJEC | BJ8: MOD | BK8: EJEC | BL8: MOD | BM8: EJEC
A9: =CONCATENATE(C9,"-",J9) -> 201- | C9: 201 | D9: 01 | E9: 00 | F9: 000 | G9: 003 | H9: 000 | I9: 000-001 | K9: Evento | L9: =IFERROR(VLOOKUP($A9,ENEMT!$A$1:$O$1776,11,FALSE),0) -> 0 | M9: =+L9+R9+T9+V9+X9+Z9+AB9+AD9+AF9+AH9+AJ9+AL9+AN9 -> 0 | N9: =+S9+U9+W9+Y9+AA9+AC9+AE9+AG9+AI9+AK9+AM9+AO9 -> 0 | O9: =IFERROR(VLOOKUP($A9,ENEFN!$A$2:$N$1776,5,FALSE),0) -> 0 | P9: =+O9+AP9+AR9+AT9+AV9+AX9+AZ9+BB9+BD9+BF9+BH9+BJ9+BL9 -> 0 | Q9: =+AQ9+AS9+AU9+AW9+AY9+BA9+BC9+BE9+BG9+BI9+BK9+BM9 -> 0 | R9: =IFERROR(VLOOKUP($A9,ENEMT!$A$1:$O$1776,12,FALSE),0) -> 0 | S9: =IFERROR(VLOOKUP($A9,ENEMT!$A$1:$O$1776,15,FALSE),0) -> 0 | AP9: =IFERROR(VLOOKUP($A9,ENEFN!$A$1:$N$1776,6,FALSE),0) -> 0 | AQ9: =IFERROR(VLOOKUP($A9,ENEFN!$A$1:$N$1776,10,FALSE),0) -> 0
A10: =CONCATENATE(C10,"-",J10) -> 201-000-001-0001 | C10: 201 | D10: 01 | E10: 00 | F10: 000 | G10: 003 | H10: 000 | J10: 000-001-0001 | K10: Evento | L10: =IFERROR(VLOOKUP($A10,ENEMT!$A$1:$O$1776,11,FALSE),0) -> 31 | M10: =+L10+R10+T10+V10+X10+Z10+AB10+AD10+AF10+AH10+AJ10+AL10+AN10 -> 31 | N10: =+S10+U10+W10+Y10+AA10+AC10+AE10+AG10+AI10+AK10+AM10+AO10 -> 0 | O10: =IFERROR(VLOOKUP($A10,ENEFN!$A$2:$N$1776,5,FALSE),0) -> 15083171 | P10: =+O10+AP10+AR10+AT10+AV10+AX10+AZ10+BB10+BD10+BF10+BH10+BJ10+BL10 -> 15083171 | Q10: =+AQ10+AS10+AU10+AW10+AY10+BA10+BC10+BE10+BG10+BI10+BK10+BM10 -> 0 | R10: =IFERROR(VLOOKUP($A10,ENEMT!$A$1:$O$1776,12,FALSE),0) -> 0 | S10: =IFERROR(VLOOKUP($A10,ENEMT!$A$1:$O$1776,15,FALSE),0) -> 0 | AP10: =IFERROR(VLOOKUP($A10,ENEFN!$A$1:$N$1776,6,FALSE),0) -> 0 | AQ10: =IFERROR(VLOOKUP($A10,ENEFN!$A$1:$N$1776,10,FALSE),0) -> 0
A11: 201- | C11: 201 | D11: 01 | E11: 00 | F11: 000 | G11: 002 | H11: 000 | I11: 000-003 | K11: Evento | L11: =IFERROR(VLOOKUP($A11,ENEMT!$A$1:$O$1776,11,FALSE),0) -> 0 | M11: 0 | N11: 0 | O11: =IFERROR(VLOOKUP($A11,ENEFN!$A$2:$N$1776,5,FALSE),0) -> 0 | P11: 0 | Q11: 0 | R11: =IFERROR(VLOOKUP($A11,ENEMT!$A$1:$O$1776,12,FALSE),0) -> 0 | S11: =IFERROR(VLOOKUP($A11,ENEMT!$A$1:$O$1776,15,FALSE),0) -> 0 | AP11: =IFERROR(VLOOKUP($A11,ENEFN!$A$1:$N$1776,6,FALSE),0) -> 0 | AQ11: =IFERROR(VLOOKUP($A11,ENEFN!$A$1:$N$1776,10,FALSE),0) -> 0
A12: 201-000-003-0001 | C12: 201 | D12: 01 | E12: 00 | F12: 000 | G12: 002 | H12: 000 | J12: 000-003-0001 | K12: Evento | L12: =IFERROR(VLOOKUP($A12,ENEMT!$A$1:$O$1776,11,FALSE),0) -> 319 | M12: 319 | N12: 0 | O12: =IFERROR(VLOOKUP($A12,ENEFN!$A$2:$N$1776,5,FALSE),0) -> 15893462 | P12: 15893462 | Q12: 1907931.32 | R12: =IFERROR(VLOOKUP($A12,ENEMT!$A$1:$O$1776,12,FALSE),0) -> 0 | S12: =IFERROR(VLOOKUP($A12,ENEMT!$A$1:$O$1776,15,FALSE),0) -> 0 | AP12: =IFERROR(VLOOKUP($A12,ENEFN!$A$1:$N$1776,6,FALSE),0) -> 0 | AQ12: =IFERROR(VLOOKUP($A12,ENEFN!$A$1:$N$1776,10,FALSE),0) -> 1907931.32
A13: 201- | C13: 201 | D13: 99 | E13: 00 | F13: 000 | G13: 001 | H13: 000 | I13: 000-004 | K13: Aporte | L13: =IFERROR(VLOOKUP($A13,ENEMT!$A$1:$O$1776,11,FALSE),0) -> 0 | M13: 0 | N13: 0 | O13: =IFERROR(VLOOKUP($A13,ENEFN!$A$2:$N$1776,5,FALSE),0) -> 0 | P13: 0 | Q13: 0 | R13: =IFERROR(VLOOKUP($A13,ENEMT!$A$1:$O$1776,12,FALSE),0) -> 0 | S13: =IFERROR(VLOOKUP($A13,ENEMT!$A$1:$O$1776,15,FALSE),0) -> 0 | AP13: =IFERROR(VLOOKUP($A13,ENEFN!$A$1:$N$1776,6,FALSE),0) -> 0 | AQ13: =IFERROR(VLOOKUP($A13,ENEFN!$A$1:$N$1776,10,FALSE),0) -> 0
A14: 201-000-004-0001 | C14: 201 | D14: 99 | E14: 00 | F14: 000 | G14: 001 | H14: 000 | J14: 000-004-0001 | K14: Aporte | L14: =IFERROR(VLOOKUP($A14,ENEMT!$A$1:$O$1776,11,FALSE),0) -> 13 | M14: 13 | N14: 0 | O14: =IFERROR(VLOOKUP($A14,ENEFN!$A$2:$N$1776,5,FALSE),0) -> 5874520 | P14: 5874520 | Q14: 384339 | R14: =IFERROR(VLOOKUP($A14,ENEMT!$A$1:$O$1776,12,FALSE),0) -> 0 | S14: =IFERROR(VLOOKUP($A14,ENEMT!$A$1:$O$1776,15,FALSE),0) -> 0 | AP14: =IFERROR(VLOOKUP($A14,ENEFN!$A$1:$N$1776,6,FALSE),0) -> 0 | AQ14: =IFERROR(VLOOKUP($A14,ENEFN!$A$1:$N$1776,10,FALSE),0) -> 384339
A15: 201- | C15: 201 | D15: 99 | E15: 00 | F15: 000 | G15: 002 | H15: 000 | I15: 000-005 | K15: Aporte | L15: =IFERROR(VLOOKUP($A15,ENEMT!$A$1:$O$1776,11,FALSE),0) -> 0 | M15: 0 | N15: 0 | O15: =IFERROR(VLOOKUP($A15,ENEFN!$A$2:$N$1776,5,FALSE),0) -> 0 | P15: 0 | Q15: 0 | R15: =IFERROR(VLOOKUP($A15,ENEMT!$A$1:$O$1776,12,FALSE),0) -> 0 | S15: =IFERROR(VLOOKUP($A15,ENEMT!$A$1:$O$1776,15,FALSE),0) -> 0 | AP15: =IFERROR(VLOOKUP($A15,ENEFN!$A$1:$N$1776,6,FALSE),0) -> 0 | AQ15: =IFERROR(VLOOKUP($A15,ENEFN!$A$1:$N$1776,10,FALSE),0) -> 0
A16: 201-000-005-0001 | C16: 201 | D16: 99 | E16: 00 | F16: 000 | G16: 002 | H16: 000 | J16: 000-005-0001 | K16: Aporte | L16: =IFERROR(VLOOKUP($A16,ENEMT!$A$1:$O$1776,11,FALSE),0) -> 1 | M16: 1 | N16: 0 | O16: =IFERROR(VLOOKUP($A16,ENEFN!$A$2:$N$1776,5,FALSE),0) -> 55159 | P16: 55159 | Q16: 54464.94 | R16: =IFERROR(VLOOKUP($A16,ENEMT!$A$1:$O$1776,12,FALSE),0) -> 0 | S16: =IFERROR(VLOOKUP($A16,ENEMT!$A$1:$O$1776,15,FALSE),0) -> 0 | AP16: =IFERROR(VLOOKUP($A16,ENEFN!$A$1:$N$1776,6,FALSE),0) -> 0 | AQ16: =IFERROR(VLOOKUP($A16,ENEFN!$A$1:$N$1776,10,FALSE),0) -> 54464.94
A17: 201- | C17: 201 | D17: 99 | E17: 00 | F17: 000 | G17: 003 | H17: 000 | I17: 000-006 | K17: Aporte | L17: =IFERROR(VLOOKUP($A17,ENEMT!$A$1:$O$1776,11,FALSE),0) -> 0 | M17: 0 | N17: 0 | O17: =IFERROR(VLOOKUP($A17,ENEFN!$A$2:$N$1776,5,FALSE),0) -> 0 | P17: 0 | Q17: 0 | R17: =IFERROR(VLOOKUP($A17,ENEMT!$A$1:$O$1776,12,FALSE),0) -> 0 | S17: =IFERROR(VLOOKUP($A17,ENEMT!$A$1:$O$1776,15,FALSE),0) -> 0 | AP17: =IFERROR(VLOOKUP($A17,ENEFN!$A$1:$N$1776,6,FALSE),0) -> 0 | AQ17: =IFERROR(VLOOKUP($A17,ENEFN!$A$1:$N$1776,10,FALSE),0) -> 0
A18: 201-000-006-0001 | C18: 201 | D18: 99 | E18: 00 | F18: 000 | G18: 003 | H18: 000 | J18: 000-006-0001 | K18: Aporte | L18: =IFERROR(VLOOKUP($A18,ENEMT!$A$1:$O$1776,11,FALSE),0) -> 1 | M18: 1 | N18: 0 | O18: =IFERROR(VLOOKUP($A18,ENEFN!$A$2:$N$1776,5,FALSE),0) -> 400000 | P18: 400000 | Q18: 0 | R18: =IFERROR(VLOOKUP($A18,ENEMT!$A$1:$O$1776,12,FALSE),0) -> 0 | S18: =IFERROR(VLOOKUP($A18,ENEMT!$A$1:$O$1776,15,FALSE),0) -> 0 | AP18: =IFERROR(VLOOKUP($A18,ENEFN!$A$1:$N$1776,6,FALSE),0) -> 0 | AQ18: =IFERROR(VLOOKUP($A18,ENEFN!$A$1:$N$1776,10,FALSE),0) -> 0
A19: 201- | C19: 201 | D19: 01 | E19: 00 | F19: 000 | G19: 001 | H19: 000 | I19: 000-009 | K19: Evento | L19: =IFERROR(VLOOKUP($A19,ENEMT!$A$1:$O$1776,11,FALSE),0) -> 0 | M19: 0 | N19: 0 | O19: =IFERROR(VLOOKUP($A19,ENEFN!$A$2:$N$1776,5,FALSE),0) -> 0 | P19: 0 | Q19: 0 | R19: =IFERROR(VLOOKUP($A19,ENEMT!$A$1:$O$1776,12,FALSE),0) -> 0 | S19: =IFERROR(VLOOKUP($A19,ENEMT!$A$1:$O$1776,15,FALSE),0) -> 0 | AP19: =IFERROR(VLOOKUP($A19,ENEFN!$A$1:$N$1776,6,FALSE),0) -> 0 | AQ19: =IFERROR(VLOOKUP($A19,ENEFN!$A$1:$N$1776,10,FALSE),0) -> 0
A20: 201-000-009-0001 | C20: 201 | D20: 01 | E20: 00 | F20: 000 | G20: 001 | H20: 000 | J20: 000-009-0001 | K20: Evento | L20: =IFERROR(VLOOKUP($A20,ENEMT!$A$1:$O$1776,11,FALSE),0) -> 216 | M20: 227 | N20: 0 | O20: =IFERROR(VLOOKUP($A20,ENEFN!$A$2:$N$1776,5,FALSE),0) -> 25693688 | P20: 25693688 | Q20: 0 | R20: =IFERROR(VLOOKUP($A20,ENEMT!$A$1:$O$1776,12,FALSE),0) -> 11 | S20: =IFERROR(VLOOKUP($A20,ENEMT!$A$1:$O$1776,15,FALSE),0) -> 0 | AP20: =IFERROR(VLOOKUP($A20,ENEFN!$A$1:$N$1776,6,FALSE),0) -> 0 | AQ20: =IFERROR(VLOOKUP($A20,ENEFN!$A$1:$N$1776,10,FALSE),0) -> 0
A21: 202- | C21: 202 | D21: 11 | E21: 00 | F21: 000 | G21: 001 | H21: 000 | I21: 017-003 | K21: Evento | L21: =IFERROR(VLOOKUP($A21,ENEMT!$A$1:$O$1776,11,FALSE),0) -> 0 | M21: 0 | N21: 0 | O21: =IFERROR(VLOOKUP($A21,ENEFN!$A$2:$N$1776,5,FALSE),0) -> 0 | P21: 0 | Q21: 0 | R21: =IFERROR(VLOOKUP($A21,ENEMT!$A$1:$O$1776,12,FALSE),0) -> 0 | S21: =IFERROR(VLOOKUP($A21,ENEMT!$A$1:$O$1776,15,FALSE),0) -> 0 | AP21: =IFERROR(VLOOKUP($A21,ENEFN!$A$1:$N$1776,6,FALSE),0) -> 0 | AQ21: =IFERROR(VLOOKUP($A21,ENEFN!$A$1:$N$1776,10,FALSE),0) -> 0
A22: 202-017-003-0001 | C22: 202 | D22: 11 | E22: 00 | F22: 000 | G22: 001 | H22: 000 | J22: 017-003-0001 | K22: Evento | L22: =IFERROR(VLOOKUP($A22,ENEMT!$A$1:$O$1776,11,FALSE),0) -> 472 | M22: 472 | N22: 0 | O22: =IFERROR(VLOOKUP($A22,ENEFN!$A$2:$N$1776,5,FALSE),0) -> 89558631 | P22: 89558631 | Q22: 778525.64 | R22: =IFERROR(VLOOKUP($A22,ENEMT!$A$1:$O$1776,12,FALSE),0) -> 0 | S22: =IFERROR(VLOOKUP($A22,ENEMT!$A$1:$O$1776,15,FALSE),0) -> 0 | AP22: =IFERROR(VLOOKUP($A22,ENEFN!$A$1:$N$1776,6,FALSE),0) -> 0 | AQ22: =IFERROR(VLOOKUP($A22,ENEFN!$A$1:$N$1776,10,FALSE),0) -> 778525.64
A23: 202- | C23: 202 | D23: 11 | E23: 00 | F23: 000 | G23: 002 | H23: 000 | I23: 017-005 | K23: Kilómetro | L23: =IFERROR(VLOOKUP($A23,ENEMT!$A$1:$O$1776,11,FALSE),0) -> 0 | M23: 0 | N23: 0 | O23: =IFERROR(VLOOKUP($A23,ENEFN!$A$2:$N$1776,5,FALSE),0) -> 0 | P23: 0 | Q23: 0 | R23: =IFERROR(VLOOKUP($A23,ENEMT!$A$1:$O$1776,12,FALSE),0) -> 0 | S23: =IFERROR(VLOOKUP($A23,ENEMT!$A$1:$O$1776,15,FALSE),0) -> 0 | AP23: =IFERROR(VLOOKUP($A23,ENEFN!$A$1:$N$1776,6,FALSE),0) -> 0 | AQ23: =IFERROR(VLOOKUP($A23,ENEFN!$A$1:$N$1776,10,FALSE),0) -> 0
A24: 202-017-005-0001 | C24: 202 | D24: 11 | E24: 00 | F24: 000 | G24: 002 | H24: 000 | J24: 017-005-0001 | K24: Kilómetro | L24: =IFERROR(VLOOKUP($A24,ENEMT!$A$1:$O$1776,11,FALSE),0) -> 2657 | M24: 2657 | N24: 0 | O24: =IFERROR(VLOOKUP($A24,ENEFN!$A$2:$N$1776,5,FALSE),0) -> 201689369 | P24: 201689369 | Q24: 2822.84 | R24: =IFERROR(VLOOKUP($A24,ENEMT!$A$1:$O$1776,12,FALSE),0) -> 0 | S24: =IFERROR(VLOOKUP($A24,ENEMT!$A$1:$O$1776,15,FALSE),0) -> 0 | AP24: =IFERROR(VLOOKUP($A24,ENEFN!$A$1:$N$1776,6,FALSE),0) -> 0 | AQ24: =IFERROR(VLOOKUP($A24,ENEFN!$A$1:$N$1776,10,FALSE),0) -> 2822.84
A25: 202- | C25: 202 | D25: 11 | E25: 03 | F25: 000 | G25: 001 | H25: 000 | I25: 017-008 | K25: Kilómetro | L25: =IFERROR(VLOOKUP($A25,ENEMT!$A$1:$O$1776,11,FALSE),0) -> 0 | M25: 0 | N25: 0 | O25: =IFERROR(VLOOKUP($A25,ENEFN!$A$2:$N$1776,5,FALSE),0) -> 0 | P25: 0 | Q25: 0 | R25: =IFERROR(VLOOKUP($A25,ENEMT!$A$1:$O$1776,12,FALSE),0) -> 0 | S25: =IFERROR(VLOOKUP($A25,ENEMT!$A$1:$O$1776,15,FALSE),0) -> 0 | AP25: =IFERROR(VLOOKUP($A25,ENEFN!$A$1:$N$1776,6,FALSE),0) -> 0 | AQ25: =IFERROR(VLOOKUP($A25,ENEFN!$A$1:$N$1776,10,FALSE),0) -> 0
A26: 202-017-008-0001 | C26: 202 | D26: 11 | E26: 03 | F26: 000 | G26: 001 | H26: 000 | J26: 017-008-0001 | K26: Kilómetro | L26: =IFERROR(VLOOKUP($A26,ENEMT!$A$1:$O$1776,11,FALSE),0) -> 82 | M26: 82 | N26: 0 | O26: =IFERROR(VLOOKUP($A26,ENEFN!$A$2:$N$1776,5,FALSE),0) -> 311854271 | P26: 311854271 | Q26: 0 | R26: =IFERROR(VLOOKUP($A26,ENEMT!$A$1:$O$1776,12,FALSE),0) -> 0 | S26: =IFERROR(VLOOKUP($A26,ENEMT!$A$1:$O$1776,15,FALSE),0) -> 0 | AP26: =IFERROR(VLOOKUP($A26,ENEFN!$A$1:$N$1776,6,FALSE),0) -> 0 | AQ26: =IFERROR(VLOOKUP($A26,ENEFN!$A$1:$N$1776,10,FALSE),0) -> 0
A27: 203- | C27: 203 | D27: 11 | E27: 01 | F27: 000 | G27: 001 | H27: 000 | I27: 017-001 | K27: Documento | L27: =IFERROR(VLOOKUP($A27,ENEMT!$A$1:$O$1776,11,FALSE),0) -> 0 | M27: 0 | N27: 0 | O27: =IFERROR(VLOOKUP($A27,ENEFN!$A$2:$N$1776,5,FALSE),0) -> 0 | P27: 0 | Q27: 0 | R27: =IFERROR(VLOOKUP($A27,ENEMT!$A$1:$O$1776,12,FALSE),0) -> 0 | S27: =IFERROR(VLOOKUP($A27,ENEMT!$A$1:$O$1776,15,FALSE),0) -> 0 | AP27: =IFERROR(VLOOKUP($A27,ENEFN!$A$1:$N$1776,6,FALSE),0) -> 0 | AQ27: =IFERROR(VLOOKUP($A27,ENEFN!$A$1:$N$1776,10,FALSE),0) -> 0
A28: 203-017-001-0003 | C28: 203 | D28: 11 | E28: 01 | F28: 000 | G28: 001 | H28: 000 | J28: 017-001-0003 | K28: Documento | L28: =IFERROR(VLOOKUP($A28,ENEMT!$A$1:$O$1776,11,FALSE),0) -> 11 | M28: 11 | N28: 0 | O28: =IFERROR(VLOOKUP($A28,ENEFN!$A$2:$N$1776,5,FALSE),0) -> 5240000 | P28: 5240000 | Q28: 0 | R28: =IFERROR(VLOOKUP($A28,ENEMT!$A$1:$O$1776,12,FALSE),0) -> 0 | S28: =IFERROR(VLOOKUP($A28,ENEMT!$A$1:$O$1776,15,FALSE),0) -> 0 | AP28: =IFERROR(VLOOKUP($A28,ENEFN!$A$1:$N$1776,6,FALSE),0) -> 0 | AQ28: =IFERROR(VLOOKUP($A28,ENEFN!$A$1:$N$1776,10,FALSE),0) -> 0
A29: 203- | C29: 203 | D29: 11 | E29: 01 | F29: 000 | G29: 002 | H29: 000 | I29: 017-002 | K29: Kilómetro | L29: =IFERROR(VLOOKUP($A29,ENEMT!$A$1:$O$1776,11,FALSE),0) -> 0 | M29: 0 | N29: 0 | O29: =IFERROR(VLOOKUP($A29,ENEFN!$A$2:$N$1776,5,FALSE),0) -> 0 | P29: 0 | Q29: 0 | R29: =IFERROR(VLOOKUP($A29,ENEMT!$A$1:$O$1776,12,FALSE),0) -> 0 | S29: =IFERROR(VLOOKUP($A29,ENEMT!$A$1:$O$1776,15,FALSE),0) -> 0 | AP29: =IFERROR(VLOOKUP($A29,ENEFN!$A$1:$N$1776,6,FALSE),0) -> 0 | AQ29: =IFERROR(VLOOKUP($A29,ENEFN!$A$1:$N$1776,10,FALSE),0) -> 0
A30: 203-017-002-0001 | C30: 203 | D30: 11 | E30: 01 | F30: 000 | G30: 002 | H30: 000 | J30: 017-002-0001 | K30: Kilómetro | L30: =IFERROR(VLOOKUP($A30,ENEMT!$A$1:$O$1776,11,FALSE),0) -> 6453 | M30: 6453 | N30: 0 | O30: =IFERROR(VLOOKUP($A30,ENEFN!$A$2:$N$1776,5,FALSE),0) -> 793952274 | P30: 793952274 | Q30: 0 | R30: =IFERROR(VLOOKUP($A30,ENEMT!$A$1:$O$1776,12,FALSE),0) -> 0 | S30: =IFERROR(VLOOKUP($A30,ENEMT!$A$1:$O$1776,15,FALSE),0) -> 0 | AP30: =IFERROR(VLOOKUP($A30,ENEFN!$A$1:$N$1776,6,FALSE),0) -> 0 | AQ30: =IFERROR(VLOOKUP($A30,ENEFN!$A$1:$N$1776,10,FALSE),0) -> 0
A31: 203- | C31: 203 | D31: 11 | E31: 00 | F31: 000 | G31: 001 | H31: 000 | I31: 017-003 | K31: Evento | L31: =IFERROR(VLOOKUP($A31,ENEMT!$A$1:$O$1776,11,FALSE),0) -> 0 | M31: 0 | N31: 0 | O31: =IFERROR(VLOOKUP($A31,ENEFN!$A$2:$N$1776,5,FALSE),0) -> 0 | P31: 0 | Q31: 0 | R31: =IFERROR(VLOOKUP($A31,ENEMT!$A$1:$O$1776,12,FALSE),0) -> 0 | S31: =IFERROR(VLOOKUP($A31,ENEMT!$A$1:$O$1776,15,FALSE),0) -> 0 | AP31: =IFERROR(VLOOKUP($A31,ENEFN!$A$1:$N$1776,6,FALSE),0) -> 0 | AQ31: =IFERROR(VLOOKUP($A31,ENEFN!$A$1:$N$1776,10,FALSE),0) -> 0
A32: 203-017-003-0001 | C32: 203 | D32: 11 | E32: 00 | F32: 000 | G32: 001 | H32: 000 | J32: 017-003-0001 | K32: Evento | L32: =IFERROR(VLOOKUP($A32,ENEMT!$A$1:$O$1776,11,FALSE),0) -> 120 | M32: 120 | N32: 0 | O32: =IFERROR(VLOOKUP($A32,ENEFN!$A$2:$N$1776,5,FALSE),0) -> 27407860 | P32: 27407860 | Q32: 0 | R32: =IFERROR(VLOOKUP($A32,ENEMT!$A$1:$O$1776,12,FALSE),0) -> 0 | S32: =IFERROR(VLOOKUP($A32,ENEMT!$A$1:$O$1776,15,FALSE),0) -> 0 | AP32: =IFERROR(VLOOKUP($A32,ENEFN!$A$1:$N$1776,6,FALSE),0) -> 0 | AQ32: =IFERROR(VLOOKUP($A32,ENEFN!$A$1:$N$1776,10,FALSE),0) -> 0
A33: 203- | C33: 203 | D33: 11 | E33: 02 | F33: 000 | G33: 001 | H33: 000 | I33: 017-006 | K33: Documento | L33: =IFERROR(VLOOKUP($A33,ENEMT!$A$1:$O$1776,11,FALSE),0) -> 0 | M33: 0 | N33: 0 | O33: =IFERROR(VLOOKUP($A33,ENEFN!$A$2:$N$1776,5,FALSE),0) -> 0 | P33: 0 | Q33: 0 | R33: =IFERROR(VLOOKUP($A33,ENEMT!$A$1:$O$1776,12,FALSE),0) -> 0 | S33: =IFERROR(VLOOKUP($A33,ENEMT!$A$1:$O$1776,15,FALSE),0) -> 0 | AP33: =IFERROR(VLOOKUP($A33,ENEFN!$A$1:$N$1776,6,FALSE),0) -> 0 | AQ33: =IFERROR(VLOOKUP($A33,ENEFN!$A$1:$N$1776,10,FALSE),0) -> 0
A34: 203-017-006-0002 | C34: 203 | D34: 11 | E34: 02 | F34: 000 | G34: 001 | H34: 000 | J34: 017-006-0002 | K34: Documento | L34: =IFERROR(VLOOKUP($A34,ENEMT!$A$1:$O$1776,11,FALSE),0) -> 10 | M34: 10 | N34: 0 | O34: =IFERROR(VLOOKUP($A34,ENEFN!$A$2:$N$1776,5,FALSE),0) -> 5000000 | P34: 5000000 | Q34: 0 | R34: =IFERROR(VLOOKUP($A34,ENEMT!$A$1:$O$1776,12,FALSE),0) -> 0 | S34: =IFERROR(VLOOKUP($A34,ENEMT!$A$1:$O$1776,15,FALSE),0) -> 0 | AP34: =IFERROR(VLOOKUP($A34,ENEFN!$A$1:$N$1776,6,FALSE),0) -> 0 | AQ34: =IFERROR(VLOOKUP($A34,ENEFN!$A$1:$N$1776,10,FALSE),0) -> 0
A35: 203- | C35: 203 | D35: 11 | E35: 02 | F35: 000 | G35: 002 | H35: 000 | I35: 017-007 | K35: Kilómetro | L35: =IFERROR(VLOOKUP($A35,ENEMT!$A$1:$O$1776,11,FALSE),0) -> 0 | M35: 0 | N35: 0 | O35: =IFERROR(VLOOKUP($A35,ENEFN!$A$2:$N$1776,5,FALSE),0) -> 0 | P35: 0 | Q35: 0 | R35: =IFERROR(VLOOKUP($A35,ENEMT!$A$1:$O$1776,12,FALSE),0) -> 0 | S35: =IFERROR(VLOOKUP($A35,ENEMT!$A$1:$O$1776,15,FALSE),0) -> 0 | AP35: =IFERROR(VLOOKUP($A35,ENEFN!$A$1:$N$1776,6,FALSE),0) -> 0 | AQ35: =IFERROR(VLOOKUP($A35,ENEFN!$A$1:$N$1776,10,FALSE),0) -> 0
A36: 203-017-007-0001 | C36: 203 | D36: 11 | E36: 02 | F36: 000 | G36: 002 | H36: 000 | J36: 017-007-0001 | K36: Kilómetro | L36: =IFERROR(VLOOKUP($A36,ENEMT!$A$1:$O$1776,11,FALSE),0) -> 5349 | M36: 5349 | N36: 0 | O36: =IFERROR(VLOOKUP($A36,ENEFN!$A$2:$N$1776,5,FALSE),0) -> 550792866 | P36: 550792866 | Q36: 0 | R36: =IFERROR(VLOOKUP($A36,ENEMT!$A$1:$O$1776,12,FALSE),0) -> 0 | S36: =IFERROR(VLOOKUP($A36,ENEMT!$A$1:$O$1776,15,FALSE),0) -> 0 | AP36: =IFERROR(VLOOKUP($A36,ENEFN!$A$1:$N$1776,6,FALSE),0) -> 0 | AQ36: =IFERROR(VLOOKUP($A36,ENEFN!$A$1:$N$1776,10,FALSE),0) -> 0
A37: 203- | C37: 203 | D37: 94 | E37: 14 | F37: 000 | G37: 001 | H37: 000 | I37: 000-049 | K37: Documento | L37: =IFERROR(VLOOKUP($A37,ENEMT!$A$1:$O$1776,11,FALSE),0) -> 0 | M37: 0 | N37: 0 | O37: =IFERROR(VLOOKUP($A37,ENEFN!$A$2:$N$1776,5,FALSE),0) -> 0 | P37: 0 | Q37: 0 | R37: =IFERROR(VLOOKUP($A37,ENEMT!$A$1:$O$1776,12,FALSE),0) -> 0 | S37: =IFERROR(VLOOKUP($A37,ENEMT!$A$1:$O$1776,15,FALSE),0) -> 0 | AP37: =IFERROR(VLOOKUP($A37,ENEFN!$A$1:$N$1776,6,FALSE),0) -> 0 | AQ37: =IFERROR(VLOOKUP($A37,ENEFN!$A$1:$N$1776,10,FALSE),0) -> 0
A38: 203-000-049-0001 | C38: 203 | D38: 94 | E38: 14 | F38: 000 | G38: 001 | H38: 000 | J38: 000-049-0001 | K38: Documento | L38: =IFERROR(VLOOKUP($A38,ENEMT!$A$1:$O$1776,11,FALSE),0) -> 0 | M38: 0 | N38: 0 | O38: =IFERROR(VLOOKUP($A38,ENEFN!$A$2:$N$1776,5,FALSE),0) -> 0 | P38: 0 | Q38: 0 | R38: =IFERROR(VLOOKUP($A38,ENEMT!$A$1:$O$1776,12,FALSE),0) -> 0 | S38: =IFERROR(VLOOKUP($A38,ENEMT!$A$1:$O$1776,15,FALSE),0) -> 0 | AP38: =IFERROR(VLOOKUP($A38,ENEFN!$A$1:$N$1776,6,FALSE),0) -> 0 | AQ38: =IFERROR(VLOOKUP($A38,ENEFN!$A$1:$N$1776,10,FALSE),0) -> 0
A39: 203- | C39: 203 | D39: 94 | E39: 15 | F39: 000 | G39: 001 | H39: 000 | I39: 000-051 | K39: Documento | L39: =IFERROR(VLOOKUP($A39,ENEMT!$A$1:$O$1776,11,FALSE),0) -> 0 | M39: 0 | N39: 0 | O39: =IFERROR(VLOOKUP($A39,ENEFN!$A$2:$N$1776,5,FALSE),0) -> 0 | P39: 0 | Q39: 0 | R39: =IFERROR(VLOOKUP($A39,ENEMT!$A$1:$O$1776,12,FALSE),0) -> 0 | S39: =IFERROR(VLOOKUP($A39,ENEMT!$A$1:$O$1776,15,FALSE),0) -> 0 | AP39: =IFERROR(VLOOKUP($A39,ENEFN!$A$1:$N$1776,6,FALSE),0) -> 0 | AQ39: =IFERROR(VLOOKUP($A39,ENEFN!$A$1:$N$1776,10,FALSE),0) -> 0
A40: 203-000-051-0001 | C40: 203 | D40: 94 | E40: 15 | F40: 000 | G40: 001 | H40: 000 | J40: 000-051-0001 | K40: Documento | L40: =IFERROR(VLOOKUP($A40,ENEMT!$A$1:$O$1776,11,FALSE),0) -> 0 | M40: 0 | N40: 0 | O40: =IFERROR(VLOOKUP($A40,ENEFN!$A$2:$N$1776,5,FALSE),0) -> 0 | P40: 0 | Q40: 0 | R40: =IFERROR(VLOOKUP($A40,ENEMT!$A$1:$O$1776,12,FALSE),0) -> 0 | S40: =IFERROR(VLOOKUP($A40,ENEMT!$A$1:$O$1776,15,FALSE),0) -> 0 | AP40: =IFERROR(VLOOKUP($A40,ENEFN!$A$1:$N$1776,6,FALSE),0) -> 0 | AQ40: =IFERROR(VLOOKUP($A40,ENEFN!$A$1:$N$1776,10,FALSE),0) -> 0
A41: 204- | C41: 204 | D41: 12 | E41: 00 | F41: 000 | G41: 001 | H41: 000 | I41: 018-005 | K41: Evento | L41: =IFERROR(VLOOKUP($A41,ENEMT!$A$1:$O$1776,11,FALSE),0) -> 0 | M41: 0 | N41: 0 | O41: =IFERROR(VLOOKUP($A41,ENEFN!$A$2:$N$1776,5,FALSE),0) -> 0 | P41: 0 | Q41: 0 | R41: =IFERROR(VLOOKUP($A41,ENEMT!$A$1:$O$1776,12,FALSE),0) -> 0 | S41: =IFERROR(VLOOKUP($A41,ENEMT!$A$1:$O$1776,15,FALSE),0) -> 0 | AP41: =IFERROR(VLOOKUP($A41,ENEFN!$A$1:$N$1776,6,FALSE),0) -> 0 | AQ41: =IFERROR(VLOOKUP($A41,ENEFN!$A$1:$N$1776,10,FALSE),0) -> 0
A42: 204-018-005-0001 | C42: 204 | D42: 12 | E42: 00 | F42: 000 | G42: 001 | H42: 000 | J42: 018-005-0001 | K42: Evento | L42: =IFERROR(VLOOKUP($A42,ENEMT!$A$1:$O$1776,11,FALSE),0) -> 85 | M42: 265 | N42: 58 | O42: =IFERROR(VLOOKUP($A42,ENEFN!$A$2:$N$1776,5,FALSE),0) -> 12264729 | P42: 12264729 | Q42: 10621.37 | R42: =IFERROR(VLOOKUP($A42,ENEMT!$A$1:$O$1776,12,FALSE),0) -> 180 | S42: =IFERROR(VLOOKUP($A42,ENEMT!$A$1:$O$1776,15,FALSE),0) -> 58 | AP42: =IFERROR(VLOOKUP($A42,ENEFN!$A$1:$N$1776,6,FALSE),0) -> 0 | AQ42: =IFERROR(VLOOKUP($A42,ENEFN!$A$1:$N$1776,10,FALSE),0) -> 10621.37
A43: 204- | C43: 204 | D43: 12 | E43: 00 | F43: 000 | G43: 002 | H43: 000 | I43: 018-006 | K43: Documento | L43: =IFERROR(VLOOKUP($A43,ENEMT!$A$1:$O$1776,11,FALSE),0) -> 0 | M43: 0 | N43: 0 | O43: =IFERROR(VLOOKUP($A43,ENEFN!$A$2:$N$1776,5,FALSE),0) -> 0 | P43: 0 | Q43: 0 | R43: =IFERROR(VLOOKUP($A43,ENEMT!$A$1:$O$1776,12,FALSE),0) -> 0 | S43: =IFERROR(VLOOKUP($A43,ENEMT!$A$1:$O$1776,15,FALSE),0) -> 0 | AP43: =IFERROR(VLOOKUP($A43,ENEFN!$A$1:$N$1776,6,FALSE),0) -> 0 | AQ43: =IFERROR(VLOOKUP($A43,ENEFN!$A$1:$N$1776,10,FALSE),0) -> 0
A44: 204-018-006-0001 | C44: 204 | D44: 12 | E44: 00 | F44: 000 | G44: 002 | H44: 000 | J44: 018-006-0001 | K44: Documento | L44: =IFERROR(VLOOKUP($A44,ENEMT!$A$1:$O$1776,11,FALSE),0) -> 525 | M44: 525 | N44: 40 | O44: =IFERROR(VLOOKUP($A44,ENEFN!$A$2:$N$1776,5,FALSE),0) -> 1031212 | P44: 1031212 | Q44: 0 | R44: =IFERROR(VLOOKUP($A44,ENEMT!$A$1:$O$1776,12,FALSE),0) -> 0 | S44: =IFERROR(VLOOKUP($A44,ENEMT!$A$1:$O$1776,15,FALSE),0) -> 40 | AP44: =IFERROR(VLOOKUP($A44,ENEFN!$A$1:$N$1776,6,FALSE),0) -> 0 | AQ44: =IFERROR(VLOOKUP($A44,ENEFN!$A$1:$N$1776,10,FALSE),0) -> 0
A45: 204-018-006-0002 | C45: 204 | D45: 12 | E45: 00 | F45: 000 | G45: 002 | H45: 000 | J45: 018-006-0002 | K45: Documento | L45: =IFERROR(VLOOKUP($A45,ENEMT!$A$1:$O$1776,11,FALSE),0) -> 1575 | M45: 3675 | N45: 160 | O45: =IFERROR(VLOOKUP($A45,ENEFN!$A$2:$N$1776,5,FALSE),0) -> 183000 | P45: 183000 | Q45: 0 | R45: =IFERROR(VLOOKUP($A45,ENEMT!$A$1:$O$1776,12,FALSE),0) -> 2100 | S45: =IFERROR(VLOOKUP($A45,ENEMT!$A$1:$O$1776,15,FALSE),0) -> 160 | AP45: =IFERROR(VLOOKUP($A45,ENEFN!$A$1:$N$1776,6,FALSE),0) -> 0 | AQ45: =IFERROR(VLOOKUP($A45,ENEFN!$A$1:$N$1776,10,FALSE),0) -> 0
A46: 204-018-006-0003 | C46: 204 | D46: 12 | E46: 00 | F46: 000 | G46: 002 | H46: 000 | J46: 018-006-0003 | K46: Documento | L46: =IFERROR(VLOOKUP($A46,ENEMT!$A$1:$O$1776,11,FALSE),0) -> 1550 | M46: 3550 | N46: 160 | O46: =IFERROR(VLOOKUP($A46,ENEFN!$A$2:$N$1776,5,FALSE),0) -> 728318 | P46: 728318 | Q46: 0 | R46: =IFERROR(VLOOKUP($A46,ENEMT!$A$1:$O$1776,12,FALSE),0) -> 2000 | S46: =IFERROR(VLOOKUP($A46,ENEMT!$A$1:$O$1776,15,FALSE),0) -> 160 | AP46: =IFERROR(VLOOKUP($A46,ENEFN!$A$1:$N$1776,6,FALSE),0) -> 0 | AQ46: =IFERROR(VLOOKUP($A46,ENEFN!$A$1:$N$1776,10,FALSE),0) -> 0
A47: 204-018-006-0004 | C47: 204 | D47: 12 | E47: 00 | F47: 000 | G47: 002 | H47: 000 | J47: 018-006-0004 | K47: Evento | L47: =IFERROR(VLOOKUP($A47,ENEMT!$A$1:$O$1776,11,FALSE),0) -> 1470 | M47: 3670 | N47: 190 | O47: =IFERROR(VLOOKUP($A47,ENEFN!$A$2:$N$1776,5,FALSE),0) -> 369011 | P47: 369011 | Q47: 0 | R47: =IFERROR(VLOOKUP($A47,ENEMT!$A$1:$O$1776,12,FALSE),0) -> 2200 | S47: =IFERROR(VLOOKUP($A47,ENEMT!$A$1:$O$1776,15,FALSE),0) -> 190 | AP47: =IFERROR(VLOOKUP($A47,ENEFN!$A$1:$N$1776,6,FALSE),0) -> 0 | AQ47: =IFERROR(VLOOKUP($A47,ENEFN!$A$1:$N$1776,10,FALSE),0) -> 0
A48: 204-018-006-0005 | C48: 204 | D48: 12 | E48: 00 | F48: 000 | G48: 002 | H48: 000 | J48: 018-006-0005 | K48: Documento | L48: =IFERROR(VLOOKUP($A48,ENEMT!$A$1:$O$1776,11,FALSE),0) -> 420 | M48: 6420 | N48: 400 | O48: =IFERROR(VLOOKUP($A48,ENEFN!$A$2:$N$1776,5,FALSE),0) -> 350000 | P48: 350000 | Q48: 0 | R48: =IFERROR(VLOOKUP($A48,ENEMT!$A$1:$O$1776,12,FALSE),0) -> 6000 | S48: =IFERROR(VLOOKUP($A48,ENEMT!$A$1:$O$1776,15,FALSE),0) -> 400 | AP48: =IFERROR(VLOOKUP($A48,ENEFN!$A$1:$N$1776,6,FALSE),0) -> 0 | AQ48: =IFERROR(VLOOKUP($A48,ENEFN!$A$1:$N$1776,10,FALSE),0) -> 0
A49: 204-018-006-0007 | C49: 204 | D49: 12 | E49: 00 | F49: 000 | G49: 002 | H49: 000 | J49: 018-006-0007 | K49: Documento | L49: =IFERROR(VLOOKUP($A49,ENEMT!$A$1:$O$1776,11,FALSE),0) -> 525 | M49: 1525 | N49: 70 | O49: =IFERROR(VLOOKUP($A49,ENEFN!$A$2:$N$1776,5,FALSE),0) -> 25000 | P49: 25000 | Q49: 0 | R49: =IFERROR(VLOOKUP($A49,ENEMT!$A$1:$O$1776,12,FALSE),0) -> 1000 | S49: =IFERROR(VLOOKUP($A49,ENEMT!$A$1:$O$1776,15,FALSE),0) -> 70 | AP49: =IFERROR(VLOOKUP($A49,ENEFN!$A$1:$N$1776,6,FALSE),0) -> 0 | AQ49: =IFERROR(VLOOKUP($A49,ENEFN!$A$1:$N$1776,10,FALSE),0) -> 0
A50: 205- | C50: 205 | D50: 99 | E50: 00 | F50: 000 | G50: 002 | H50: 000 | I50: 000-005 | K50: Aporte | L50: =IFERROR(VLOOKUP($A50,ENEMT!$A$1:$O$1776,11,FALSE),0) -> 0 | M50: 0 | N50: 0 | O50: =IFERROR(VLOOKUP($A50,ENEFN!$A$2:$N$1776,5,FALSE),0) -> 0 | P50: 0 | Q50: 0 | R50: =IFERROR(VLOOKUP($A50,ENEMT!$A$1:$O$1776,12,FALSE),0) -> 0 | S50: =IFERROR(VLOOKUP($A50,ENEMT!$A$1:$O$1776,15,FALSE),0) -> 0 | AP50: =IFERROR(VLOOKUP($A50,ENEFN!$A$1:$N$1776,6,FALSE),0) -> 0 | AQ50: =IFERROR(VLOOKUP($A50,ENEFN!$A$1:$N$1776,10,FALSE),0) -> 0
A51: 205-000-005-0001 | C51: 205 | D51: 99 | E51: 00 | F51: 000 | G51: 002 | H51: 000 | J51: 000-005-0001 | K51: Aporte | L51: =IFERROR(VLOOKUP($A51,ENEMT!$A$1:$O$1776,11,FALSE),0) -> 1 | M51: 2 | N51: 0 | O51: =IFERROR(VLOOKUP($A51,ENEFN!$A$2:$N$1776,5,FALSE),0) -> 450000 | P51: 450000 | Q51: 0 | R51: =IFERROR(VLOOKUP($A51,ENEMT!$A$1:$O$1776,12,FALSE),0) -> 1 | S51: =IFERROR(VLOOKUP($A51,ENEMT!$A$1:$O$1776,15,FALSE),0) -> 0 | AP51: =IFERROR(VLOOKUP($A51,ENEFN!$A$1:$N$1776,6,FALSE),0) -> 0 | AQ51: =IFERROR(VLOOKUP($A51,ENEFN!$A$1:$N$1776,10,FALSE),0) -> 0
A52: 205- | C52: 205 | D52: 13 | E52: 00 | F52: 000 | G52: 001 | H52: 000 | I52: 000-013 | K52: Evento | L52: =IFERROR(VLOOKUP($A52,ENEMT!$A$1:$O$1776,11,FALSE),0) -> 0 | M52: 0 | N52: 0 | O52: =IFERROR(VLOOKUP($A52,ENEFN!$A$2:$N$1776,5,FALSE),0) -> 0 | P52: 0 | Q52: 0 | R52: =IFERROR(VLOOKUP($A52,ENEMT!$A$1:$O$1776,12,FALSE),0) -> 0 | S52: =IFERROR(VLOOKUP($A52,ENEMT!$A$1:$O$1776,15,FALSE),0) -> 0 | AP52: =IFERROR(VLOOKUP($A52,ENEFN!$A$1:$N$1776,6,FALSE),0) -> 0 | AQ52: =IFERROR(VLOOKUP($A52,ENEFN!$A$1:$N$1776,10,FALSE),0) -> 0
A53: 205-000-013-0001 | C53: 205 | D53: 13 | E53: 00 | F53: 000 | G53: 001 | H53: 000 | J53: 000-013-0001 | K53: Evento | L53: =IFERROR(VLOOKUP($A53,ENEMT!$A$1:$O$1776,11,FALSE),0) -> 990 | M53: 1890 | N53: 773 | O53: =IFERROR(VLOOKUP($A53,ENEFN!$A$2:$N$1776,5,FALSE),0) -> 144895709 | P53: 144895709 | Q53: 3339291.04 | R53: =IFERROR(VLOOKUP($A53,ENEMT!$A$1:$O$1776,12,FALSE),0) -> 900 | S53: =IFERROR(VLOOKUP($A53,ENEMT!$A$1:$O$1776,15,FALSE),0) -> 773 | AP53: =IFERROR(VLOOKUP($A53,ENEFN!$A$1:$N$1776,6,FALSE),0) -> 0 | AQ53: =IFERROR(VLOOKUP($A53,ENEFN!$A$1:$N$1776,10,FALSE),0) -> 3339291.04
A54: 205- | C54: 205 | D54: 13 | E54: 00 | F54: 000 | G54: 002 | H54: 000 | I54: 000-014 | K54: Aeronave | L54: =IFERROR(VLOOKUP($A54,ENEMT!$A$1:$O$1776,11,FALSE),0) -> 0 | M54: 0 | N54: 0 | O54: =IFERROR(VLOOKUP($A54,ENEFN!$A$2:$N$1776,5,FALSE),0) -> 0 | P54: 0 | Q54: 0 | R54: =IFERROR(VLOOKUP($A54,ENEMT!$A$1:$O$1776,12,FALSE),0) -> 0 | S54: =IFERROR(VLOOKUP($A54,ENEMT!$A$1:$O$1776,15,FALSE),0) -> 0 | AP54: =IFERROR(VLOOKUP($A54,ENEFN!$A$1:$N$1776,6,FALSE),0) -> 0 | AQ54: =IFERROR(VLOOKUP($A54,ENEFN!$A$1:$N$1776,10,FALSE),0) -> 0
A55: 205-000-014-0001 | C55: 205 | D55: 13 | E55: 00 | F55: 000 | G55: 002 | H55: 000 | J55: 000-014-0001 | K55: Persona | L55: =IFERROR(VLOOKUP($A55,ENEMT!$A$1:$O$1776,11,FALSE),0) -> 291179 | M55: 1653803 | N55: 129811 | O55: =IFERROR(VLOOKUP($A55,ENEFN!$A$2:$N$1776,5,FALSE),0) -> 18478387 | P55: 18478387 | Q55: 0 | R55: =IFERROR(VLOOKUP($A55,ENEMT!$A$1:$O$1776,12,FALSE),0) -> 1362624 | S55: =IFERROR(VLOOKUP($A55,ENEMT!$A$1:$O$1776,15,FALSE),0) -> 129811 | AP55: =IFERROR(VLOOKUP($A55,ENEFN!$A$1:$N$1776,6,FALSE),0) -> 0 | AQ55: =IFERROR(VLOOKUP($A55,ENEFN!$A$1:$N$1776,10,FALSE),0) -> 0
A56: 205-000-014-0002 | C56: 205 | D56: 13 | E56: 00 | F56: 000 | G56: 002 | H56: 000 | J56: 000-014-0002 | K56: Persona | L56: =IFERROR(VLOOKUP($A56,ENEMT!$A$1:$O$1776,11,FALSE),0) -> 1676801 | M56: 1645283 | N56: 136286 | O56: =IFERROR(VLOOKUP($A56,ENEFN!$A$2:$N$1776,5,FALSE),0) -> 54283348 | P56: 54283348 | Q56: 597225.19 | R56: =IFERROR(VLOOKUP($A56,ENEMT!$A$1:$O$1776,12,FALSE),0) -> -31518 | S56: =IFERROR(VLOOKUP($A56,ENEMT!$A$1:$O$1776,15,FALSE),0) -> 136286 | AP56: =IFERROR(VLOOKUP($A56,ENEFN!$A$1:$N$1776,6,FALSE),0) -> 0 | AQ56: =IFERROR(VLOOKUP($A56,ENEFN!$A$1:$N$1776,10,FALSE),0) -> 597225.19
A57: 205-000-014-0003 | C57: 205 | D57: 13 | E57: 00 | F57: 000 | G57: 002 | H57: 000 | J57: 000-014-0003 | K57: Kilogramo | L57: =IFERROR(VLOOKUP($A57,ENEMT!$A$1:$O$1776,11,FALSE),0) -> 86739745 | M57: 31186567 | N57: 2174612 | O57: =IFERROR(VLOOKUP($A57,ENEFN!$A$2:$N$1776,5,FALSE),0) -> 591375 | P57: 591375 | Q57: 0 | R57: =IFERROR(VLOOKUP($A57,ENEMT!$A$1:$O$1776,12,FALSE),0) -> -55553178 | S57: =IFERROR(VLOOKUP($A57,ENEMT!$A$1:$O$1776,15,FALSE),0) -> 2174612 | AP57: =IFERROR(VLOOKUP($A57,ENEFN!$A$1:$N$1776,6,FALSE),0) -> 0 | AQ57: =IFERROR(VLOOKUP($A57,ENEFN!$A$1:$N$1776,10,FALSE),0) -> 0
A58: 205-000-014-0004 | C58: 205 | D58: 13 | E58: 00 | F58: 000 | G58: 002 | H58: 000 | J58: 000-014-0004 | K58: Kilogramo | L58: =IFERROR(VLOOKUP($A58,ENEMT!$A$1:$O$1776,11,FALSE),0) -> 33930296 | M58: 24082459 | N58: 1828291 | O58: =IFERROR(VLOOKUP($A58,ENEFN!$A$2:$N$1776,5,FALSE),0) -> 264205 | P58: 264205 | Q58: 0 | R58: =IFERROR(VLOOKUP($A58,ENEMT!$A$1:$O$1776,12,FALSE),0) -> -9847837 | S58: =IFERROR(VLOOKUP($A58,ENEMT!$A$1:$O$1776,15,FALSE),0) -> 1828291 | AP58: =IFERROR(VLOOKUP($A58,ENEFN!$A$1:$N$1776,6,FALSE),0) -> 0 | AQ58: =IFERROR(VLOOKUP($A58,ENEFN!$A$1:$N$1776,10,FALSE),0) -> 0
A59: 205-000-014-0005 | C59: 205 | D59: 13 | E59: 00 | F59: 000 | G59: 002 | H59: 000 | J59: 000-014-0005 | K59: Aeronave | L59: =IFERROR(VLOOKUP($A59,ENEMT!$A$1:$O$1776,11,FALSE),0) -> 297 | M59: 523 | N59: 27 | O59: =IFERROR(VLOOKUP($A59,ENEFN!$A$2:$N$1776,5,FALSE),0) -> 206100 | P59: 206100 | Q59: 0 | R59: =IFERROR(VLOOKUP($A59,ENEMT!$A$1:$O$1776,12,FALSE),0) -> 226 | S59: =IFERROR(VLOOKUP($A59,ENEMT!$A$1:$O$1776,15,FALSE),0) -> 27 | AP59: =IFERROR(VLOOKUP($A59,ENEFN!$A$1:$N$1776,6,FALSE),0) -> 0 | AQ59: =IFERROR(VLOOKUP($A59,ENEFN!$A$1:$N$1776,10,FALSE),0) -> 0
A60: 205-000-014-0006 | C60: 205 | D60: 13 | E60: 00 | F60: 000 | G60: 002 | H60: 000 | J60: 000-014-0006 | K60: Aeronave | L60: =IFERROR(VLOOKUP($A60,ENEMT!$A$1:$O$1776,11,FALSE),0) -> 135 | M60: 210 | N60: 11 | O60: =IFERROR(VLOOKUP($A60,ENEFN!$A$2:$N$1776,5,FALSE),0) -> 250275 | P60: 250275 | Q60: 0 | R60: =IFERROR(VLOOKUP($A60,ENEMT!$A$1:$O$1776,12,FALSE),0) -> 75 | S60: =IFERROR(VLOOKUP($A60,ENEMT!$A$1:$O$1776,15,FALSE),0) -> 11 | AP60: =IFERROR(VLOOKUP($A60,ENEFN!$A$1:$N$1776,6,FALSE),0) -> 0 | AQ60: =IFERROR(VLOOKUP($A60,ENEFN!$A$1:$N$1776,10,FALSE),0) -> 0
A61: 205-000-014-0007 | C61: 205 | D61: 13 | E61: 00 | F61: 000 | G61: 002 | H61: 000 | J61: 000-014-0007 | K61: Aeronave | L61: =IFERROR(VLOOKUP($A61,ENEMT!$A$1:$O$1776,11,FALSE),0) -> 1244 | M61: 3530 | N61: 300 | O61: =IFERROR(VLOOKUP($A61,ENEFN!$A$2:$N$1776,5,FALSE),0) -> 179825 | P61: 179825 | Q61: 0 | R61: =IFERROR(VLOOKUP($A61,ENEMT!$A$1:$O$1776,12,FALSE),0) -> 2286 | S61: =IFERROR(VLOOKUP($A61,ENEMT!$A$1:$O$1776,15,FALSE),0) -> 300 | AP61: =IFERROR(VLOOKUP($A61,ENEFN!$A$1:$N$1776,6,FALSE),0) -> 0 | AQ61: =IFERROR(VLOOKUP($A61,ENEFN!$A$1:$N$1776,10,FALSE),0) -> 0
A62: 205- | C62: 205 | D62: 13 | E62: 00 | F62: 000 | G62: 003 | H62: 000 | I62: 000-016 | K62: Aeronave | L62: =IFERROR(VLOOKUP($A62,ENEMT!$A$1:$O$1776,11,FALSE),0) -> 0 | M62: 0 | N62: 0 | O62: =IFERROR(VLOOKUP($A62,ENEFN!$A$2:$N$1776,5,FALSE),0) -> 0 | P62: 0 | Q62: 0 | R62: =IFERROR(VLOOKUP($A62,ENEMT!$A$1:$O$1776,12,FALSE),0) -> 0 | S62: =IFERROR(VLOOKUP($A62,ENEMT!$A$1:$O$1776,15,FALSE),0) -> 0 | AP62: =IFERROR(VLOOKUP($A62,ENEFN!$A$1:$N$1776,6,FALSE),0) -> 0 | AQ62: =IFERROR(VLOOKUP($A62,ENEFN!$A$1:$N$1776,10,FALSE),0) -> 0
A63: 205-000-016-0001 | C63: 205 | D63: 13 | E63: 00 | F63: 000 | G63: 003 | H63: 000 | J63: 000-016-0001 | K63: Aeronave | L63: =IFERROR(VLOOKUP($A63,ENEMT!$A$1:$O$1776,11,FALSE),0) -> 84696 | M63: 89251 | N63: 7080 | O63: =IFERROR(VLOOKUP($A63,ENEFN!$A$2:$N$1776,5,FALSE),0) -> 13660761 | P63: 13660761 | Q63: 0 | R63: =IFERROR(VLOOKUP($A63,ENEMT!$A$1:$O$1776,12,FALSE),0) -> 4555 | S63: =IFERROR(VLOOKUP($A63,ENEMT!$A$1:$O$1776,15,FALSE),0) -> 7080 | AP63: =IFERROR(VLOOKUP($A63,ENEFN!$A$1:$N$1776,6,FALSE),0) -> 0 | AQ63: =IFERROR(VLOOKUP($A63,ENEFN!$A$1:$N$1776,10,FALSE),0) -> 0
A64: 205- | C64: 205 | D64: 13 | E64: 00 | F64: 000 | G64: 004 | H64: 000 | I64: 000-017 | K64: Metro cuadrado | L64: =IFERROR(VLOOKUP($A64,ENEMT!$A$1:$O$1776,11,FALSE),0) -> 0 | M64: 0 | N64: 0 | O64: =IFERROR(VLOOKUP($A64,ENEFN!$A$2:$N$1776,5,FALSE),0) -> 0 | P64: 0 | Q64: 0 | R64: =IFERROR(VLOOKUP($A64,ENEMT!$A$1:$O$1776,12,FALSE),0) -> 0 | S64: =IFERROR(VLOOKUP($A64,ENEMT!$A$1:$O$1776,15,FALSE),0) -> 0 | AP64: =IFERROR(VLOOKUP($A64,ENEFN!$A$1:$N$1776,6,FALSE),0) -> 0 | AQ64: =IFERROR(VLOOKUP($A64,ENEFN!$A$1:$N$1776,10,FALSE),0) -> 0
A65: 205-000-017-0001 | C65: 205 | D65: 13 | E65: 00 | F65: 000 | G65: 004 | H65: 000 | J65: 000-017-0001 | K65: Metro cuadrado | L65: =IFERROR(VLOOKUP($A65,ENEMT!$A$1:$O$1776,11,FALSE),0) -> 728874 | M65: 185344 | N65: 8981 | O65: =IFERROR(VLOOKUP($A65,ENEFN!$A$2:$N$1776,5,FALSE),0) -> 16133540 | P65: 16133540 | Q65: 142767.08 | R65: =IFERROR(VLOOKUP($A65,ENEMT!$A$1:$O$1776,12,FALSE),0) -> -543530 | S65: =IFERROR(VLOOKUP($A65,ENEMT!$A$1:$O$1776,15,FALSE),0) -> 8981 | AP65: =IFERROR(VLOOKUP($A65,ENEFN!$A$1:$N$1776,6,FALSE),0) -> 0 | AQ65: =IFERROR(VLOOKUP($A65,ENEFN!$A$1:$N$1776,10,FALSE),0) -> 142767.08
A66: 206- | C66: 206 | D66: 14 | E66: 00 | F66: 000 | G66: 001 | H66: 000 | I66: 000-018 | K66: Evento | L66: =IFERROR(VLOOKUP($A66,ENEMT!$A$1:$O$1776,11,FALSE),0) -> 0 | M66: 0 | N66: 0 | O66: =IFERROR(VLOOKUP($A66,ENEFN!$A$2:$N$1776,5,FALSE),0) -> 0 | P66: 0 | Q66: 0 | R66: =IFERROR(VLOOKUP($A66,ENEMT!$A$1:$O$1776,12,FALSE),0) -> 0 | S66: =IFERROR(VLOOKUP($A66,ENEMT!$A$1:$O$1776,15,FALSE),0) -> 0 | AP66: =IFERROR(VLOOKUP($A66,ENEFN!$A$1:$N$1776,6,FALSE),0) -> 0 | AQ66: =IFERROR(VLOOKUP($A66,ENEFN!$A$1:$N$1776,10,FALSE),0) -> 0
A67: 206-000-018-0001 | C67: 206 | D67: 14 | E67: 00 | F67: 000 | G67: 001 | H67: 000 | J67: 000-018-0001 | K67: Evento | L67: =IFERROR(VLOOKUP($A67,ENEMT!$A$1:$O$1776,11,FALSE),0) -> 117 | M67: 117 | N67: 0 | O67: =IFERROR(VLOOKUP($A67,ENEFN!$A$2:$N$1776,5,FALSE),0) -> 28177916 | P67: 28177916 | Q67: 86929.55 | R67: =IFERROR(VLOOKUP($A67,ENEMT!$A$1:$O$1776,12,FALSE),0) -> 0 | S67: =IFERROR(VLOOKUP($A67,ENEMT!$A$1:$O$1776,15,FALSE),0) -> 0 | AP67: =IFERROR(VLOOKUP($A67,ENEFN!$A$1:$N$1776,6,FALSE),0) -> 0 | AQ67: =IFERROR(VLOOKUP($A67,ENEFN!$A$1:$N$1776,10,FALSE),0) -> 86929.55
A68: 206-000-018-0002 | C68: 206 | D68: 14 | E68: 00 | F68: 000 | G68: 001 | H68: 000 | J68: 000-018-0002 | K68: Persona | L68: =IFERROR(VLOOKUP($A68,ENEMT!$A$1:$O$1776,11,FALSE),0) -> 10354 | M68: 10354 | N68: 0 | O68: =IFERROR(VLOOKUP($A68,ENEFN!$A$2:$N$1776,5,FALSE),0) -> 5100000 | P68: 5100000 | Q68: 0 | R68: =IFERROR(VLOOKUP($A68,ENEMT!$A$1:$O$1776,12,FALSE),0) -> 0 | S68: =IFERROR(VLOOKUP($A68,ENEMT!$A$1:$O$1776,15,FALSE),0) -> 0 | AP68: =IFERROR(VLOOKUP($A68,ENEFN!$A$1:$N$1776,6,FALSE),0) -> 0 | AQ68: =IFERROR(VLOOKUP($A68,ENEFN!$A$1:$N$1776,10,FALSE),0) -> 0
A69: 206-000-018-0003 | C69: 206 | D69: 14 | E69: 00 | F69: 000 | G69: 001 | H69: 000 | J69: 000-018-0003 | K69: Evento | L69: =IFERROR(VLOOKUP($A69,ENEMT!$A$1:$O$1776,11,FALSE),0) -> 116 | M69: 113 | N69: 0 | O69: =IFERROR(VLOOKUP($A69,ENEFN!$A$2:$N$1776,5,FALSE),0) -> 181478546 | P69: 181478546 | Q69: 0 | R69: =IFERROR(VLOOKUP($A69,ENEMT!$A$1:$O$1776,12,FALSE),0) -> -3 | S69: =IFERROR(VLOOKUP($A69,ENEMT!$A$1:$O$1776,15,FALSE),0) -> 0 | AP69: =IFERROR(VLOOKUP($A69,ENEFN!$A$1:$N$1776,6,FALSE),0) -> 0 | AQ69: =IFERROR(VLOOKUP($A69,ENEFN!$A$1:$N$1776,10,FALSE),0) -> 0
A70: 206- | C70: 206 | D70: 94 | E70: 11 | F70: 000 | G70: 001 | H70: 000 | I70: 000-048 | K70: Documento | L70: =IFERROR(VLOOKUP($A70,ENEMT!$A$1:$O$1776,11,FALSE),0) -> 0 | M70: 0 | N70: 0 | O70: =IFERROR(VLOOKUP($A70,ENEFN!$A$2:$N$1776,5,FALSE),0) -> 0 | P70: 0 | Q70: 0 | R70: =IFERROR(VLOOKUP($A70,ENEMT!$A$1:$O$1776,12,FALSE),0) -> 0 | S70: =IFERROR(VLOOKUP($A70,ENEMT!$A$1:$O$1776,15,FALSE),0) -> 0 | AP70: =IFERROR(VLOOKUP($A70,ENEFN!$A$1:$N$1776,6,FALSE),0) -> 0 | AQ70: =IFERROR(VLOOKUP($A70,ENEFN!$A$1:$N$1776,10,FALSE),0) -> 0
A71: 206-000-048-0002 | C71: 206 | D71: 94 | E71: 11 | F71: 000 | G71: 001 | H71: 000 | J71: 000-048-0002 | K71: Evento | L71: =IFERROR(VLOOKUP($A71,ENEMT!$A$1:$O$1776,11,FALSE),0) -> 0 | M71: 0 | N71: 0 | O71: =IFERROR(VLOOKUP($A71,ENEFN!$A$2:$N$1776,5,FALSE),0) -> 0 | P71: 0 | Q71: 0 | R71: =IFERROR(VLOOKUP($A71,ENEMT!$A$1:$O$1776,12,FALSE),0) -> 0 | S71: =IFERROR(VLOOKUP($A71,ENEMT!$A$1:$O$1776,15,FALSE),0) -> 0 | AP71: =IFERROR(VLOOKUP($A71,ENEFN!$A$1:$N$1776,6,FALSE),0) -> 0 | AQ71: =IFERROR(VLOOKUP($A71,ENEFN!$A$1:$N$1776,10,FALSE),0) -> 0
A72: 206- | C72: 206 | D72: 94 | E72: 14 | F72: 000 | G72: 001 | H72: 000 | I72: 000-049 | K72: Documento | L72: =IFERROR(VLOOKUP($A72,ENEMT!$A$1:$O$1776,11,FALSE),0) -> 0 | M72: 0 | N72: 0 | O72: =IFERROR(VLOOKUP($A72,ENEFN!$A$2:$N$1776,5,FALSE),0) -> 0 | P72: 0 | Q72: 0 | R72: =IFERROR(VLOOKUP($A72,ENEMT!$A$1:$O$1776,12,FALSE),0) -> 0 | S72: =IFERROR(VLOOKUP($A72,ENEMT!$A$1:$O$1776,15,FALSE),0) -> 0 | AP72: =IFERROR(VLOOKUP($A72,ENEFN!$A$1:$N$1776,6,FALSE),0) -> 0 | AQ72: =IFERROR(VLOOKUP($A72,ENEFN!$A$1:$N$1776,10,FALSE),0) -> 0
A73: 206-000-049-0001 | C73: 206 | D73: 94 | E73: 14 | F73: 000 | G73: 001 | H73: 000 | J73: 000-049-0001 | K73: Documento | L73: =IFERROR(VLOOKUP($A73,ENEMT!$A$1:$O$1776,11,FALSE),0) -> 0 | M73: 0 | N73: 0 | O73: =IFERROR(VLOOKUP($A73,ENEFN!$A$2:$N$1776,5,FALSE),0) -> 0 | P73: 0 | Q73: 0 | R73: =IFERROR(VLOOKUP($A73,ENEMT!$A$1:$O$1776,12,FALSE),0) -> 0 | S73: =IFERROR(VLOOKUP($A73,ENEMT!$A$1:$O$1776,15,FALSE),0) -> 0 | AP73: =IFERROR(VLOOKUP($A73,ENEFN!$A$1:$N$1776,6,FALSE),0) -> 0 | AQ73: =IFERROR(VLOOKUP($A73,ENEFN!$A$1:$N$1776,10,FALSE),0) -> 0
A74: =CONCATENATE(C74,"-",J74) -> 206- | C74: 206 | D74: 94 | E74: 15 | F74: 000 | G74: 001 | H74: 000 | I74: 000-051 | K74: Documento | L74: =IFERROR(VLOOKUP($A74,ENEMT!$A$1:$O$1776,11,FALSE),0) -> 0 | M74: =+L74+R74+T74+V74+X74+Z74+AB74+AD74+AF74+AH74+AJ74+AL74+AN74 -> 0 | N74: =+S74+U74+W74+Y74+AA74+AC74+AE74+AG74+AI74+AK74+AM74+AO74 -> 0 | O74: =IFERROR(VLOOKUP($A74,ENEFN!$A$2:$N$1776,5,FALSE),0) -> 0 | P74: =+O74+AP74+AR74+AT74+AV74+AX74+AZ74+BB74+BD74+BF74+BH74+BJ74+BL74 -> 0 | Q74: =+AQ74+AS74+AU74+AW74+AY74+BA74+BC74+BE74+BG74+BI74+BK74+BM74 -> 0 | R74: =IFERROR(VLOOKUP($A74,ENEMT!$A$1:$O$1776,12,FALSE),0) -> 0 | S74: =IFERROR(VLOOKUP($A74,ENEMT!$A$1:$O$1776,15,FALSE),0) -> 0 | AP74: =IFERROR(VLOOKUP($A74,ENEFN!$A$1:$N$1776,6,FALSE),0) -> 0 | AQ74: =IFERROR(VLOOKUP($A74,ENEFN!$A$1:$N$1776,10,FALSE),0) -> 0
A75: 206-000-051-0001 | C75: 206 | D75: 94 | E75: 15 | F75: 000 | G75: 001 | H75: 000 | J75: 000-051-0001 | K75: Documento | L75: =IFERROR(VLOOKUP($A75,ENEMT!$A$1:$O$1776,11,FALSE),0) -> 0 | M75: 0 | N75: 0 | O75: =IFERROR(VLOOKUP($A75,ENEFN!$A$2:$N$1776,5,FALSE),0) -> 0 | P75: 0 | Q75: 0 | R75: =IFERROR(VLOOKUP($A75,ENEMT!$A$1:$O$1776,12,FALSE),0) -> 0 | S75: =IFERROR(VLOOKUP($A75,ENEMT!$A$1:$O$1776,15,FALSE),0) -> 0 | AP75: =IFERROR(VLOOKUP($A75,ENEFN!$A$1:$N$1776,6,FALSE),0) -> 0 | AQ75: =IFERROR(VLOOKUP($A75,ENEFN!$A$1:$N$1776,10,FALSE),0) -> 0
A76: 207- | C76: 207 | D76: 15 | E76: 00 | F76: 000 | G76: 001 | H76: 000 | I76: 000-019 | K76: Evento | L76: =IFERROR(VLOOKUP($A76,ENEMT!$A$1:$O$1776,11,FALSE),0) -> 0 | M76: 0 | N76: 0 | O76: =IFERROR(VLOOKUP($A76,ENEFN!$A$2:$N$1776,5,FALSE),0) -> 0 | P76: 0 | Q76: 0 | R76: =IFERROR(VLOOKUP($A76,ENEMT!$A$1:$O$1776,12,FALSE),0) -> 0 | S76: =IFERROR(VLOOKUP($A76,ENEMT!$A$1:$O$1776,15,FALSE),0) -> 0 | AP76: =IFERROR(VLOOKUP($A76,ENEFN!$A$1:$N$1776,6,FALSE),0) -> 0 | AQ76: =IFERROR(VLOOKUP($A76,ENEFN!$A$1:$N$1776,10,FALSE),0) -> 0
A77: 207-000-019-0001 | C77: 207 | D77: 15 | E77: 00 | F77: 000 | G77: 001 | H77: 000 | J77: 000-019-0001 | K77: Evento | L77: =IFERROR(VLOOKUP($A77,ENEMT!$A$1:$O$1776,11,FALSE),0) -> 233 | M77: 233 | N77: 73 | O77: =IFERROR(VLOOKUP($A77,ENEFN!$A$2:$N$1776,5,FALSE),0) -> 8687812 | P77: 8687812 | Q77: 193633.53 | R77: =IFERROR(VLOOKUP($A77,ENEMT!$A$1:$O$1776,12,FALSE),0) -> 0 | S77: =IFERROR(VLOOKUP($A77,ENEMT!$A$1:$O$1776,15,FALSE),0) -> 73 | AP77: =IFERROR(VLOOKUP($A77,ENEFN!$A$1:$N$1776,6,FALSE),0) -> 0 | AQ77: =IFERROR(VLOOKUP($A77,ENEFN!$A$1:$N$1776,10,FALSE),0) -> 193633.53
A78: 207- | C78: 207 | D78: 15 | E78: 00 | F78: 000 | G78: 002 | H78: 000 | I78: 000-020 | K78: Persona | L78: =IFERROR(VLOOKUP($A78,ENEMT!$A$1:$O$1776,11,FALSE),0) -> 0 | M78: 0 | N78: 0 | O78: =IFERROR(VLOOKUP($A78,ENEFN!$A$2:$N$1776,5,FALSE),0) -> 0 | P78: 0 | Q78: 0 | R78: =IFERROR(VLOOKUP($A78,ENEMT!$A$1:$O$1776,12,FALSE),0) -> 0 | S78: =IFERROR(VLOOKUP($A78,ENEMT!$A$1:$O$1776,15,FALSE),0) -> 0 | AP78: =IFERROR(VLOOKUP($A78,ENEFN!$A$1:$N$1776,6,FALSE),0) -> 0 | AQ78: =IFERROR(VLOOKUP($A78,ENEFN!$A$1:$N$1776,10,FALSE),0) -> 0
A79: 207-000-020-0003 | C79: 207 | D79: 15 | E79: 00 | F79: 000 | G79: 002 | H79: 000 | J79: 000-020-0003 | K79: Persona | L79: =IFERROR(VLOOKUP($A79,ENEMT!$A$1:$O$1776,11,FALSE),0) -> 790 | M79: 790 | N79: 80 | O79: =IFERROR(VLOOKUP($A79,ENEFN!$A$2:$N$1776,5,FALSE),0) -> 2055172 | P79: 2055172 | Q79: 0 | R79: =IFERROR(VLOOKUP($A79,ENEMT!$A$1:$O$1776,12,FALSE),0) -> 0 | S79: =IFERROR(VLOOKUP($A79,ENEMT!$A$1:$O$1776,15,FALSE),0) -> 80 | AP79: =IFERROR(VLOOKUP($A79,ENEFN!$A$1:$N$1776,6,FALSE),0) -> 0 | AQ79: =IFERROR(VLOOKUP($A79,ENEFN!$A$1:$N$1776,10,FALSE),0) -> 0
A80: 207-000-020-0004 | C80: 207 | D80: 15 | E80: 00 | F80: 000 | G80: 002 | H80: 000 | J80: 000-020-0004 | K80: Persona | L80: =IFERROR(VLOOKUP($A80,ENEMT!$A$1:$O$1776,11,FALSE),0) -> 3 | M80: 3 | N80: 0 | O80: =IFERROR(VLOOKUP($A80,ENEFN!$A$2:$N$1776,5,FALSE),0) -> 45000 | P80: 45000 | Q80: 0 | R80: =IFERROR(VLOOKUP($A80,ENEMT!$A$1:$O$1776,12,FALSE),0) -> 0 | S80: =IFERROR(VLOOKUP($A80,ENEMT!$A$1:$O$1776,15,FALSE),0) -> 0 | AP80: =IFERROR(VLOOKUP($A80,ENEFN!$A$1:$N$1776,6,FALSE),0) -> 0 | AQ80: =IFERROR(VLOOKUP($A80,ENEFN!$A$1:$N$1776,10,FALSE),0) -> 0
A81: 207-000-020-0005 | C81: 207 | D81: 15 | E81: 00 | F81: 000 | G81: 002 | H81: 000 | J81: 000-020-0005 | K81: Persona | L81: =IFERROR(VLOOKUP($A81,ENEMT!$A$1:$O$1776,11,FALSE),0) -> 204 | M81: 204 | N81: 20 | O81: =IFERROR(VLOOKUP($A81,ENEFN!$A$2:$N$1776,5,FALSE),0) -> 50000 | P81: 50000 | Q81: 0 | R81: =IFERROR(VLOOKUP($A81,ENEMT!$A$1:$O$1776,12,FALSE),0) -> 0 | S81: =IFERROR(VLOOKUP($A81,ENEMT!$A$1:$O$1776,15,FALSE),0) -> 20 | AP81: =IFERROR(VLOOKUP($A81,ENEFN!$A$1:$N$1776,6,FALSE),0) -> 0 | AQ81: =IFERROR(VLOOKUP($A81,ENEFN!$A$1:$N$1776,10,FALSE),0) -> 0
A82: 207- | C82: 207 | D82: 15 | E82: 00 | F82: 000 | G82: 003 | H82: 000 | I82: 000-021 | K82: Evento | L82: =IFERROR(VLOOKUP($A82,ENEMT!$A$1:$O$1776,11,FALSE),0) -> 0 | M82: 0 | N82: 0 | O82: =IFERROR(VLOOKUP($A82,ENEFN!$A$2:$N$1776,5,FALSE),0) -> 0 | P82: 0 | Q82: 0 | R82: =IFERROR(VLOOKUP($A82,ENEMT!$A$1:$O$1776,12,FALSE),0) -> 0 | S82: =IFERROR(VLOOKUP($A82,ENEMT!$A$1:$O$1776,15,FALSE),0) -> 0 | AP82: =IFERROR(VLOOKUP($A82,ENEFN!$A$1:$N$1776,6,FALSE),0) -> 0 | AQ82: =IFERROR(VLOOKUP($A82,ENEFN!$A$1:$N$1776,10,FALSE),0) -> 0
A83: 207-000-021-0001 | C83: 207 | D83: 15 | E83: 00 | F83: 000 | G83: 003 | H83: 000 | J83: 000-021-0001 | K83: Evento | L83: =IFERROR(VLOOKUP($A83,ENEMT!$A$1:$O$1776,11,FALSE),0) -> 2818 | M83: 2818 | N83: 235 | O83: =IFERROR(VLOOKUP($A83,ENEFN!$A$2:$N$1776,5,FALSE),0) -> 129476 | P83: 129476 | Q83: 0 | R83: =IFERROR(VLOOKUP($A83,ENEMT!$A$1:$O$1776,12,FALSE),0) -> 0 | S83: =IFERROR(VLOOKUP($A83,ENEMT!$A$1:$O$1776,15,FALSE),0) -> 235 | AP83: =IFERROR(VLOOKUP($A83,ENEFN!$A$1:$N$1776,6,FALSE),0) -> 0 | AQ83: =IFERROR(VLOOKUP($A83,ENEFN!$A$1:$N$1776,10,FALSE),0) -> 0
A84: 207-000-021-0002 | C84: 207 | D84: 15 | E84: 00 | F84: 000 | G84: 003 | H84: 000 | J84: 000-021-0002 | K84: Evento | L84: =IFERROR(VLOOKUP($A84,ENEMT!$A$1:$O$1776,11,FALSE),0) -> 11880 | M84: 11880 | N84: 951 | O84: =IFERROR(VLOOKUP($A84,ENEFN!$A$2:$N$1776,5,FALSE),0) -> 1386359 | P84: 1386359 | Q84: 110293.54 | R84: =IFERROR(VLOOKUP($A84,ENEMT!$A$1:$O$1776,12,FALSE),0) -> 0 | S84: =IFERROR(VLOOKUP($A84,ENEMT!$A$1:$O$1776,15,FALSE),0) -> 951 | AP84: =IFERROR(VLOOKUP($A84,ENEFN!$A$1:$N$1776,6,FALSE),0) -> 0 | AQ84: =IFERROR(VLOOKUP($A84,ENEFN!$A$1:$N$1776,10,FALSE),0) -> 110293.54
A85: 207-000-021-0003 | C85: 207 | D85: 15 | E85: 00 | F85: 000 | G85: 003 | H85: 000 | J85: 000-021-0003 | K85: Evento | L85: =IFERROR(VLOOKUP($A85,ENEMT!$A$1:$O$1776,11,FALSE),0) -> 40300 | M85: 104300 | N85: 3425 | O85: =IFERROR(VLOOKUP($A85,ENEFN!$A$2:$N$1776,5,FALSE),0) -> 3192171 | P85: 3192171 | Q85: 115515.5 | R85: =IFERROR(VLOOKUP($A85,ENEMT!$A$1:$O$1776,12,FALSE),0) -> 64000 | S85: =IFERROR(VLOOKUP($A85,ENEMT!$A$1:$O$1776,15,FALSE),0) -> 3425 | AP85: =IFERROR(VLOOKUP($A85,ENEFN!$A$1:$N$1776,6,FALSE),0) -> 0 | AQ85: =IFERROR(VLOOKUP($A85,ENEFN!$A$1:$N$1776,10,FALSE),0) -> 115515.5
A86: 208- | C86: 208 | D86: 21 | E86: 00 | F86: 000 | G86: 001 | H86: 000 | I86: 000-024 | K86: Evento | L86: =IFERROR(VLOOKUP($A86,ENEMT!$A$1:$O$1776,11,FALSE),0) -> 0 | M86: 0 | N86: 0 | O86: =IFERROR(VLOOKUP($A86,ENEFN!$A$2:$N$1776,5,FALSE),0) -> 0 | P86: 0 | Q86: 0 | R86: =IFERROR(VLOOKUP($A86,ENEMT!$A$1:$O$1776,12,FALSE),0) -> 0 | S86: =IFERROR(VLOOKUP($A86,ENEMT!$A$1:$O$1776,15,FALSE),0) -> 0 | AP86: =IFERROR(VLOOKUP($A86,ENEFN!$A$1:$N$1776,6,FALSE),0) -> 0 | AQ86: =IFERROR(VLOOKUP($A86,ENEFN!$A$1:$N$1776,10,FALSE),0) -> 0
A87: 208-000-024-0001 | C87: 208 | D87: 21 | E87: 00 | F87: 000 | G87: 001 | H87: 000 | J87: 000-024-0001 | K87: Evento | L87: =IFERROR(VLOOKUP($A87,ENEMT!$A$1:$O$1776,11,FALSE),0) -> 218 | M87: 218 | N87: 39 | O87: =IFERROR(VLOOKUP($A87,ENEFN!$A$2:$N$1776,5,FALSE),0) -> 8433472 | P87: 8433472 | Q87: 13840.71 | R87: =IFERROR(VLOOKUP($A87,ENEMT!$A$1:$O$1776,12,FALSE),0) -> 0 | S87: =IFERROR(VLOOKUP($A87,ENEMT!$A$1:$O$1776,15,FALSE),0) -> 39 | AP87: =IFERROR(VLOOKUP($A87,ENEFN!$A$1:$N$1776,6,FALSE),0) -> 0 | AQ87: =IFERROR(VLOOKUP($A87,ENEFN!$A$1:$N$1776,10,FALSE),0) -> 13840.71
A88: 208- | C88: 208 | D88: 21 | E88: 00 | F88: 000 | G88: 002 | H88: 000 | I88: 000-025 | K88: Entidad | L88: =IFERROR(VLOOKUP($A88,ENEMT!$A$1:$O$1776,11,FALSE),0) -> 0 | M88: 0 | N88: 0 | O88: =IFERROR(VLOOKUP($A88,ENEFN!$A$2:$N$1776,5,FALSE),0) -> 0 | P88: 0 | Q88: 0 | R88: =IFERROR(VLOOKUP($A88,ENEMT!$A$1:$O$1776,12,FALSE),0) -> 0 | S88: =IFERROR(VLOOKUP($A88,ENEMT!$A$1:$O$1776,15,FALSE),0) -> 0 | AP88: =IFERROR(VLOOKUP($A88,ENEFN!$A$1:$N$1776,6,FALSE),0) -> 0 | AQ88: =IFERROR(VLOOKUP($A88,ENEFN!$A$1:$N$1776,10,FALSE),0) -> 0
A89: 208-000-025-0001 | C89: 208 | D89: 21 | E89: 00 | F89: 000 | G89: 002 | H89: 000 | J89: 000-025-0001 | K89: Entidad | L89: =IFERROR(VLOOKUP($A89,ENEMT!$A$1:$O$1776,11,FALSE),0) -> 2814 | M89: 2814 | N89: 64 | O89: =IFERROR(VLOOKUP($A89,ENEFN!$A$2:$N$1776,5,FALSE),0) -> 808467 | P89: 808467 | Q89: 0 | R89: =IFERROR(VLOOKUP($A89,ENEMT!$A$1:$O$1776,12,FALSE),0) -> 0 | S89: =IFERROR(VLOOKUP($A89,ENEMT!$A$1:$O$1776,15,FALSE),0) -> 64 | AP89: =IFERROR(VLOOKUP($A89,ENEFN!$A$1:$N$1776,6,FALSE),0) -> 0 | AQ89: =IFERROR(VLOOKUP($A89,ENEFN!$A$1:$N$1776,10,FALSE),0) -> 0
A90: 208-000-025-0002 | C90: 208 | D90: 21 | E90: 00 | F90: 000 | G90: 002 | H90: 000 | J90: 000-025-0002 | K90: Entidad | L90: =IFERROR(VLOOKUP($A90,ENEMT!$A$1:$O$1776,11,FALSE),0) -> 26 | M90: 26 | N90: 0 | O90: =IFERROR(VLOOKUP($A90,ENEFN!$A$2:$N$1776,5,FALSE),0) -> 568018 | P90: 568018 | Q90: 0 | R90: =IFERROR(VLOOKUP($A90,ENEMT!$A$1:$O$1776,12,FALSE),0) -> 0 | S90: =IFERROR(VLOOKUP($A90,ENEMT!$A$1:$O$1776,15,FALSE),0) -> 0 | AP90: =IFERROR(VLOOKUP($A90,ENEFN!$A$1:$N$1776,6,FALSE),0) -> 0 | AQ90: =IFERROR(VLOOKUP($A90,ENEFN!$A$1:$N$1776,10,FALSE),0) -> 0
A91: 208-000-025-0005 | C91: 208 | D91: 21 | E91: 00 | F91: 000 | G91: 002 | H91: 000 | J91: 000-025-0005 | K91: Entidad | L91: =IFERROR(VLOOKUP($A91,ENEMT!$A$1:$O$1776,11,FALSE),0) -> 118 | M91: 118 | N91: 0 | O91: =IFERROR(VLOOKUP($A91,ENEFN!$A$2:$N$1776,5,FALSE),0) -> 474910 | P91: 474910 | Q91: 0 | R91: =IFERROR(VLOOKUP($A91,ENEMT!$A$1:$O$1776,12,FALSE),0) -> 0 | S91: =IFERROR(VLOOKUP($A91,ENEMT!$A$1:$O$1776,15,FALSE),0) -> 0 | AP91: =IFERROR(VLOOKUP($A91,ENEFN!$A$1:$N$1776,6,FALSE),0) -> 0 | AQ91: =IFERROR(VLOOKUP($A91,ENEFN!$A$1:$N$1776,10,FALSE),0) -> 0
A92: 209- | C92: 209 | D92: 99 | E92: 00 | F92: 000 | G92: 002 | H92: 000 | I92: 000-005 | K92: Aporte | L92: =IFERROR(VLOOKUP($A92,ENEMT!$A$1:$O$1776,11,FALSE),0) -> 0 | M92: 0 | N92: 0 | O92: =IFERROR(VLOOKUP($A92,ENEFN!$A$2:$N$1776,5,FALSE),0) -> 0 | P92: 0 | Q92: 0 | R92: =IFERROR(VLOOKUP($A92,ENEMT!$A$1:$O$1776,12,FALSE),0) -> 0 | S92: =IFERROR(VLOOKUP($A92,ENEMT!$A$1:$O$1776,15,FALSE),0) -> 0 | AP92: =IFERROR(VLOOKUP($A92,ENEFN!$A$1:$N$1776,6,FALSE),0) -> 0 | AQ92: =IFERROR(VLOOKUP($A92,ENEFN!$A$1:$N$1776,10,FALSE),0) -> 0
A93: 209-000-005-0001 | C93: 209 | D93: 99 | E93: 00 | F93: 000 | G93: 002 | H93: 000 | J93: 000-005-0001 | K93: Aporte | L93: =IFERROR(VLOOKUP($A93,ENEMT!$A$1:$O$1776,11,FALSE),0) -> 2 | M93: 2 | N93: 0 | O93: =IFERROR(VLOOKUP($A93,ENEFN!$A$2:$N$1776,5,FALSE),0) -> 168000 | P93: 168000 | Q93: 0 | R93: =IFERROR(VLOOKUP($A93,ENEMT!$A$1:$O$1776,12,FALSE),0) -> 0 | S93: =IFERROR(VLOOKUP($A93,ENEMT!$A$1:$O$1776,15,FALSE),0) -> 0 | AP93: =IFERROR(VLOOKUP($A93,ENEFN!$A$1:$N$1776,6,FALSE),0) -> 0 | AQ93: =IFERROR(VLOOKUP($A93,ENEFN!$A$1:$N$1776,10,FALSE),0) -> 0
A94: 209- | C94: 209 | D94: 99 | E94: 00 | F94: 000 | G94: 003 | H94: 000 | I94: 000-006 | K94: Aporte | L94: =IFERROR(VLOOKUP($A94,ENEMT!$A$1:$O$1776,11,FALSE),0) -> 0 | M94: 0 | N94: 0 | O94: =IFERROR(VLOOKUP($A94,ENEFN!$A$2:$N$1776,5,FALSE),0) -> 0 | P94: 0 | Q94: 0 | R94: =IFERROR(VLOOKUP($A94,ENEMT!$A$1:$O$1776,12,FALSE),0) -> 0 | S94: =IFERROR(VLOOKUP($A94,ENEMT!$A$1:$O$1776,15,FALSE),0) -> 0 | AP94: =IFERROR(VLOOKUP($A94,ENEFN!$A$1:$N$1776,6,FALSE),0) -> 0 | AQ94: =IFERROR(VLOOKUP($A94,ENEFN!$A$1:$N$1776,10,FALSE),0) -> 0
A95: 209-000-006-0001 | C95: 209 | D95: 99 | E95: 00 | F95: 000 | G95: 003 | H95: 000 | J95: 000-006-0001 | K95: Aporte | L95: =IFERROR(VLOOKUP($A95,ENEMT!$A$1:$O$1776,11,FALSE),0) -> 2 | M95: 2 | N95: 0 | O95: =IFERROR(VLOOKUP($A95,ENEFN!$A$2:$N$1776,5,FALSE),0) -> 208000 | P95: 208000 | Q95: 0 | R95: =IFERROR(VLOOKUP($A95,ENEMT!$A$1:$O$1776,12,FALSE),0) -> 0 | S95: =IFERROR(VLOOKUP($A95,ENEMT!$A$1:$O$1776,15,FALSE),0) -> 0 | AP95: =IFERROR(VLOOKUP($A95,ENEFN!$A$1:$N$1776,6,FALSE),0) -> 0 | AQ95: =IFERROR(VLOOKUP($A95,ENEFN!$A$1:$N$1776,10,FALSE),0) -> 0
A96: 209- | C96: 209 | D96: 16 | E96: 00 | F96: 000 | G96: 001 | H96: 000 | I96: 020-006 | K96: Evento | L96: =IFERROR(VLOOKUP($A96,ENEMT!$A$1:$O$1776,11,FALSE),0) -> 0 | M96: 0 | N96: 0 | O96: =IFERROR(VLOOKUP($A96,ENEFN!$A$2:$N$1776,5,FALSE),0) -> 0 | P96: 0 | Q96: 0 | R96: =IFERROR(VLOOKUP($A96,ENEMT!$A$1:$O$1776,12,FALSE),0) -> 0 | S96: =IFERROR(VLOOKUP($A96,ENEMT!$A$1:$O$1776,15,FALSE),0) -> 0 | AP96: =IFERROR(VLOOKUP($A96,ENEFN!$A$1:$N$1776,6,FALSE),0) -> 0 | AQ96: =IFERROR(VLOOKUP($A96,ENEFN!$A$1:$N$1776,10,FALSE),0) -> 0
A97: 209-020-006-0001 | C97: 209 | D97: 16 | E97: 00 | F97: 000 | G97: 001 | H97: 000 | J97: 020-006-0001 | K97: Evento | L97: =IFERROR(VLOOKUP($A97,ENEMT!$A$1:$O$1776,11,FALSE),0) -> 850 | M97: 806 | N97: 0 | O97: =IFERROR(VLOOKUP($A97,ENEFN!$A$2:$N$1776,5,FALSE),0) -> 15193176 | P97: 15193176 | Q97: 100137.34 | R97: =IFERROR(VLOOKUP($A97,ENEMT!$A$1:$O$1776,12,FALSE),0) -> -44 | S97: =IFERROR(VLOOKUP($A97,ENEMT!$A$1:$O$1776,15,FALSE),0) -> 0 | AP97: =IFERROR(VLOOKUP($A97,ENEFN!$A$1:$N$1776,6,FALSE),0) -> 0 | AQ97: =IFERROR(VLOOKUP($A97,ENEFN!$A$1:$N$1776,10,FALSE),0) -> 100137.34
A98: 209- | C98: 209 | D98: 16 | E98: 00 | F98: 000 | G98: 002 | H98: 000 | I98: 020-007 | K98: Documento | L98: =IFERROR(VLOOKUP($A98,ENEMT!$A$1:$O$1776,11,FALSE),0) -> 0 | M98: 0 | N98: 0 | O98: =IFERROR(VLOOKUP($A98,ENEFN!$A$2:$N$1776,5,FALSE),0) -> 0 | P98: 0 | Q98: 0 | R98: =IFERROR(VLOOKUP($A98,ENEMT!$A$1:$O$1776,12,FALSE),0) -> 0 | S98: =IFERROR(VLOOKUP($A98,ENEMT!$A$1:$O$1776,15,FALSE),0) -> 0 | AP98: =IFERROR(VLOOKUP($A98,ENEFN!$A$1:$N$1776,6,FALSE),0) -> 0 | AQ98: =IFERROR(VLOOKUP($A98,ENEFN!$A$1:$N$1776,10,FALSE),0) -> 0
A99: 209-020-007-0001 | C99: 209 | D99: 16 | E99: 00 | F99: 000 | G99: 002 | H99: 000 | J99: 020-007-0001 | K99: Documento | L99: =IFERROR(VLOOKUP($A99,ENEMT!$A$1:$O$1776,11,FALSE),0) -> 12763 | M99: 11590 | N99: 0 | O99: =IFERROR(VLOOKUP($A99,ENEFN!$A$2:$N$1776,5,FALSE),0) -> 14190894 | P99: 14190894 | Q99: 5668.39 | R99: =IFERROR(VLOOKUP($A99,ENEMT!$A$1:$O$1776,12,FALSE),0) -> -1173 | S99: =IFERROR(VLOOKUP($A99,ENEMT!$A$1:$O$1776,15,FALSE),0) -> 0 | AP99: =IFERROR(VLOOKUP($A99,ENEFN!$A$1:$N$1776,6,FALSE),0) -> 0 | AQ99: =IFERROR(VLOOKUP($A99,ENEFN!$A$1:$N$1776,10,FALSE),0) -> 5668.39
A100: 209-020-007-0002 | C100: 209 | D100: 16 | E100: 00 | F100: 000 | G100: 002 | H100: 000 | J100: 020-007-0002 | K100: Documento | L100: =IFERROR(VLOOKUP($A100,ENEMT!$A$1:$O$1776,11,FALSE),0) -> 3344 | M100: 2259 | N100: 0 | O100: =IFERROR(VLOOKUP($A100,ENEFN!$A$2:$N$1776,5,FALSE),0) -> 710966 | P100: 710966 | Q100: 470.32 | R100: =IFERROR(VLOOKUP($A100,ENEMT!$A$1:$O$1776,12,FALSE),0) -> -1085 | S100: =IFERROR(VLOOKUP($A100,ENEMT!$A$1:$O$1776,15,FALSE),0) -> 0 | AP100: =IFERROR(VLOOKUP($A100,ENEFN!$A$1:$N$1776,6,FALSE),0) -> 0 | AQ100: =IFERROR(VLOOKUP($A100,ENEFN!$A$1:$N$1776,10,FALSE),0) -> 470.32
A101: 209- | C101: 209 | D101: 16 | E101: 00 | F101: 000 | G101: 003 | H101: 000 | I101: 020-008 | K101: Documento | L101: =IFERROR(VLOOKUP($A101,ENEMT!$A$1:$O$1776,11,FALSE),0) -> 0 | M101: 0 | N101: 0 | O101: =IFERROR(VLOOKUP($A101,ENEFN!$A$2:$N$1776,5,FALSE),0) -> 0 | P101: 0 | Q101: 0 | R101: =IFERROR(VLOOKUP($A101,ENEMT!$A$1:$O$1776,12,FALSE),0) -> 0 | S101: =IFERROR(VLOOKUP($A101,ENEMT!$A$1:$O$1776,15,FALSE),0) -> 0 | AP101: =IFERROR(VLOOKUP($A101,ENEFN!$A$1:$N$1776,6,FALSE),0) -> 0 | AQ101: =IFERROR(VLOOKUP($A101,ENEFN!$A$1:$N$1776,10,FALSE),0) -> 0
A102: 209-020-008-0001 | C102: 209 | D102: 16 | E102: 00 | F102: 000 | G102: 003 | H102: 000 | J102: 020-008-0001 | K102: Documento | L102: =IFERROR(VLOOKUP($A102,ENEMT!$A$1:$O$1776,11,FALSE),0) -> 3872 | M102: 5947 | N102: 0 | O102: =IFERROR(VLOOKUP($A102,ENEFN!$A$2:$N$1776,5,FALSE),0) -> 3746500 | P102: 3746500 | Q102: 0 | R102: =IFERROR(VLOOKUP($A102,ENEMT!$A$1:$O$1776,12,FALSE),0) -> 2075 | S102: =IFERROR(VLOOKUP($A102,ENEMT!$A$1:$O$1776,15,FALSE),0) -> 0 | AP102: =IFERROR(VLOOKUP($A102,ENEFN!$A$1:$N$1776,6,FALSE),0) -> 0 | AQ102: =IFERROR(VLOOKUP($A102,ENEFN!$A$1:$N$1776,10,FALSE),0) -> 0
A103: 209-020-008-0002 | C103: 209 | D103: 16 | E103: 00 | F103: 000 | G103: 003 | H103: 000 | J103: 020-008-0002 | K103: Documento | L103: =IFERROR(VLOOKUP($A103,ENEMT!$A$1:$O$1776,11,FALSE),0) -> 4228 | M103: 6036 | N103: 0 | O103: =IFERROR(VLOOKUP($A103,ENEFN!$A$2:$N$1776,5,FALSE),0) -> 1172097 | P103: 1172097 | Q103: 0 | R103: =IFERROR(VLOOKUP($A103,ENEMT!$A$1:$O$1776,12,FALSE),0) -> 1808 | S103: =IFERROR(VLOOKUP($A103,ENEMT!$A$1:$O$1776,15,FALSE),0) -> 0 | AP103: =IFERROR(VLOOKUP($A103,ENEFN!$A$1:$N$1776,6,FALSE),0) -> 0 | AQ103: =IFERROR(VLOOKUP($A103,ENEFN!$A$1:$N$1776,10,FALSE),0) -> 0
A104: 209- | C104: 209 | D104: 16 | E104: 00 | F104: 000 | G104: 004 | H104: 000 | I104: 020-009 | K104: Documento | L104: =IFERROR(VLOOKUP($A104,ENEMT!$A$1:$O$1776,11,FALSE),0) -> 0 | M104: 0 | N104: 0 | O104: =IFERROR(VLOOKUP($A104,ENEFN!$A$2:$N$1776,5,FALSE),0) -> 0 | P104: 0 | Q104: 0 | R104: =IFERROR(VLOOKUP($A104,ENEMT!$A$1:$O$1776,12,FALSE),0) -> 0 | S104: =IFERROR(VLOOKUP($A104,ENEMT!$A$1:$O$1776,15,FALSE),0) -> 0 | AP104: =IFERROR(VLOOKUP($A104,ENEFN!$A$1:$N$1776,6,FALSE),0) -> 0 | AQ104: =IFERROR(VLOOKUP($A104,ENEFN!$A$1:$N$1776,10,FALSE),0) -> 0
A105: 209-020-009-0001 | C105: 209 | D105: 16 | E105: 00 | F105: 000 | G105: 004 | H105: 000 | J105: 020-009-0001 | K105: Documento | L105: =IFERROR(VLOOKUP($A105,ENEMT!$A$1:$O$1776,11,FALSE),0) -> 3265 | M105: 4400 | N105: 0 | O105: =IFERROR(VLOOKUP($A105,ENEFN!$A$2:$N$1776,5,FALSE),0) -> 5748425 | P105: 5748425 | Q105: 658.46 | R105: =IFERROR(VLOOKUP($A105,ENEMT!$A$1:$O$1776,12,FALSE),0) -> 1135 | S105: =IFERROR(VLOOKUP($A105,ENEMT!$A$1:$O$1776,15,FALSE),0) -> 0 | AP105: =IFERROR(VLOOKUP($A105,ENEFN!$A$1:$N$1776,6,FALSE),0) -> 0 | AQ105: =IFERROR(VLOOKUP($A105,ENEFN!$A$1:$N$1776,10,FALSE),0) -> 658.46
A106: 209-020-009-0002 | C106: 209 | D106: 16 | E106: 00 | F106: 000 | G106: 004 | H106: 000 | J106: 020-009-0002 | K106: Documento | L106: =IFERROR(VLOOKUP($A106,ENEMT!$A$1:$O$1776,11,FALSE),0) -> 2985 | M106: 2956 | N106: 0 | O106: =IFERROR(VLOOKUP($A106,ENEFN!$A$2:$N$1776,5,FALSE),0) -> 8542513 | P106: 8542513 | Q106: 0 | R106: =IFERROR(VLOOKUP($A106,ENEMT!$A$1:$O$1776,12,FALSE),0) -> -29 | S106: =IFERROR(VLOOKUP($A106,ENEMT!$A$1:$O$1776,15,FALSE),0) -> 0 | AP106: =IFERROR(VLOOKUP($A106,ENEFN!$A$1:$N$1776,6,FALSE),0) -> 0 | AQ106: =IFERROR(VLOOKUP($A106,ENEFN!$A$1:$N$1776,10,FALSE),0) -> 0
A107: 209-020-009-0003 | C107: 209 | D107: 16 | E107: 00 | F107: 000 | G107: 004 | H107: 000 | J107: 020-009-0003 | K107: Documento | L107: =IFERROR(VLOOKUP($A107,ENEMT!$A$1:$O$1776,11,FALSE),0) -> 3258 | M107: 2260 | N107: 0 | O107: =IFERROR(VLOOKUP($A107,ENEFN!$A$2:$N$1776,5,FALSE),0) -> 402266 | P107: 402266 | Q107: 1470.72 | R107: =IFERROR(VLOOKUP($A107,ENEMT!$A$1:$O$1776,12,FALSE),0) -> -998 | S107: =IFERROR(VLOOKUP($A107,ENEMT!$A$1:$O$1776,15,FALSE),0) -> 0 | AP107: =IFERROR(VLOOKUP($A107,ENEFN!$A$1:$N$1776,6,FALSE),0) -> 0 | AQ107: =IFERROR(VLOOKUP($A107,ENEFN!$A$1:$N$1776,10,FALSE),0) -> 1470.72
A108: 210- | C108: 210 | D108: 99 | E108: 00 | F108: 000 | G108: 002 | H108: 000 | I108: 000-005 | K108: Aporte | L108: =IFERROR(VLOOKUP($A108,ENEMT!$A$1:$O$1776,11,FALSE),0) -> 0 | M108: 0 | N108: 0 | O108: =IFERROR(VLOOKUP($A108,ENEFN!$A$2:$N$1776,5,FALSE),0) -> 0 | P108: 0 | Q108: 0 | R108: =IFERROR(VLOOKUP($A108,ENEMT!$A$1:$O$1776,12,FALSE),0) -> 0 | S108: =IFERROR(VLOOKUP($A108,ENEMT!$A$1:$O$1776,15,FALSE),0) -> 0 | AP108: =IFERROR(VLOOKUP($A108,ENEFN!$A$1:$N$1776,6,FALSE),0) -> 0 | AQ108: =IFERROR(VLOOKUP($A108,ENEFN!$A$1:$N$1776,10,FALSE),0) -> 0
A109: 210-000-005-0001 | C109: 210 | D109: 99 | E109: 00 | F109: 000 | G109: 002 | H109: 000 | J109: 000-005-0001 | K109: Aporte | L109: =IFERROR(VLOOKUP($A109,ENEMT!$A$1:$O$1776,11,FALSE),0) -> 3 | M109: 2 | N109: 0 | O109: =IFERROR(VLOOKUP($A109,ENEFN!$A$2:$N$1776,5,FALSE),0) -> 615180 | P109: 615180 | Q109: 0 | R109: =IFERROR(VLOOKUP($A109,ENEMT!$A$1:$O$1776,12,FALSE),0) -> -1 | S109: =IFERROR(VLOOKUP($A109,ENEMT!$A$1:$O$1776,15,FALSE),0) -> 0 | AP109: =IFERROR(VLOOKUP($A109,ENEFN!$A$1:$N$1776,6,FALSE),0) -> 0 | AQ109: =IFERROR(VLOOKUP($A109,ENEFN!$A$1:$N$1776,10,FALSE),0) -> 0
A110: 210- | C110: 210 | D110: 17 | E110: 00 | F110: 000 | G110: 001 | H110: 000 | I110: 000-029 | K110: Evento | L110: =IFERROR(VLOOKUP($A110,ENEMT!$A$1:$O$1776,11,FALSE),0) -> 0 | M110: 0 | N110: 0 | O110: =IFERROR(VLOOKUP($A110,ENEFN!$A$2:$N$1776,5,FALSE),0) -> 0 | P110: 0 | Q110: 0 | R110: =IFERROR(VLOOKUP($A110,ENEMT!$A$1:$O$1776,12,FALSE),0) -> 0 | S110: =IFERROR(VLOOKUP($A110,ENEMT!$A$1:$O$1776,15,FALSE),0) -> 0 | AP110: =IFERROR(VLOOKUP($A110,ENEFN!$A$1:$N$1776,6,FALSE),0) -> 0 | AQ110: =IFERROR(VLOOKUP($A110,ENEFN!$A$1:$N$1776,10,FALSE),0) -> 0
A111: 210-000-029-0001 | C111: 210 | D111: 17 | E111: 00 | F111: 000 | G111: 001 | H111: 000 | J111: 000-029-0001 | K111: Evento | L111: =IFERROR(VLOOKUP($A111,ENEMT!$A$1:$O$1776,11,FALSE),0) -> 608 | M111: 700 | N111: 194 | O111: =IFERROR(VLOOKUP($A111,ENEFN!$A$2:$N$1776,5,FALSE),0) -> 16300622 | P111: 16300622 | Q111: 57076.54 | R111: =IFERROR(VLOOKUP($A111,ENEMT!$A$1:$O$1776,12,FALSE),0) -> 92 | S111: =IFERROR(VLOOKUP($A111,ENEMT!$A$1:$O$1776,15,FALSE),0) -> 194 | AP111: =IFERROR(VLOOKUP($A111,ENEFN!$A$1:$N$1776,6,FALSE),0) -> 0 | AQ111: =IFERROR(VLOOKUP($A111,ENEFN!$A$1:$N$1776,10,FALSE),0) -> 57076.54
A112: 210- | C112: 210 | D112: 17 | E112: 00 | F112: 000 | G112: 002 | H112: 000 | I112: 000-030 | K112: Persona | L112: =IFERROR(VLOOKUP($A112,ENEMT!$A$1:$O$1776,11,FALSE),0) -> 0 | M112: 0 | N112: 0 | O112: =IFERROR(VLOOKUP($A112,ENEFN!$A$2:$N$1776,5,FALSE),0) -> 0 | P112: 0 | Q112: 0 | R112: =IFERROR(VLOOKUP($A112,ENEMT!$A$1:$O$1776,12,FALSE),0) -> 0 | S112: =IFERROR(VLOOKUP($A112,ENEMT!$A$1:$O$1776,15,FALSE),0) -> 0 | AP112: =IFERROR(VLOOKUP($A112,ENEFN!$A$1:$N$1776,6,FALSE),0) -> 0 | AQ112: =IFERROR(VLOOKUP($A112,ENEFN!$A$1:$N$1776,10,FALSE),0) -> 0
A113: 210-000-030-0001 | C113: 210 | D113: 17 | E113: 00 | F113: 000 | G113: 002 | H113: 000 | J113: 000-030-0001 | K113: Persona | L113: =IFERROR(VLOOKUP($A113,ENEMT!$A$1:$O$1776,11,FALSE),0) -> 476400 | M113: 523467 | N113: 26383 | O113: =IFERROR(VLOOKUP($A113,ENEFN!$A$2:$N$1776,5,FALSE),0) -> 12442858 | P113: 12442858 | Q113: 46736.43 | R113: =IFERROR(VLOOKUP($A113,ENEMT!$A$1:$O$1776,12,FALSE),0) -> 47067 | S113: =IFERROR(VLOOKUP($A113,ENEMT!$A$1:$O$1776,15,FALSE),0) -> 26383 | AP113: =IFERROR(VLOOKUP($A113,ENEFN!$A$1:$N$1776,6,FALSE),0) -> 0 | AQ113: =IFERROR(VLOOKUP($A113,ENEFN!$A$1:$N$1776,10,FALSE),0) -> 46736.43
A114: 211- | C114: 211 | D114: 99 | E114: 00 | F114: 000 | G114: 002 | H114: 000 | I114: 000-005 | K114: Aporte | L114: =IFERROR(VLOOKUP($A114,ENEMT!$A$1:$O$1776,11,FALSE),0) -> 0 | M114: 0 | N114: 0 | O114: =IFERROR(VLOOKUP($A114,ENEFN!$A$2:$N$1776,5,FALSE),0) -> 0 | P114: 0 | Q114: 0 | R114: =IFERROR(VLOOKUP($A114,ENEMT!$A$1:$O$1776,12,FALSE),0) -> 0 | S114: =IFERROR(VLOOKUP($A114,ENEMT!$A$1:$O$1776,15,FALSE),0) -> 0 | AP114: =IFERROR(VLOOKUP($A114,ENEFN!$A$1:$N$1776,6,FALSE),0) -> 0 | AQ114: =IFERROR(VLOOKUP($A114,ENEFN!$A$1:$N$1776,10,FALSE),0) -> 0
A115: 211-000-005-0001 | C115: 211 | D115: 99 | E115: 00 | F115: 000 | G115: 002 | H115: 000 | J115: 000-005-0001 | K115: Aporte | L115: =IFERROR(VLOOKUP($A115,ENEMT!$A$1:$O$1776,11,FALSE),0) -> 2 | M115: 2 | N115: 0 | O115: =IFERROR(VLOOKUP($A115,ENEFN!$A$2:$N$1776,5,FALSE),0) -> 900000 | P115: 900000 | Q115: 0 | R115: =IFERROR(VLOOKUP($A115,ENEMT!$A$1:$O$1776,12,FALSE),0) -> 0 | S115: =IFERROR(VLOOKUP($A115,ENEMT!$A$1:$O$1776,15,FALSE),0) -> 0 | AP115: =IFERROR(VLOOKUP($A115,ENEFN!$A$1:$N$1776,6,FALSE),0) -> 0 | AQ115: =IFERROR(VLOOKUP($A115,ENEFN!$A$1:$N$1776,10,FALSE),0) -> 0
A116: 211- | C116: 211 | D116: 22 | E116: 00 | F116: 000 | G116: 001 | H116: 000 | I116: 022-007 | K116: Evento | L116: =IFERROR(VLOOKUP($A116,ENEMT!$A$1:$O$1776,11,FALSE),0) -> 0 | M116: 0 | N116: 0 | O116: =IFERROR(VLOOKUP($A116,ENEFN!$A$2:$N$1776,5,FALSE),0) -> 0 | P116: 0 | Q116: 0 | R116: =IFERROR(VLOOKUP($A116,ENEMT!$A$1:$O$1776,12,FALSE),0) -> 0 | S116: =IFERROR(VLOOKUP($A116,ENEMT!$A$1:$O$1776,15,FALSE),0) -> 0 | AP116: =IFERROR(VLOOKUP($A116,ENEFN!$A$1:$N$1776,6,FALSE),0) -> 0 | AQ116: =IFERROR(VLOOKUP($A116,ENEFN!$A$1:$N$1776,10,FALSE),0) -> 0
A117: 211-022-007-0001 | C117: 211 | D117: 22 | E117: 00 | F117: 000 | G117: 001 | H117: 000 | J117: 022-007-0001 | K117: Evento | L117: =IFERROR(VLOOKUP($A117,ENEMT!$A$1:$O$1776,11,FALSE),0) -> 154 | M117: 136 | N117: 52 | O117: =IFERROR(VLOOKUP($A117,ENEFN!$A$2:$N$1776,5,FALSE),0) -> 18250293 | P117: 18250293 | Q117: 72451.62 | R117: =IFERROR(VLOOKUP($A117,ENEMT!$A$1:$O$1776,12,FALSE),0) -> -18 | S117: =IFERROR(VLOOKUP($A117,ENEMT!$A$1:$O$1776,15,FALSE),0) -> 52 | AP117: =IFERROR(VLOOKUP($A117,ENEFN!$A$1:$N$1776,6,FALSE),0) -> 0 | AQ117: =IFERROR(VLOOKUP($A117,ENEFN!$A$1:$N$1776,10,FALSE),0) -> 72451.62
A118: 211- | C118: 211 | D118: 22 | E118: 00 | F118: 000 | G118: 002 | H118: 000 | I118: 022-008 | K118: Documento | L118: =IFERROR(VLOOKUP($A118,ENEMT!$A$1:$O$1776,11,FALSE),0) -> 0 | M118: 0 | N118: 0 | O118: =IFERROR(VLOOKUP($A118,ENEFN!$A$2:$N$1776,5,FALSE),0) -> 0 | P118: 0 | Q118: 0 | R118: =IFERROR(VLOOKUP($A118,ENEMT!$A$1:$O$1776,12,FALSE),0) -> 0 | S118: =IFERROR(VLOOKUP($A118,ENEMT!$A$1:$O$1776,15,FALSE),0) -> 0 | AP118: =IFERROR(VLOOKUP($A118,ENEFN!$A$1:$N$1776,6,FALSE),0) -> 0 | AQ118: =IFERROR(VLOOKUP($A118,ENEFN!$A$1:$N$1776,10,FALSE),0) -> 0
A119: 211-022-008-0001 | C119: 211 | D119: 22 | E119: 00 | F119: 000 | G119: 002 | H119: 000 | J119: 022-008-0001 | K119: Documento | L119: =IFERROR(VLOOKUP($A119,ENEMT!$A$1:$O$1776,11,FALSE),0) -> 1 | M119: 15 | N119: 0 | O119: =IFERROR(VLOOKUP($A119,ENEFN!$A$2:$N$1776,5,FALSE),0) -> 1848739 | P119: 1848739 | Q119: 0 | R119: =IFERROR(VLOOKUP($A119,ENEMT!$A$1:$O$1776,12,FALSE),0) -> 14 | S119: =IFERROR(VLOOKUP($A119,ENEMT!$A$1:$O$1776,15,FALSE),0) -> 0 | AP119: =IFERROR(VLOOKUP($A119,ENEFN!$A$1:$N$1776,6,FALSE),0) -> 0 | AQ119: =IFERROR(VLOOKUP($A119,ENEFN!$A$1:$N$1776,10,FALSE),0) -> 0
A120: 211-022-008-0002 | C120: 211 | D120: 22 | E120: 00 | F120: 000 | G120: 002 | H120: 000 | J120: 022-008-0002 | K120: Documento | L120: =IFERROR(VLOOKUP($A120,ENEMT!$A$1:$O$1776,11,FALSE),0) -> 2 | M120: 2 | N120: 0 | O120: =IFERROR(VLOOKUP($A120,ENEFN!$A$2:$N$1776,5,FALSE),0) -> 14245 | P120: 14245 | Q120: 0 | R120: =IFERROR(VLOOKUP($A120,ENEMT!$A$1:$O$1776,12,FALSE),0) -> 0 | S120: =IFERROR(VLOOKUP($A120,ENEMT!$A$1:$O$1776,15,FALSE),0) -> 0 | AP120: =IFERROR(VLOOKUP($A120,ENEFN!$A$1:$N$1776,6,FALSE),0) -> 0 | AQ120: =IFERROR(VLOOKUP($A120,ENEFN!$A$1:$N$1776,10,FALSE),0) -> 0
A121: 211-022-008-0003 | C121: 211 | D121: 22 | E121: 00 | F121: 000 | G121: 002 | H121: 000 | J121: 022-008-0003 | K121: Documento | L121: =IFERROR(VLOOKUP($A121,ENEMT!$A$1:$O$1776,11,FALSE),0) -> 1 | M121: 1 | N121: 0 | O121: =IFERROR(VLOOKUP($A121,ENEFN!$A$2:$N$1776,5,FALSE),0) -> 36627 | P121: 36627 | Q121: 0 | R121: =IFERROR(VLOOKUP($A121,ENEMT!$A$1:$O$1776,12,FALSE),0) -> 0 | S121: =IFERROR(VLOOKUP($A121,ENEMT!$A$1:$O$1776,15,FALSE),0) -> 0 | AP121: =IFERROR(VLOOKUP($A121,ENEFN!$A$1:$N$1776,6,FALSE),0) -> 0 | AQ121: =IFERROR(VLOOKUP($A121,ENEFN!$A$1:$N$1776,10,FALSE),0) -> 0
A122: 211-022-008-0004 | C122: 211 | D122: 22 | E122: 00 | F122: 000 | G122: 002 | H122: 000 | J122: 022-008-0004 | K122: Evento | L122: =IFERROR(VLOOKUP($A122,ENEMT!$A$1:$O$1776,11,FALSE),0) -> 175 | M122: 175 | N122: 0 | O122: =IFERROR(VLOOKUP($A122,ENEFN!$A$2:$N$1776,5,FALSE),0) -> 20175 | P122: 20175 | Q122: 0 | R122: =IFERROR(VLOOKUP($A122,ENEMT!$A$1:$O$1776,12,FALSE),0) -> 0 | S122: =IFERROR(VLOOKUP($A122,ENEMT!$A$1:$O$1776,15,FALSE),0) -> 0 | AP122: =IFERROR(VLOOKUP($A122,ENEFN!$A$1:$N$1776,6,FALSE),0) -> 0 | AQ122: =IFERROR(VLOOKUP($A122,ENEFN!$A$1:$N$1776,10,FALSE),0) -> 0
A123: 211- | C123: 211 | D123: 22 | E123: 00 | F123: 000 | G123: 003 | H123: 000 | I123: 022-009 | K123: Documento | L123: =IFERROR(VLOOKUP($A123,ENEMT!$A$1:$O$1776,11,FALSE),0) -> 0 | M123: 0 | N123: 0 | O123: =IFERROR(VLOOKUP($A123,ENEFN!$A$2:$N$1776,5,FALSE),0) -> 0 | P123: 0 | Q123: 0 | R123: =IFERROR(VLOOKUP($A123,ENEMT!$A$1:$O$1776,12,FALSE),0) -> 0 | S123: =IFERROR(VLOOKUP($A123,ENEMT!$A$1:$O$1776,15,FALSE),0) -> 0 | AP123: =IFERROR(VLOOKUP($A123,ENEFN!$A$1:$N$1776,6,FALSE),0) -> 0 | AQ123: =IFERROR(VLOOKUP($A123,ENEFN!$A$1:$N$1776,10,FALSE),0) -> 0
A124: 211-022-009-0001 | C124: 211 | D124: 22 | E124: 00 | F124: 000 | G124: 003 | H124: 000 | J124: 022-009-0001 | K124: Registro | L124: =IFERROR(VLOOKUP($A124,ENEMT!$A$1:$O$1776,11,FALSE),0) -> 184 | M124: 184 | N124: 11 | O124: =IFERROR(VLOOKUP($A124,ENEFN!$A$2:$N$1776,5,FALSE),0) -> 1933072 | P124: 1933072 | Q124: 0 | R124: =IFERROR(VLOOKUP($A124,ENEMT!$A$1:$O$1776,12,FALSE),0) -> 0 | S124: =IFERROR(VLOOKUP($A124,ENEMT!$A$1:$O$1776,15,FALSE),0) -> 11 | AP124: =IFERROR(VLOOKUP($A124,ENEFN!$A$1:$N$1776,6,FALSE),0) -> 0 | AQ124: =IFERROR(VLOOKUP($A124,ENEFN!$A$1:$N$1776,10,FALSE),0) -> 0
A125: 211-022-009-0002 | C125: 211 | D125: 22 | E125: 00 | F125: 000 | G125: 003 | H125: 000 | J125: 022-009-0002 | K125: Documento | L125: =IFERROR(VLOOKUP($A125,ENEMT!$A$1:$O$1776,11,FALSE),0) -> 125 | M125: 125 | N125: 13 | O125: =IFERROR(VLOOKUP($A125,ENEFN!$A$2:$N$1776,5,FALSE),0) -> 3533 | P125: 3533 | Q125: 0 | R125: =IFERROR(VLOOKUP($A125,ENEMT!$A$1:$O$1776,12,FALSE),0) -> 0 | S125: =IFERROR(VLOOKUP($A125,ENEMT!$A$1:$O$1776,15,FALSE),0) -> 13 | AP125: =IFERROR(VLOOKUP($A125,ENEFN!$A$1:$N$1776,6,FALSE),0) -> 0 | AQ125: =IFERROR(VLOOKUP($A125,ENEFN!$A$1:$N$1776,10,FALSE),0) -> 0
A126: 211-022-009-0003 | C126: 211 | D126: 22 | E126: 00 | F126: 000 | G126: 003 | H126: 000 | J126: 022-009-0003 | K126: Documento | L126: =IFERROR(VLOOKUP($A126,ENEMT!$A$1:$O$1776,11,FALSE),0) -> 30 | M126: 30 | N126: 0 | O126: =IFERROR(VLOOKUP($A126,ENEFN!$A$2:$N$1776,5,FALSE),0) -> 11392 | P126: 11392 | Q126: 0 | R126: =IFERROR(VLOOKUP($A126,ENEMT!$A$1:$O$1776,12,FALSE),0) -> 0 | S126: =IFERROR(VLOOKUP($A126,ENEMT!$A$1:$O$1776,15,FALSE),0) -> 0 | AP126: =IFERROR(VLOOKUP($A126,ENEFN!$A$1:$N$1776,6,FALSE),0) -> 0 | AQ126: =IFERROR(VLOOKUP($A126,ENEFN!$A$1:$N$1776,10,FALSE),0) -> 0
A127: 211-022-009-0004 | C127: 211 | D127: 22 | E127: 00 | F127: 000 | G127: 003 | H127: 000 | J127: 022-009-0004 | K127: Documento | L127: =IFERROR(VLOOKUP($A127,ENEMT!$A$1:$O$1776,11,FALSE),0) -> 5112 | M127: 5112 | N127: 300 | O127: =IFERROR(VLOOKUP($A127,ENEFN!$A$2:$N$1776,5,FALSE),0) -> 3015 | P127: 3015 | Q127: 0 | R127: =IFERROR(VLOOKUP($A127,ENEMT!$A$1:$O$1776,12,FALSE),0) -> 0 | S127: =IFERROR(VLOOKUP($A127,ENEMT!$A$1:$O$1776,15,FALSE),0) -> 300 | AP127: =IFERROR(VLOOKUP($A127,ENEFN!$A$1:$N$1776,6,FALSE),0) -> 0 | AQ127: =IFERROR(VLOOKUP($A127,ENEFN!$A$1:$N$1776,10,FALSE),0) -> 0
A128: 212- | C128: 212 | D128: 23 | E128: 00 | F128: 000 | G128: 001 | H128: 000 | I128: 000-010 | K128: Evento | L128: =IFERROR(VLOOKUP($A128,ENEMT!$A$1:$O$1776,11,FALSE),0) -> 0 | M128: 0 | N128: 0 | O128: =IFERROR(VLOOKUP($A128,ENEFN!$A$2:$N$1776,5,FALSE),0) -> 0 | P128: 0 | Q128: 0 | R128: =IFERROR(VLOOKUP($A128,ENEMT!$A$1:$O$1776,12,FALSE),0) -> 0 | S128: =IFERROR(VLOOKUP($A128,ENEMT!$A$1:$O$1776,15,FALSE),0) -> 0 | AP128: =IFERROR(VLOOKUP($A128,ENEFN!$A$1:$N$1776,6,FALSE),0) -> 0 | AQ128: =IFERROR(VLOOKUP($A128,ENEFN!$A$1:$N$1776,10,FALSE),0) -> 0
A129: 212-000-010-0001 | C129: 212 | D129: 23 | E129: 00 | F129: 000 | G129: 001 | H129: 000 | J129: 000-010-0001 | K129: Evento | L129: =IFERROR(VLOOKUP($A129,ENEMT!$A$1:$O$1776,11,FALSE),0) -> 38 | M129: 34 | N129: 27 | O129: =IFERROR(VLOOKUP($A129,ENEFN!$A$2:$N$1776,5,FALSE),0) -> 5076663 | P129: 5076663 | Q129: 70900 | R129: =IFERROR(VLOOKUP($A129,ENEMT!$A$1:$O$1776,12,FALSE),0) -> -4 | S129: =IFERROR(VLOOKUP($A129,ENEMT!$A$1:$O$1776,15,FALSE),0) -> 27 | AP129: =IFERROR(VLOOKUP($A129,ENEFN!$A$1:$N$1776,6,FALSE),0) -> 0 | AQ129: =IFERROR(VLOOKUP($A129,ENEFN!$A$1:$N$1776,10,FALSE),0) -> 70900
A130: 212- | C130: 212 | D130: 23 | E130: 00 | F130: 000 | G130: 002 | H130: 000 | I130: 000-015 | K130: Persona | L130: =IFERROR(VLOOKUP($A130,ENEMT!$A$1:$O$1776,11,FALSE),0) -> 0 | M130: 0 | N130: 0 | O130: =IFERROR(VLOOKUP($A130,ENEFN!$A$2:$N$1776,5,FALSE),0) -> 0 | P130: 0 | Q130: 0 | R130: =IFERROR(VLOOKUP($A130,ENEMT!$A$1:$O$1776,12,FALSE),0) -> 0 | S130: =IFERROR(VLOOKUP($A130,ENEMT!$A$1:$O$1776,15,FALSE),0) -> 0 | AP130: =IFERROR(VLOOKUP($A130,ENEFN!$A$1:$N$1776,6,FALSE),0) -> 0 | AQ130: =IFERROR(VLOOKUP($A130,ENEFN!$A$1:$N$1776,10,FALSE),0) -> 0
A131: 212-000-015-0001 | C131: 212 | D131: 23 | E131: 00 | F131: 000 | G131: 002 | H131: 000 | J131: 000-015-0001 | K131: Persona | L131: =IFERROR(VLOOKUP($A131,ENEMT!$A$1:$O$1776,11,FALSE),0) -> 707 | M131: 26 | N131: 0 | O131: =IFERROR(VLOOKUP($A131,ENEFN!$A$2:$N$1776,5,FALSE),0) -> 2145715 | P131: 2145715 | Q131: 10000 | R131: =IFERROR(VLOOKUP($A131,ENEMT!$A$1:$O$1776,12,FALSE),0) -> -681 | S131: =IFERROR(VLOOKUP($A131,ENEMT!$A$1:$O$1776,15,FALSE),0) -> 0 | AP131: =IFERROR(VLOOKUP($A131,ENEFN!$A$1:$N$1776,6,FALSE),0) -> 0 | AQ131: =IFERROR(VLOOKUP($A131,ENEFN!$A$1:$N$1776,10,FALSE),0) -> 10000
A132: 214- | C132: 214 | D132: 20 | E132: 00 | F132: 000 | G132: 001 | H132: 000 | I132: 000-022 | K132: Evento | L132: =IFERROR(VLOOKUP($A132,ENEMT!$A$1:$O$1776,11,FALSE),0) -> 0 | M132: 0 | N132: 0 | O132: =IFERROR(VLOOKUP($A132,ENEFN!$A$2:$N$1776,5,FALSE),0) -> 0 | P132: 0 | Q132: 0 | R132: =IFERROR(VLOOKUP($A132,ENEMT!$A$1:$O$1776,12,FALSE),0) -> 0 | S132: =IFERROR(VLOOKUP($A132,ENEMT!$A$1:$O$1776,15,FALSE),0) -> 0 | AP132: =IFERROR(VLOOKUP($A132,ENEFN!$A$1:$N$1776,6,FALSE),0) -> 0 | AQ132: =IFERROR(VLOOKUP($A132,ENEFN!$A$1:$N$1776,10,FALSE),0) -> 0
A133: 214-000-022-0001 | C133: 214 | D133: 20 | E133: 00 | F133: 000 | G133: 001 | H133: 000 | J133: 000-022-0001 | K133: Evento | L133: =IFERROR(VLOOKUP($A133,ENEMT!$A$1:$O$1776,11,FALSE),0) -> 201 | M133: 140 | N133: 60 | O133: =IFERROR(VLOOKUP($A133,ENEFN!$A$2:$N$1776,5,FALSE),0) -> 10935606 | P133: 10935606 | Q133: 263534.03 | R133: =IFERROR(VLOOKUP($A133,ENEMT!$A$1:$O$1776,12,FALSE),0) -> -61 | S133: =IFERROR(VLOOKUP($A133,ENEMT!$A$1:$O$1776,15,FALSE),0) -> 60 | AP133: =IFERROR(VLOOKUP($A133,ENEFN!$A$1:$N$1776,6,FALSE),0) -> 0 | AQ133: =IFERROR(VLOOKUP($A133,ENEFN!$A$1:$N$1776,10,FALSE),0) -> 263534.03
A134: 214- | C134: 214 | D134: 20 | E134: 00 | F134: 000 | G134: 002 | H134: 000 | I134: 000-023 | K134: Familia | L134: =IFERROR(VLOOKUP($A134,ENEMT!$A$1:$O$1776,11,FALSE),0) -> 0 | M134: 0 | N134: 0 | O134: =IFERROR(VLOOKUP($A134,ENEFN!$A$2:$N$1776,5,FALSE),0) -> 0 | P134: 0 | Q134: 0 | R134: =IFERROR(VLOOKUP($A134,ENEMT!$A$1:$O$1776,12,FALSE),0) -> 0 | S134: =IFERROR(VLOOKUP($A134,ENEMT!$A$1:$O$1776,15,FALSE),0) -> 0 | AP134: =IFERROR(VLOOKUP($A134,ENEFN!$A$1:$N$1776,6,FALSE),0) -> 0 | AQ134: =IFERROR(VLOOKUP($A134,ENEFN!$A$1:$N$1776,10,FALSE),0) -> 0
A135: 214-000-023-0001 | C135: 214 | D135: 20 | E135: 00 | F135: 000 | G135: 002 | H135: 000 | J135: 000-023-0001 | K135: Familia | L135: =IFERROR(VLOOKUP($A135,ENEMT!$A$1:$O$1776,11,FALSE),0) -> 126 | M135: 57 | N135: 0 | O135: =IFERROR(VLOOKUP($A135,ENEFN!$A$2:$N$1776,5,FALSE),0) -> 86456 | P135: 86456 | Q135: 0 | R135: =IFERROR(VLOOKUP($A135,ENEMT!$A$1:$O$1776,12,FALSE),0) -> -69 | S135: =IFERROR(VLOOKUP($A135,ENEMT!$A$1:$O$1776,15,FALSE),0) -> 0 | AP135: =IFERROR(VLOOKUP($A135,ENEFN!$A$1:$N$1776,6,FALSE),0) -> 0 | AQ135: =IFERROR(VLOOKUP($A135,ENEFN!$A$1:$N$1776,10,FALSE),0) -> 0
A136: 214-000-023-0002 | C136: 214 | D136: 20 | E136: 00 | F136: 000 | G136: 002 | H136: 000 | J136: 000-023-0002 | K136: Unidad monetaria | L136: =IFERROR(VLOOKUP($A136,ENEMT!$A$1:$O$1776,11,FALSE),0) -> 1389000 | M136: 1389000 | N136: 60000 | O136: =IFERROR(VLOOKUP($A136,ENEFN!$A$2:$N$1776,5,FALSE),0) -> 3505 | P136: 3505 | Q136: 0 | R136: =IFERROR(VLOOKUP($A136,ENEMT!$A$1:$O$1776,12,FALSE),0) -> 0 | S136: =IFERROR(VLOOKUP($A136,ENEMT!$A$1:$O$1776,15,FALSE),0) -> 60000 | AP136: =IFERROR(VLOOKUP($A136,ENEFN!$A$1:$N$1776,6,FALSE),0) -> 0 | AQ136: =IFERROR(VLOOKUP($A136,ENEFN!$A$1:$N$1776,10,FALSE),0) -> 0
A137: 216- | C137: 216 | D137: 18 | E137: 00 | F137: 000 | G137: 001 | H137: 000 | I137: 021-001 | K137: Evento | L137: =IFERROR(VLOOKUP($A137,ENEMT!$A$1:$O$1776,11,FALSE),0) -> 0 | M137: 0 | N137: 0 | O137: =IFERROR(VLOOKUP($A137,ENEFN!$A$2:$N$1776,5,FALSE),0) -> 0 | P137: 0 | Q137: 0 | R137: =IFERROR(VLOOKUP($A137,ENEMT!$A$1:$O$1776,12,FALSE),0) -> 0 | S137: =IFERROR(VLOOKUP($A137,ENEMT!$A$1:$O$1776,15,FALSE),0) -> 0 | AP137: =IFERROR(VLOOKUP($A137,ENEFN!$A$1:$N$1776,6,FALSE),0) -> 0 | AQ137: =IFERROR(VLOOKUP($A137,ENEFN!$A$1:$N$1776,10,FALSE),0) -> 0
A138: =CONCATENATE(C138,"-",J138) -> 216-021-001-0001 | C138: 216 | D138: 18 | E138: 00 | F138: 000 | G138: 001 | H138: 000 | J138: 021-001-0001 | K138: Evento | L138: =IFERROR(VLOOKUP($A138,ENEMT!$A$1:$O$1776,11,FALSE),0) -> 720 | M138: =+L138+R138+T138+V138+X138+Z138+AB138+AD138+AF138+AH138+AJ138+AL138+AN138 -> 193 | N138: =+S138+U138+W138+Y138+AA138+AC138+AE138+AG138+AI138+AK138+AM138+AO138 -> 0 | O138: =IFERROR(VLOOKUP($A138,ENEFN!$A$2:$N$1776,5,FALSE),0) -> 19713706 | P138: =+O138+AP138+AR138+AT138+AV138+AX138+AZ138+BB138+BD138+BF138+BH138+BJ138+BL138 -> 19713706 | Q138: =+AQ138+AS138+AU138+AW138+AY138+BA138+BC138+BE138+BG138+BI138+BK138+BM138 -> 89726.65 | R138: =IFERROR(VLOOKUP($A138,ENEMT!$A$1:$O$1776,12,FALSE),0) -> -527 | S138: =IFERROR(VLOOKUP($A138,ENEMT!$A$1:$O$1776,15,FALSE),0) -> 0 | AP138: =IFERROR(VLOOKUP($A138,ENEFN!$A$1:$N$1776,6,FALSE),0) -> 0 | AQ138: =IFERROR(VLOOKUP($A138,ENEFN!$A$1:$N$1776,10,FALSE),0) -> 89726.65
A139: 216- | C139: 216 | D139: 18 | E139: 00 | F139: 000 | G139: 002 | H139: 000 | I139: 021-002 | K139: Persona | L139: =IFERROR(VLOOKUP($A139,ENEMT!$A$1:$O$1776,11,FALSE),0) -> 0 | M139: 0 | N139: 0 | O139: =IFERROR(VLOOKUP($A139,ENEFN!$A$2:$N$1776,5,FALSE),0) -> 0 | P139: 0 | Q139: 0 | R139: =IFERROR(VLOOKUP($A139,ENEMT!$A$1:$O$1776,12,FALSE),0) -> 0 | S139: =IFERROR(VLOOKUP($A139,ENEMT!$A$1:$O$1776,15,FALSE),0) -> 0 | AP139: =IFERROR(VLOOKUP($A139,ENEFN!$A$1:$N$1776,6,FALSE),0) -> 0 | AQ139: =IFERROR(VLOOKUP($A139,ENEFN!$A$1:$N$1776,10,FALSE),0) -> 0
A140: 216-021-002-0001 | C140: 216 | D140: 18 | E140: 00 | F140: 000 | G140: 002 | H140: 000 | J140: 021-002-0001 | K140: Persona | L140: =IFERROR(VLOOKUP($A140,ENEMT!$A$1:$O$1776,11,FALSE),0) -> 23100 | M140: 20000 | N140: 0 | O140: =IFERROR(VLOOKUP($A140,ENEFN!$A$2:$N$1776,5,FALSE),0) -> 23000 | P140: 23000 | Q140: 0 | R140: =IFERROR(VLOOKUP($A140,ENEMT!$A$1:$O$1776,12,FALSE),0) -> -3100 | S140: =IFERROR(VLOOKUP($A140,ENEMT!$A$1:$O$1776,15,FALSE),0) -> 0 | AP140: =IFERROR(VLOOKUP($A140,ENEFN!$A$1:$N$1776,6,FALSE),0) -> 0 | AQ140: =IFERROR(VLOOKUP($A140,ENEFN!$A$1:$N$1776,10,FALSE),0) -> 0
A141: 216-021-002-0002 | C141: 216 | D141: 18 | E141: 00 | F141: 000 | G141: 002 | H141: 000 | J141: 021-002-0002 | K141: Persona | L141: =IFERROR(VLOOKUP($A141,ENEMT!$A$1:$O$1776,11,FALSE),0) -> 107 | M141: 107 | N141: 0 | O141: =IFERROR(VLOOKUP($A141,ENEFN!$A$2:$N$1776,5,FALSE),0) -> 320400 | P141: 320400 | Q141: 0 | R141: =IFERROR(VLOOKUP($A141,ENEMT!$A$1:$O$1776,12,FALSE),0) -> 0 | S141: =IFERROR(VLOOKUP($A141,ENEMT!$A$1:$O$1776,15,FALSE),0) -> 0 | AP141: =IFERROR(VLOOKUP($A141,ENEFN!$A$1:$N$1776,6,FALSE),0) -> 0 | AQ141: =IFERROR(VLOOKUP($A141,ENEFN!$A$1:$N$1776,10,FALSE),0) -> 0
A142: 216-021-002-0003 | C142: 216 | D142: 18 | E142: 00 | F142: 000 | G142: 002 | H142: 000 | J142: 021-002-0003 | K142: Persona | L142: =IFERROR(VLOOKUP($A142,ENEMT!$A$1:$O$1776,11,FALSE),0) -> 64680 | M142: 60000 | N142: 0 | O142: =IFERROR(VLOOKUP($A142,ENEFN!$A$2:$N$1776,5,FALSE),0) -> 639450 | P142: 639450 | Q142: 0 | R142: =IFERROR(VLOOKUP($A142,ENEMT!$A$1:$O$1776,12,FALSE),0) -> -4680 | S142: =IFERROR(VLOOKUP($A142,ENEMT!$A$1:$O$1776,15,FALSE),0) -> 0 | AP142: =IFERROR(VLOOKUP($A142,ENEFN!$A$1:$N$1776,6,FALSE),0) -> 0 | AQ142: =IFERROR(VLOOKUP($A142,ENEFN!$A$1:$N$1776,10,FALSE),0) -> 0
A143: 216-021-002-0004 | C143: 216 | D143: 18 | E143: 00 | F143: 000 | G143: 002 | H143: 000 | J143: 021-002-0004 | K143: Evento | L143: =IFERROR(VLOOKUP($A143,ENEMT!$A$1:$O$1776,11,FALSE),0) -> 7710 | M143: 7000 | N143: 0 | O143: =IFERROR(VLOOKUP($A143,ENEFN!$A$2:$N$1776,5,FALSE),0) -> 25743932 | P143: 25743932 | Q143: 0 | R143: =IFERROR(VLOOKUP($A143,ENEMT!$A$1:$O$1776,12,FALSE),0) -> -710 | S143: =IFERROR(VLOOKUP($A143,ENEMT!$A$1:$O$1776,15,FALSE),0) -> 0 | AP143: =IFERROR(VLOOKUP($A143,ENEFN!$A$1:$N$1776,6,FALSE),0) -> 0 | AQ143: =IFERROR(VLOOKUP($A143,ENEFN!$A$1:$N$1776,10,FALSE),0) -> 0
A144: 216-021-002-0005 | C144: 216 | D144: 18 | E144: 00 | F144: 000 | G144: 002 | H144: 000 | J144: 021-002-0005 | K144: Persona | L144: =IFERROR(VLOOKUP($A144,ENEMT!$A$1:$O$1776,11,FALSE),0) -> 231000 | M144: 225000 | N144: 0 | O144: =IFERROR(VLOOKUP($A144,ENEFN!$A$2:$N$1776,5,FALSE),0) -> 60000 | P144: 60000 | Q144: 0 | R144: =IFERROR(VLOOKUP($A144,ENEMT!$A$1:$O$1776,12,FALSE),0) -> -6000 | S144: =IFERROR(VLOOKUP($A144,ENEMT!$A$1:$O$1776,15,FALSE),0) -> 0 | AP144: =IFERROR(VLOOKUP($A144,ENEFN!$A$1:$N$1776,6,FALSE),0) -> 0 | AQ144: =IFERROR(VLOOKUP($A144,ENEFN!$A$1:$N$1776,10,FALSE),0) -> 0
A145: 216-021-002-0006 | C145: 216 | D145: 18 | E145: 00 | F145: 000 | G145: 002 | H145: 000 | J145: 021-002-0006 | K145: Documento | L145: =IFERROR(VLOOKUP($A145,ENEMT!$A$1:$O$1776,11,FALSE),0) -> 3234 | M145: 2600 | N145: 0 | O145: =IFERROR(VLOOKUP($A145,ENEFN!$A$2:$N$1776,5,FALSE),0) -> 2714475 | P145: 2714475 | Q145: 0 | R145: =IFERROR(VLOOKUP($A145,ENEMT!$A$1:$O$1776,12,FALSE),0) -> -634 | S145: =IFERROR(VLOOKUP($A145,ENEMT!$A$1:$O$1776,15,FALSE),0) -> 0 | AP145: =IFERROR(VLOOKUP($A145,ENEFN!$A$1:$N$1776,6,FALSE),0) -> 0 | AQ145: =IFERROR(VLOOKUP($A145,ENEFN!$A$1:$N$1776,10,FALSE),0) -> 0
A146: 216-021-002-0007 | C146: 216 | D146: 18 | E146: 00 | F146: 000 | G146: 002 | H146: 000 | J146: 021-002-0007 | K146: Evento | L146: =IFERROR(VLOOKUP($A146,ENEMT!$A$1:$O$1776,11,FALSE),0) -> 37 | M146: 65 | N146: 0 | O146: =IFERROR(VLOOKUP($A146,ENEFN!$A$2:$N$1776,5,FALSE),0) -> 67874 | P146: 67874 | Q146: 0 | R146: =IFERROR(VLOOKUP($A146,ENEMT!$A$1:$O$1776,12,FALSE),0) -> 28 | S146: =IFERROR(VLOOKUP($A146,ENEMT!$A$1:$O$1776,15,FALSE),0) -> 0 | AP146: =IFERROR(VLOOKUP($A146,ENEFN!$A$1:$N$1776,6,FALSE),0) -> 0 | AQ146: =IFERROR(VLOOKUP($A146,ENEFN!$A$1:$N$1776,10,FALSE),0) -> 0
A147: 217- | C147: 217 | D147: 20 | E147: 00 | F147: 000 | G147: 001 | H147: 000 | I147: 000-022 | K147: Evento | L147: =IFERROR(VLOOKUP($A147,ENEMT!$A$1:$O$1776,11,FALSE),0) -> 0 | M147: 0 | N147: 0 | O147: =IFERROR(VLOOKUP($A147,ENEFN!$A$2:$N$1776,5,FALSE),0) -> 0 | P147: 0 | Q147: 0 | R147: =IFERROR(VLOOKUP($A147,ENEMT!$A$1:$O$1776,12,FALSE),0) -> 0 | S147: =IFERROR(VLOOKUP($A147,ENEMT!$A$1:$O$1776,15,FALSE),0) -> 0 | AP147: =IFERROR(VLOOKUP($A147,ENEFN!$A$1:$N$1776,6,FALSE),0) -> 0 | AQ147: =IFERROR(VLOOKUP($A147,ENEFN!$A$1:$N$1776,10,FALSE),0) -> 0
A148: 217-000-022-0001 | C148: 217 | D148: 20 | E148: 00 | F148: 000 | G148: 001 | H148: 000 | J148: 000-022-0001 | K148: Evento | L148: =IFERROR(VLOOKUP($A148,ENEMT!$A$1:$O$1776,11,FALSE),0) -> 263 | M148: 261 | N148: 0 | O148: =IFERROR(VLOOKUP($A148,ENEFN!$A$2:$N$1776,5,FALSE),0) -> 50492933 | P148: 50492933 | Q148: 262242.49 | R148: =IFERROR(VLOOKUP($A148,ENEMT!$A$1:$O$1776,12,FALSE),0) -> -2 | S148: =IFERROR(VLOOKUP($A148,ENEMT!$A$1:$O$1776,15,FALSE),0) -> 0 | AP148: =IFERROR(VLOOKUP($A148,ENEFN!$A$1:$N$1776,6,FALSE),0) -> 0 | AQ148: =IFERROR(VLOOKUP($A148,ENEFN!$A$1:$N$1776,10,FALSE),0) -> 262242.49
A149: 217- | C149: 217 | D149: 11 | E149: 00 | F149: 000 | G149: 002 | H149: 000 | I149: 017-005 | K149: Kilómetro | L149: =IFERROR(VLOOKUP($A149,ENEMT!$A$1:$O$1776,11,FALSE),0) -> 0 | M149: 0 | N149: 0 | O149: =IFERROR(VLOOKUP($A149,ENEFN!$A$2:$N$1776,5,FALSE),0) -> 0 | P149: 0 | Q149: 0 | R149: =IFERROR(VLOOKUP($A149,ENEMT!$A$1:$O$1776,12,FALSE),0) -> 0 | S149: =IFERROR(VLOOKUP($A149,ENEMT!$A$1:$O$1776,15,FALSE),0) -> 0 | AP149: =IFERROR(VLOOKUP($A149,ENEFN!$A$1:$N$1776,6,FALSE),0) -> 0 | AQ149: =IFERROR(VLOOKUP($A149,ENEFN!$A$1:$N$1776,10,FALSE),0) -> 0
A150: 217-017-005-0001 | C150: 217 | D150: 11 | E150: 00 | F150: 000 | G150: 002 | H150: 000 | J150: 017-005-0001 | K150: Kilómetro | L150: =IFERROR(VLOOKUP($A150,ENEMT!$A$1:$O$1776,11,FALSE),0) -> 219 | M150: 219 | N150: 0 | O150: =IFERROR(VLOOKUP($A150,ENEFN!$A$2:$N$1776,5,FALSE),0) -> 15037645 | P150: 15037645 | Q150: 0 | R150: =IFERROR(VLOOKUP($A150,ENEMT!$A$1:$O$1776,12,FALSE),0) -> 0 | S150: =IFERROR(VLOOKUP($A150,ENEMT!$A$1:$O$1776,15,FALSE),0) -> 0 | AP150: =IFERROR(VLOOKUP($A150,ENEFN!$A$1:$N$1776,6,FALSE),0) -> 0 | AQ150: =IFERROR(VLOOKUP($A150,ENEFN!$A$1:$N$1776,10,FALSE),0) -> 0
A151: 217-017-005-0002 | C151: 217 | D151: 11 | E151: 00 | F151: 000 | G151: 002 | H151: 000 | J151: 017-005-0002 | K151: Evento | L151: =IFERROR(VLOOKUP($A151,ENEMT!$A$1:$O$1776,11,FALSE),0) -> 128 | M151: 141 | N151: 0 | O151: =IFERROR(VLOOKUP($A151,ENEFN!$A$2:$N$1776,5,FALSE),0) -> 8076000 | P151: 8076000 | Q151: 0 | R151: =IFERROR(VLOOKUP($A151,ENEMT!$A$1:$O$1776,12,FALSE),0) -> 13 | S151: =IFERROR(VLOOKUP($A151,ENEMT!$A$1:$O$1776,15,FALSE),0) -> 0 | AP151: =IFERROR(VLOOKUP($A151,ENEFN!$A$1:$N$1776,6,FALSE),0) -> 0 | AQ151: =IFERROR(VLOOKUP($A151,ENEFN!$A$1:$N$1776,10,FALSE),0) -> 0
A152: 218- | C152: 218 | D152: 19 | E152: 00 | F152: 000 | G152: 001 | H152: 000 | I152: 019-001 | K152: Evento | L152: =IFERROR(VLOOKUP($A152,ENEMT!$A$1:$O$1776,11,FALSE),0) -> 0 | M152: 0 | N152: 0 | O152: =IFERROR(VLOOKUP($A152,ENEFN!$A$2:$N$1776,5,FALSE),0) -> 0 | P152: 0 | Q152: 0 | R152: =IFERROR(VLOOKUP($A152,ENEMT!$A$1:$O$1776,12,FALSE),0) -> 0 | S152: =IFERROR(VLOOKUP($A152,ENEMT!$A$1:$O$1776,15,FALSE),0) -> 0 | AP152: =IFERROR(VLOOKUP($A152,ENEFN!$A$1:$N$1776,6,FALSE),0) -> 0 | AQ152: =IFERROR(VLOOKUP($A152,ENEFN!$A$1:$N$1776,10,FALSE),0) -> 0
A153: 218-019-001-0001 | C153: 218 | D153: 19 | E153: 00 | F153: 000 | G153: 001 | H153: 000 | J153: 019-001-0001 | K153: Evento | L153: =IFERROR(VLOOKUP($A153,ENEMT!$A$1:$O$1776,11,FALSE),0) -> 225 | M153: 225 | N153: 18 | O153: =IFERROR(VLOOKUP($A153,ENEFN!$A$2:$N$1776,5,FALSE),0) -> 50000000 | P153: 50000000 | Q153: 366881.53 | R153: =IFERROR(VLOOKUP($A153,ENEMT!$A$1:$O$1776,12,FALSE),0) -> 0 | S153: =IFERROR(VLOOKUP($A153,ENEMT!$A$1:$O$1776,15,FALSE),0) -> 18 | AP153: =IFERROR(VLOOKUP($A153,ENEFN!$A$1:$N$1776,6,FALSE),0) -> 0 | AQ153: =IFERROR(VLOOKUP($A153,ENEFN!$A$1:$N$1776,10,FALSE),0) -> 366881.53
A154: 218- | C154: 218 | D154: 19 | E154: 00 | F154: 000 | G154: 002 | H154: 000 | I154: 019-002 | K154: Familia | L154: =IFERROR(VLOOKUP($A154,ENEMT!$A$1:$O$1776,11,FALSE),0) -> 0 | M154: 0 | N154: 0 | O154: =IFERROR(VLOOKUP($A154,ENEFN!$A$2:$N$1776,5,FALSE),0) -> 0 | P154: 0 | Q154: 0 | R154: =IFERROR(VLOOKUP($A154,ENEMT!$A$1:$O$1776,12,FALSE),0) -> 0 | S154: =IFERROR(VLOOKUP($A154,ENEMT!$A$1:$O$1776,15,FALSE),0) -> 0 | AP154: =IFERROR(VLOOKUP($A154,ENEFN!$A$1:$N$1776,6,FALSE),0) -> 0 | AQ154: =IFERROR(VLOOKUP($A154,ENEFN!$A$1:$N$1776,10,FALSE),0) -> 0
A155: 218-019-002-0001 | C155: 218 | D155: 19 | E155: 00 | F155: 000 | G155: 002 | H155: 000 | J155: 019-002-0001 | K155: Familia | L155: =IFERROR(VLOOKUP($A155,ENEMT!$A$1:$O$1776,11,FALSE),0) -> 360 | M155: 360 | N155: 0 | O155: =IFERROR(VLOOKUP($A155,ENEFN!$A$2:$N$1776,5,FALSE),0) -> 12600000 | P155: 12600000 | Q155: 0 | R155: =IFERROR(VLOOKUP($A155,ENEMT!$A$1:$O$1776,12,FALSE),0) -> 0 | S155: =IFERROR(VLOOKUP($A155,ENEMT!$A$1:$O$1776,15,FALSE),0) -> 0 | AP155: =IFERROR(VLOOKUP($A155,ENEFN!$A$1:$N$1776,6,FALSE),0) -> 0 | AQ155: =IFERROR(VLOOKUP($A155,ENEFN!$A$1:$N$1776,10,FALSE),0) -> 0
A156: 218-019-002-0002 | C156: 218 | D156: 19 | E156: 00 | F156: 000 | G156: 002 | H156: 000 | J156: 019-002-0002 | K156: Familia | L156: =IFERROR(VLOOKUP($A156,ENEMT!$A$1:$O$1776,11,FALSE),0) -> 430 | M156: 430 | N156: 0 | O156: =IFERROR(VLOOKUP($A156,ENEFN!$A$2:$N$1776,5,FALSE),0) -> 15050000 | P156: 15050000 | Q156: 0 | R156: =IFERROR(VLOOKUP($A156,ENEMT!$A$1:$O$1776,12,FALSE),0) -> 0 | S156: =IFERROR(VLOOKUP($A156,ENEMT!$A$1:$O$1776,15,FALSE),0) -> 0 | AP156: =IFERROR(VLOOKUP($A156,ENEFN!$A$1:$N$1776,6,FALSE),0) -> 0 | AQ156: =IFERROR(VLOOKUP($A156,ENEFN!$A$1:$N$1776,10,FALSE),0) -> 0
A157: 218-019-002-0003 | C157: 218 | D157: 19 | E157: 00 | F157: 000 | G157: 002 | H157: 000 | J157: 019-002-0003 | K157: Familia | L157: =IFERROR(VLOOKUP($A157,ENEMT!$A$1:$O$1776,11,FALSE),0) -> 264 | M157: 264 | N157: 0 | O157: =IFERROR(VLOOKUP($A157,ENEFN!$A$2:$N$1776,5,FALSE),0) -> 9254000 | P157: 9254000 | Q157: 0 | R157: =IFERROR(VLOOKUP($A157,ENEMT!$A$1:$O$1776,12,FALSE),0) -> 0 | S157: =IFERROR(VLOOKUP($A157,ENEMT!$A$1:$O$1776,15,FALSE),0) -> 0 | AP157: =IFERROR(VLOOKUP($A157,ENEFN!$A$1:$N$1776,6,FALSE),0) -> 0 | AQ157: =IFERROR(VLOOKUP($A157,ENEFN!$A$1:$N$1776,10,FALSE),0) -> 0
A158: 218-019-002-0004 | C158: 218 | D158: 19 | E158: 00 | F158: 000 | G158: 002 | H158: 000 | J158: 019-002-0004 | K158: Familia | L158: =IFERROR(VLOOKUP($A158,ENEMT!$A$1:$O$1776,11,FALSE),0) -> 1422 | M158: 1422 | N158: 0 | O158: =IFERROR(VLOOKUP($A158,ENEFN!$A$2:$N$1776,5,FALSE),0) -> 49546000 | P158: 49546000 | Q158: 0 | R158: =IFERROR(VLOOKUP($A158,ENEMT!$A$1:$O$1776,12,FALSE),0) -> 0 | S158: =IFERROR(VLOOKUP($A158,ENEMT!$A$1:$O$1776,15,FALSE),0) -> 0 | AP158: =IFERROR(VLOOKUP($A158,ENEFN!$A$1:$N$1776,6,FALSE),0) -> 0 | AQ158: =IFERROR(VLOOKUP($A158,ENEFN!$A$1:$N$1776,10,FALSE),0) -> 0
A159: 218-019-002-0006 | C159: 218 | D159: 19 | E159: 00 | F159: 000 | G159: 002 | H159: 000 | J159: 019-002-0006 | K159: Familia | L159: =IFERROR(VLOOKUP($A159,ENEMT!$A$1:$O$1776,11,FALSE),0) -> 14873 | M159: 14978 | N159: 0 | O159: =IFERROR(VLOOKUP($A159,ENEFN!$A$2:$N$1776,5,FALSE),0) -> 524216000 | P159: 524216000 | Q159: 2156000 | R159: =IFERROR(VLOOKUP($A159,ENEMT!$A$1:$O$1776,12,FALSE),0) -> 105 | S159: =IFERROR(VLOOKUP($A159,ENEMT!$A$1:$O$1776,15,FALSE),0) -> 0 | AP159: =IFERROR(VLOOKUP($A159,ENEFN!$A$1:$N$1776,6,FALSE),0) -> 0 | AQ159: =IFERROR(VLOOKUP($A159,ENEFN!$A$1:$N$1776,10,FALSE),0) -> 2156000

Sheet ENEMT (hidden)
A1: CONCATENADO | B1: PRODUCTO | C1: UNIDAD | D1: DESCRIPCION | E1: PG | F1: SP | G1: PY | H1: ACT | I1: OB | J1: UNIDAD DE MEDIDA | K1: INICIAL | L1: MODIFICADO | M1: VIGENTE | N1: PROGRAMADO | O1: EJECUTADO
A2: 201-000-001 | B2: 000-001 | C2: 201 | D2: Servicios Financieros | E2: 1 | F2: 0 | G2: 0 | H2: 3 | I2: 0 | J2: Evento | K2: 31 | L2: 0 | M2: 31 | N2: 0 | O2: 0
A3: 201-000-001-0001 | B3: 000-001-0001 | C3: 201 | D3: Servicios Financieros | E3: 1 | F3: 0 | G3: 0 | H3: 3 | I3: 0 | J3: Evento | K3: 31 | L3: 0 | M3: 31 | N3: 0 | O3: 0
A4: 201-000-003 | B4: 000-003 | C4: 201 | D4: Servicios Administrativos | E4: 1 | F4: 0 | G4: 0 | H4: 2 | I4: 0 | J4: Evento | K4: 319 | L4: 0 | M4: 319 | N4: 0 | O4: 0
A5: 201-000-003-0001 | B5: 000-003-0001 | C5: 201 | D5: Servicios Administrativos | E5: 1 | F5: 0 | G5: 0 | H5: 2 | I5: 0 | J5: Evento | K5: 319 | L5: 0 | M5: 319 | N5: 0 | O5: 0
A6: 201-000-004 | B6: 000-004 | C6: 201 | D6: Personas Jurídicas Beneficiadas Con Aportes Y/O Cuotas Para Transporte | E6: 99 | F6: 0 | G6: 0 | H6: 1 | I6: 0 | J6: Aporte | K6: 13 | L6: 0 | M6: 13 | N6: 0 | O6: 0
A7: 201-000-004-0001 | B7: 000-004-0001 | C7: 201 | D7: Personas Jurídicas Beneficiadas Con Aportes Y/O Cuotas Para Transporte | E7: 99 | F7: 0 | G7: 0 | H7: 1 | I7: 0 | J7: Aporte | K7: 13 | L7: 0 | M7: 13 | N7: 0 | O7: 0
A8: 201-000-005 | B8: 000-005 | C8: 201 | D8: Personas Jurídicas Beneficiadas Con Aportes Y/O Cuotas Para Comunicaciones | E8: 99 | F8: 0 | G8: 0 | H8: 2 | I8: 0 | J8: Aporte | K8: 1 | L8: 0 | M8: 1 | N8: 0 | O8: 0
A9: 201-000-005-0001 | B9: 000-005-0001 | C9: 201 | D9: Personas Jurídicas Beneficiadas Con Aportes Y/O Cuotas Para Comunicaciones | E9: 99 | F9: 0 | G9: 0 | H9: 2 | I9: 0 | J9: Aporte | K9: 1 | L9: 0 | M9: 1 | N9: 0 | O9: 0
A10: 201-000-006 | B10: 000-006 | C10: 201 | D10: Personas Jurídicas Beneficiadas Con Aportes Y/O Cuotas Para Control Del Medio Ambiente | E10: 99 | F10: 0 | G10: 0 | H10: 3 | I10: 0 | J10: Aporte | K10: 1 | L10: 0 | M10: 1 | N10: 0 | O10: 0
A11: 201-000-006-0001 | B11: 000-006-0001 | C11: 201 | D11: Personas Jurídicas Beneficiadas Con Aportes Y/O Cuotas Para Control Del Medio Ambiente | E11: 99 | F11: 0 | G11: 0 | H11: 3 | I11: 0 | J11: Aporte | K11: 1 | L11: 0 | M11: 1 | N11: 0 | O11: 0
A12: 201-000-009 | B12: 000-009 | C12: 201 | D12: Dirección Superior | E12: 1 | F12: 0 | G12: 0 | H12: 1 | I12: 0 | J12: Evento | K12: 216 | L12: 11 | M12: 227 | N12: 0 | O12: 0
A13: 201-000-009-0001 | B13: 000-009-0001 | C13: 201 | D13: Dirección Superior | E13: 1 | F13: 0 | G13: 0 | H13: 1 | I13: 0 | J13: Evento | K13: 216 | L13: 11 | M13: 227 | N13: 0 | O13: 0
A14: 202-017-003 | B14: 017-003 | C14: 202 | D14: Dirección Y Coordinación | E14: 11 | F14: 0 | G14: 0 | H14: 1 | I14: 0 | J14: Evento | K14: 472 | L14: 0 | M14: 472 | N14: 0 | O14: 0
A15: 202-017-003-0001 | B15: 017-003-0001 | C15: 202 | D15: Dirección Y Coordinación | E15: 11 | F15: 0 | G15: 0 | H15: 1 | I15: 0 | J15: Evento | K15: 472 | L15: 0 | M15: 472 | N15: 0 | O15: 0
A16: 202-017-005 | B16: 017-005 | C16: 202 | D16: Red Vial Con Servicios De Mantenimiento | E16: 11 | F16: 0 | G16: 0 | H16: 2 | I16: 0 | J16: Kilómetro | K16: 2657 | L16: 0 | M16: 2657 | N16: 0 | O16: 0
A17: 202-017-005-0001 | B17: 017-005-0001 | C17: 202 | D17: Red Vial Con Servicios De Mantenimiento | E17: 11 | F17: 0 | G17: 0 | H17: 2 | I17: 0 | J17: Kilómetro | K17: 2657 | L17: 0 | M17: 2657 | N17: 0 | O17: 0
A18: 202-017-008 | B18: 017-008 | C18: 202 | D18: Red Vial De Rutas Centroamericanas Con Servicios De Mantenimiento | E18: 11 | F18: 3 | G18: 0 | H18: 1 | I18: 0 | J18: Kilómetro | K18: 82 | L18: 0 | M18: 82 | N18: 0 | O18: 0
A19: 202-017-008-0001 | B19: 017-008-0001 | C19: 202 | D19: Red Vial Con Servicios De Rehabilitación | E19: 11 | F19: 3 | G19: 0 | H19: 1 | I19: 0 | J19: Kilómetro | K19: 82 | L19: 0 | M19: 82 | N19: 0 | O19: 0
A20: 203-017-001 | B20: 017-001 | C20: 203 | D20: Red Vial Pavimentada Con Servicios De Mantenimiento (Fideicomiso) | E20: 11 | F20: 1 | G20: 0 | H20: 1 | I20: 0 | J20: Documento | K20: 11 | L20: 0 | M20: 11 | N20: 0 | O20: 0
A21: 203-017-001-0003 | B21: 017-001-0003 | C21: 203 | D21: Red Vial Pavimentada Con Servicios De Mantenimiento (Fideicomiso) | E21: 11 | F21: 1 | G21: 0 | H21: 1 | I21: 0 | J21: Documento | K21: 11 | L21: 0 | M21: 11 | N21: 0 | O21: 0
A22: 203-017-002 | B22: 017-002 | C22: 203 | D22: Red Vial Pavimentada Con Mantenimiento (Ejecución Normal) | E22: 11 | F22: 1 | G22: 0 | H22: 2 | I22: 0 | J22: Kilómetro | K22: 6453 | L22: 0 | M22: 6453 | N22: 0 | O22: 0
A23: 203-017-002-0001 | B23: 017-002-0001 | C23: 203 | D23: Red Vial Pavimentada Con Mantenimiento (Ejecución Normal) | E23: 11 | F23: 1 | G23: 0 | H23: 2 | I23: 0 | J23: Kilómetro | K23: 6453 | L23: 0 | M23: 6453 | N23: 0 | O23: 0
A24: 203-017-003 | B24: 017-003 | C24: 203 | D24: Dirección Y Coordinación | E24: 11 | F24: 0 | G24: 0 | H24: 1 | I24: 0 | J24: Evento | K24: 120 | L24: 0 | M24: 120 | N24: 0 | O24: 0
A25: 203-017-003-0001 | B25: 017-003-0001 | C25: 203 | D25: Dirección Y Coordinación | E25: 11 | F25: 0 | G25: 0 | H25: 1 | I25: 0 | J25: Evento | K25: 120 | L25: 0 | M25: 120 | N25: 0 | O25: 0
A26: 203-017-006 | B26: 017-006 | C26: 203 | D26: Red Vial Rural Con Servicios De Mantenimiento (Fideicomiso) | E26: 11 | F26: 2 | G26: 0 | H26: 1 | I26: 0 | J26: Documento | K26: 10 | L26: 0 | M26: 10 | N26: 0 | O26: 0
A27: 203-017-006-0002 | B27: 017-006-0002 | C27: 203 | D27: Red Vial Rural Con Servicios De Mantenimiento (Fideicomiso) | E27: 11 | F27: 2 | G27: 0 | H27: 1 | I27: 0 | J27: Documento | K27: 10 | L27: 0 | M27: 10 | N27: 0 | O27: 0
A28: 203-017-007 | B28: 017-007 | C28: 203 | D28: Red Vial Terciaria Con Mantenimiento (Ejecución Normal) | E28: 11 | F28: 2 | G28: 0 | H28: 2 | I28: 0 | J28: Kilómetro | K28: 5349 | L28: 0 | M28: 5349 | N28: 0 | O28: 0
A29: 203-017-007-0001 | B29: 017-007-0001 | C29: 203 | D29: Red Vial Terciaria Con Mantenimiento (Ejecución Normal) | E29: 11 | F29: 2 | G29: 0 | H29: 2 | I29: 0 | J29: Kilómetro | K29: 5349 | L29: 0 | M29: 5349 | N29: 0 | O29: 0
A30: 204-018-005 | B30: 018-005 | C30: 204 | D30: Dirección Y Coordinación | E30: 12 | F30: 0 | G30: 0 | H30: 1 | I30: 0 | J30: Evento | K30: 85 | L30: 180 | M30: 265 | N30: 58 | O30: 58
A31: 204-018-005-0001 | B31: 018-005-0001 | C31: 204 | D31: Dirección Y Coordinación | E31: 12 | F31: 0 | G31: 0 | H31: 1 | I31: 0 | J31: Evento | K31: 85 | L31: 180 | M31: 265 | N31: 58 | O31: 58
A32: 204-018-006 | B32: 018-006 | C32: 204 | D32: Regulación De Transporte Extraurbano De Pasajeros Y Carga Por Carretera | E32: 12 | F32: 0 | G32: 0 | H32: 2 | I32: 0 | J32: Documento | K32: 4595 | L32: 11100 | M32: 15695 | N32: 830 | O32: 830
A33: 204-018-006-0001 | B33: 018-006-0001 | C33: 204 | D33: Personas Jurídicas O Individuales Con Licencias Otorgadas De Transporte Extraurbano De Pasajeros Por Carretera | E33: 12 | F33: 0 | G33: 0 | H33: 2 | I33: 0 | J33: Documento | K33: 525 | L33: 0 | M33: 525 | N33: 40 | O33: 40
A34: 204-018-006-0002 | B34: 018-006-0002 | C34: 204 | D34: Personas Jurídicas O Individuales Con Permisos Temporales Otorgados Para El Transporte Extraurbano De Pasajeros Por Carretera | E34: 12 | F34: 0 | G34: 0 | H34: 2 | I34: 0 | J34: Documento | K34: 1575 | L34: 2100 | M34: 3675 | N34: 160 | O34: 160
A35: 204-018-006-0003 | B35: 018-006-0003 | C35: 204 | D35: Personas Jurídicas O Individuales Con Licencias Modificadas De Transporte Extraurbano De Pasajeros Por Carretera | E35: 12 | F35: 0 | G35: 0 | H35: 2 | I35: 0 | J35: Documento | K35: 1550 | L35: 2000 | M35: 3550 | N35: 160 | O35: 160
A36: 204-018-006-0004 | B36: 018-006-0004 | C36: 204 | D36: Operativos De Control Fijo Del Servicio De Transporte Extraurbano | E36: 12 | F36: 0 | G36: 0 | H36: 2 | I36: 0 | J36: Evento | K36: 1470 | L36: 2200 | M36: 3670 | N36: 190 | O36: 190
A37: 204-018-006-0005 | B37: 018-006-0005 | C37: 204 | D37: Personas Jurídicas O Individuales Con Permisos Expresos Para El Transporte Extraurbano De Pasajeros Por Carretera | E37: 12 | F37: 0 | G37: 0 | H37: 2 | I37: 0 | J37: Documento | K37: 420 | L37: 6000 | M37: 6420 | N37: 400 | O37: 400
A38: 204-018-006-0007 | B38: 018-006-0007 | C38: 204 | D38: Personas Jurídicas O Individuales Con Constancias De Registro De Pilotos Para El Transporte Extraurbano De Pasajeros Por Carretera | E38: 12 | F38: 0 | G38: 0 | H38: 2 | I38: 0 | J38: Documento | K38: 525 | L38: 1000 | M38: 1525 | N38: 70 | O38: 70
A39: 205-000-005 | B39: 000-005 | C39: 205 | D39: Personas Jurídicas Beneficiadas Con Aportes Y/O Cuotas Para Comunicaciones | E39: 99 | F39: 0 | G39: 0 | H39: 2 | I39: 0 | J39: Aporte | K39: 1 | L39: 1 | M39: 2 | N39: 0 | O39: 0
A40: 205-000-005-0001 | B40: 000-005-0001 | C40: 205 | D40: Personas Jurídicas Beneficiadas Con Aportes Y/O Cuotas Para Comunicaciones | E40: 99 | F40: 0 | G40: 0 | H40: 2 | I40: 0 | J40: Aporte | K40: 1 | L40: 1 | M40: 2 | N40: 0 | O40: 0
A41: 205-000-013 | B41: 000-013 | C41: 205 | D41: Dirección Y Coordinación | E41: 13 | F41: 0 | G41: 0 | H41: 1 | I41: 0 | J41: Evento | K41: 990 | L41: 900 | M41: 1890 | N41: 815 | O41: 773
A42: 205-000-013-0001 | B42: 000-013-0001 | C42: 205 | D42: Dirección Y Coordinación | E42: 13 | F42: 0 | G42: 0 | H42: 1 | I42: 0 | J42: Evento | K42: 990 | L42: 900 | M42: 1890 | N42: 815 | O42: 773
A43: 205-000-014 | B43: 000-014 | C43: 205 | D43: Aeronaves Con Servicios De Aeronavegabilidad | E43: 13 | F43: 0 | G43: 0 | H43: 2 | I43: 0 | J43: Aeronave | K43: 1676 | L43: 2587 | M43: 4263 | N43: 343 | O43: 338
A44: 205-000-014-0001 | B44: 000-014-0001 | C44: 205 | D44: Pasajeros Que Ingresan Por Medio De Transporte Aéreo Con Servicios De Desembarque | E44: 13 | F44: 0 | G44: 0 | H44: 2 | I44: 0 | J44: Persona | K44: 291179 | L44: 1362624 | M44: 1653803 | N44: 129991 | O44: 129811
A45: 205-000-014-0002 | B45: 000-014-0002 | C45: 205 | D45: Pasajeros Que Egresan Por Medio De Transporte Aéreo Con Servicios De Embarque | E45: 13 | F45: 0 | G45: 0 | H45: 2 | I45: 0 | J45: Persona | K45: 1676801 | L45: -31518 | M45: 1645283 | N45: 136517 | O45: 136286
A46: 205-000-014-0003 | B46: 000-014-0003 | C46: 205 | D46: Carga Embarcada Para La Exportación Aérea | E46: 13 | F46: 0 | G46: 0 | H46: 2 | I46: 0 | J46: Kilogramo | K46: 86739745 | L46: -55553178 | M46: 31186567 | N46: 2174612 | O46: 2174612
A47: 205-000-014-0004 | B47: 000-014-0004 | C47: 205 | D47: Carga Desembarcada Para La Importación Aérea | E47: 13 | F47: 0 | G47: 0 | H47: 2 | I47: 0 | J47: Kilogramo | K47: 33930296 | L47: -9847837 | M47: 24082459 | N47: 1828291 | O47: 1828291
A48: 205-000-014-0005 | B48: 000-014-0005 | C48: 205 | D48: Aeronaves Con Inspección Técnica | E48: 13 | F48: 0 | G48: 0 | H48: 2 | I48: 0 | J48: Aeronave | K48: 297 | L48: 226 | M48: 523 | N48: 30 | O48: 27
A49: 205-000-014-0006 | B49: 000-014-0006 | C49: 205 | D49: Aeronaves Nacionales Y Extranjeras Con Certificado De Matrícula Autorizada Y Renovada | E49: 13 | F49: 0 | G49: 0 | H49: 2 | I49: 0 | J49: Aeronave | K49: 135 | L49: 75 | M49: 210 | N49: 13 | O49: 11
A50: 205-000-014-0007 | B50: 000-014-0007 | C50: 205 | D50: Aeronaves Con Servicios De Pernocte En Rampa Internacional Del Aeropuerto | E50: 13 | F50: 0 | G50: 0 | H50: 2 | I50: 0 | J50: Aeronave | K50: 1244 | L50: 2286 | M50: 3530 | N50: 300 | O50: 300
A51: 205-000-016 | B51: 000-016 | C51: 205 | D51: Aeronaves Con Servicios Operativos De Aviación Y Soporte Técnico | E51: 13 | F51: 0 | G51: 0 | H51: 3 | I51: 0 | J51: Aeronave | K51: 84696 | L51: 4555 | M51: 89251 | N51: 7080 | O51: 7080
A52: 205-000-016-0001 | B52: 000-016-0001 | C52: 205 | D52: Aeronaves Con Servicios Operativos De Aviación Y Soporte Técnico | E52: 13 | F52: 0 | G52: 0 | H52: 3 | I52: 0 | J52: Aeronave | K52: 84696 | L52: 4555 | M52: 89251 | N52: 7080 | O52: 7080
A53: 205-000-017 | B53: 000-017 | C53: 205 | D53: Infraestructura De La Red Aeroportuaria Nacional Con Servicios De Mantenimiento | E53: 13 | F53: 0 | G53: 0 | H53: 4 | I53: 0 | J53: Metro cuadrado | K53: 728874 | L53: -543530 | M53: 185344 | N53: 9452 | O53: 8981
A54: 205-000-017-0001 | B54: 000-017-0001 | C54: 205 | D54: Infraestructura De La Red Aeroportuaria Nacional Con Servicios De Mantenimiento | E54: 13 | F54: 0 | G54: 0 | H54: 4 | I54: 0 | J54: Metro cuadrado | K54: 728874 | L54: -543530 | M54: 185344 | N54: 9452 | O54: 8981
A55: 206-000-018 | B55: 000-018 | C55: 206 | D55: Dirección Y Coordinación | E55: 14 | F55: 0 | G55: 0 | H55: 1 | I55: 0 | J55: Evento | K55: 233 | L55: -3 | M55: 230 | N55: 0 | O55: 0
A56: 206-000-018-0001 | B56: 000-018-0001 | C56: 206 | D56: Dirección Y Coordinación | E56: 14 | F56: 0 | G56: 0 | H56: 1 | I56: 0 | J56: Evento | K56: 117 | L56: 0 | M56: 117 | N56: 0 | O56: 0
A57: 206-000-018-0002 | B57: 000-018-0002 | C57: 206 | D57: Población Estudiantil Beneficiada Con Equipo Educacional | E57: 14 | F57: 0 | G57: 0 | H57: 1 | I57: 0 | J57: Persona | K57: 10354 | L57: 0 | M57: 10354 | N57: 0 | O57: 0
A58: 206-000-018-0003 | B58: 000-018-0003 | C58: 206 | D58: Remozamiento De Edificios Públicos | E58: 14 | F58: 0 | G58: 0 | H58: 1 | I58: 0 | J58: Evento | K58: 116 | L58: -3 | M58: 113 | N58: 0 | O58: 0
A59: 207-000-019 | B59: 000-019 | C59: 207 | D59: Dirección Y Coordinación | E59: 15 | F59: 0 | G59: 0 | H59: 1 | I59: 0 | J59: Evento | K59: 233 | L59: 0 | M59: 233 | N59: 73 | O59: 73
A60: 207-000-019-0001 | B60: 000-019-0001 | C60: 207 | D60: Dirección Y Coordinación | E60: 15 | F60: 0 | G60: 0 | H60: 1 | I60: 0 | J60: Evento | K60: 233 | L60: 0 | M60: 233 | N60: 73 | O60: 73
A61: 207-000-020 | B61: 000-020 | C61: 207 | D61: Personas Individuales Y Jurídicas Registradas En Radiodifusión Y Televisión | E61: 15 | F61: 0 | G61: 0 | H61: 2 | I61: 0 | J61: Persona | K61: 997 | L61: 0 | M61: 997 | N61: 100 | O61: 100
A62: 207-000-020-0003 | B62: 000-020-0003 | C62: 207 | D62: Comerciales Registrados De Personas Jurídicas O Individuales | E62: 15 | F62: 0 | G62: 0 | H62: 2 | I62: 0 | J62: Persona | K62: 790 | L62: 0 | M62: 790 | N62: 80 | O62: 80
A63: 207-000-020-0004 | B63: 000-020-0004 | C63: 207 | D63: Técnicos Con Registro En Radio Y/O Televisión | E63: 15 | F63: 0 | G63: 0 | H63: 2 | I63: 0 | J63: Persona | K63: 3 | L63: 0 | M63: 3 | N63: 0 | O63: 0
A64: 207-000-020-0005 | B64: 000-020-0005 | C64: 207 | D64: Locutores Registrados En Radio Y/O Televisión | E64: 15 | F64: 0 | G64: 0 | H64: 2 | I64: 0 | J64: Persona | K64: 204 | L64: 0 | M64: 204 | N64: 20 | O64: 20
A65: 207-000-021 | B65: 000-021 | C65: 207 | D65: Servicios De Radiodifusión | E65: 15 | F65: 0 | G65: 0 | H65: 3 | I65: 0 | J65: Evento | K65: 54998 | L65: 64000 | M65: 118998 | N65: 4636 | O65: 4611
A66: 207-000-021-0001 | B66: 000-021-0001 | C66: 207 | D66: Programas Radiales A Control Remoto Difundidos | E66: 15 | F66: 0 | G66: 0 | H66: 3 | I66: 0 | J66: Evento | K66: 2818 | L66: 0 | M66: 2818 | N66: 235 | O66: 235
A67: 207-000-021-0002 | B67: 000-021-0002 | C67: 207 | D67: Programas Radiales Difundidos | E67: 15 | F67: 0 | G67: 0 | H67: 3 | I67: 0 | J67: Evento | K67: 11880 | L67: 0 | M67: 11880 | N67: 976 | O67: 951
A68: 207-000-021-0003 | B68: 000-021-0003 | C68: 207 | D68: Spot Gubernamentales Otorgados A Entidades Públicas | E68: 15 | F68: 0 | G68: 0 | H68: 3 | I68: 0 | J68: Evento | K68: 40300 | L68: 64000 | M68: 104300 | N68: 3425 | O68: 3425
A69: 208-000-024 | B69: 000-024 | C69: 208 | D69: Dirección Y Coordinación | E69: 21 | F69: 0 | G69: 0 | H69: 1 | I69: 0 | J69: Evento | K69: 218 | L69: 0 | M69: 218 | N69: 39 | O69: 39
A70: 208-000-024-0001 | B70: 000-024-0001 | C70: 208 | D70: Dirección Y Coordinación | E70: 21 | F70: 0 | G70: 0 | H70: 1 | I70: 0 | J70: Evento | K70: 218 | L70: 0 | M70: 218 | N70: 39 | O70: 39
A71: 208-000-025 | B71: 000-025 | C71: 208 | D71: Empresas De Cable Con Registro Y Supervisión | E71: 21 | F71: 0 | G71: 0 | H71: 2 | I71: 0 | J71: Entidad | K71: 2958 | L71: 0 | M71: 2958 | N71: 64 | O71: 64
A72: 208-000-025-0001 | B72: 000-025-0001 | C72: 208 | D72: Empresas De Cable Con Visitas De Supervisión | E72: 21 | F72: 0 | G72: 0 | H72: 2 | I72: 0 | J72: Entidad | K72: 2814 | L72: 0 | M72: 2814 | N72: 64 | O72: 64
A73: 208-000-025-0002 | B73: 000-025-0002 | C73: 208 | D73: Empresas De Cable Nuevas Con Registro | E73: 21 | F73: 0 | G73: 0 | H73: 2 | I73: 0 | J73: Entidad | K73: 26 | L73: 0 | M73: 26 | N73: 0 | O73: 0
A74: 208-000-025-0005 | B74: 000-025-0005 | C74: 208 | D74: Empresas Sancionadas Por Incumplimiento A La Ley Del Cable | E74: 21 | F74: 0 | G74: 0 | H74: 2 | I74: 0 | J74: Entidad | K74: 118 | L74: 0 | M74: 118 | N74: 0 | O74: 0
A75: 209-000-005 | B75: 000-005 | C75: 209 | D75: Personas Jurídicas Beneficiadas Con Aportes Y/O Cuotas Para Comunicaciones | E75: 99 | F75: 0 | G75: 0 | H75: 2 | I75: 0 | J75: Aporte | K75: 2 | L75: 0 | M75: 2 | N75: 0 | O75: 0
A76: 209-000-005-0001 | B76: 000-005-0001 | C76: 209 | D76: Personas Jurídicas Beneficiadas Con Aportes Y/O Cuotas Para Comunicaciones | E76: 99 | F76: 0 | G76: 0 | H76: 2 | I76: 0 | J76: Aporte | K76: 2 | L76: 0 | M76: 2 | N76: 0 | O76: 0
A77: 209-000-006 | B77: 000-006 | C77: 209 | D77: Personas Jurídicas Beneficiadas Con Aportes Y/O Cuotas Para Control Del Medio Ambiente | E77: 99 | F77: 0 | G77: 0 | H77: 3 | I77: 0 | J77: Aporte | K77: 2 | L77: 0 | M77: 2 | N77: 0 | O77: 0
A78: 209-000-006-0001 | B78: 000-006-0001 | C78: 209 | D78: Personas Jurídicas Beneficiadas Con Aportes Y/O Cuotas Para Control Del Medio Ambiente | E78: 99 | F78: 0 | G78: 0 | H78: 3 | I78: 0 | J78: Aporte | K78: 2 | L78: 0 | M78: 2 | N78: 0 | O78: 0
A79: 209-020-006 | B79: 020-006 | C79: 209 | D79: Dirección Y Coordinación | E79: 16 | F79: 0 | G79: 0 | H79: 1 | I79: 0 | J79: Evento | K79: 850 | L79: -44 | M79: 806 | N79: 0 | O79: 0
A80: 209-020-006-0001 | B80: 020-006-0001 | C80: 209 | D80: Dirección Y Coordinación | E80: 16 | F80: 0 | G80: 0 | H80: 1 | I80: 0 | J80: Evento | K80: 850 | L80: -44 | M80: 806 | N80: 0 | O80: 0
A81: 209-020-007 | B81: 020-007 | C81: 209 | D81: Boletines Con Información Climática | E81: 16 | F81: 0 | G81: 0 | H81: 2 | I81: 0 | J81: Documento | K81: 16107 | L81: -2258 | M81: 13849 | N81: 0 | O81: 0
A82: 209-020-007-0001 | B82: 020-007-0001 | C82: 209 | D82: Usuarios Atendidos Con Información Climática | E82: 16 | F82: 0 | G82: 0 | H82: 2 | I82: 0 | J82: Documento | K82: 12763 | L82: -1173 | M82: 11590 | N82: 0 | O82: 0
A83: 209-020-007-0002 | B83: 020-007-0002 | C83: 209 | D83: Boletines Emitidos Con Información Meteorológica | E83: 16 | F83: 0 | G83: 0 | H83: 2 | I83: 0 | J83: Documento | K83: 3344 | L83: -1085 | M83: 2259 | N83: 0 | O83: 0
A84: 209-020-008 | B84: 020-008 | C84: 209 | D84: Información De Amenaza Sísmica Y Volcánica Registrada | E84: 16 | F84: 0 | G84: 0 | H84: 3 | I84: 0 | J84: Documento | K84: 8100 | L84: 3883 | M84: 11983 | N84: 0 | O84: 0
A85: 209-020-008-0001 | B85: 020-008-0001 | C85: 209 | D85: Boletines Emitidos Con Información Geológica | E85: 16 | F85: 0 | G85: 0 | H85: 3 | I85: 0 | J85: Documento | K85: 3872 | L85: 2075 | M85: 5947 | N85: 0 | O85: 0
A86: 209-020-008-0002 | B86: 020-008-0002 | C86: 209 | D86: Informes Emitidos Sobre Deslizamiento De Tierra | E86: 16 | F86: 0 | G86: 0 | H86: 3 | I86: 0 | J86: Documento | K86: 4228 | L86: 1808 | M86: 6036 | N86: 0 | O86: 0
A87: 209-020-009 | B87: 020-009 | C87: 209 | D87: Información De Actividad Hidrológica Registrada | E87: 16 | F87: 0 | G87: 0 | H87: 4 | I87: 0 | J87: Documento | K87: 9508 | L87: 108 | M87: 9616 | N87: 0 | O87: 0
A88: 209-020-009-0001 | B88: 020-009-0001 | C88: 209 | D88: Boletines Con Información Hidrológica | E88: 16 | F88: 0 | G88: 0 | H88: 4 | I88: 0 | J88: Documento | K88: 3265 | L88: 1135 | M88: 4400 | N88: 0 | O88: 0
A89: 209-020-009-0002 | B89: 020-009-0002 | C89: 209 | D89: Publicaciones Anuales Con Información Consolidada De Efemérides Solar, Pronóstico De Mareas, Estudios De Calidad De Agua Y De Cuencas | E89: 16 | F89: 0 | G89: 0 | H89: 4 | I89: 0 | J89: Documento | K89: 2985 | L89: -29 | M89: 2956 | N89: 0 | O89: 0
A90: 209-020-009-0003 | B90: 020-009-0003 | C90: 209 | D90: Boletines Emitidos Con Información Del Índice De Calidad Del Aire | E90: 16 | F90: 0 | G90: 0 | H90: 4 | I90: 0 | J90: Documento | K90: 3258 | L90: -998 | M90: 2260 | N90: 0 | O90: 0
A91: 210-000-005 | B91: 000-005 | C91: 210 | D91: Personas Jurídicas Beneficiadas Con Aportes Y/O Cuotas Para Comunicaciones | E91: 99 | F91: 0 | G91: 0 | H91: 2 | I91: 0 | J91: Aporte | K91: 3 | L91: -1 | M91: 2 | N91: 0 | O91: 0
A92: 210-000-005-0001 | B92: 000-005-0001 | C92: 210 | D92: Personas Jurídicas Beneficiadas Con Aportes Y/O Cuotas Para Comunicaciones | E92: 99 | F92: 0 | G92: 0 | H92: 2 | I92: 0 | J92: Aporte | K92: 3 | L92: -1 | M92: 2 | N92: 0 | O92: 0
A93: 210-000-029 | B93: 000-029 | C93: 210 | D93: Dirección Y Coordinación | E93: 17 | F93: 0 | G93: 0 | H93: 1 | I93: 0 | J93: Evento | K93: 608 | L93: 92 | M93: 700 | N93: 198 | O93: 194
A94: 210-000-029-0001 | B94: 000-029-0001 | C94: 210 | D94: Dirección Y Coordinación | E94: 17 | F94: 0 | G94: 0 | H94: 1 | I94: 0 | J94: Evento | K94: 608 | L94: 92 | M94: 700 | N94: 198 | O94: 194
A95: 210-000-030 | B95: 000-030 | C95: 210 | D95: Personas Individuales Y/O Jurídicas Con Servicios Postales Otorgados | E95: 17 | F95: 0 | G95: 0 | H95: 2 | I95: 0 | J95: Persona | K95: 476400 | L95: 47067 | M95: 523467 | N95: 27622 | O95: 26383
A96: 210-000-030-0001 | B96: 000-030-0001 | C96: 210 | D96: Personas Individuales Y/O Jurídicas Con Servicios Postales Otorgados | E96: 17 | F96: 0 | G96: 0 | H96: 2 | I96: 0 | J96: Persona | K96: 476400 | L96: 47067 | M96: 523467 | N96: 27622 | O96: 26383
A97: 211-000-005 | B97: 000-005 | C97: 211 | D97: Personas Jurídicas Beneficiadas Con Aportes Y/O Cuotas Para Comunicaciones | E97: 99 | F97: 0 | G97: 0 | H97: 2 | I97: 0 | J97: Aporte | K97: 2 | L97: 0 | M97: 2 | N97: 0 | O97: 0
A98: 211-000-005-0001 | B98: 000-005-0001 | C98: 211 | D98: Personas Jurídicas Beneficiadas Con Aportes Y/O Cuotas Para Comunicaciones | E98: 99 | F98: 0 | G98: 0 | H98: 2 | I98: 0 | J98: Aporte | K98: 2 | L98: 0 | M98: 2 | N98: 0 | O98: 0
A99: 211-022-007 | B99: 022-007 | C99: 211 | D99: Dirección Y Coordinación | E99: 22 | F99: 0 | G99: 0 | H99: 1 | I99: 0 | J99: Evento | K99: 154 | L99: -18 | M99: 136 | N99: 60 | O99: 52
A100: 211-022-007-0001 | B100: 022-007-0001 | C100: 211 | D100: Dirección Y Coordinación | E100: 22 | F100: 0 | G100: 0 | H100: 1 | I100: 0 | J100: Evento | K100: 154 | L100: -18 | M100: 136 | N100: 60 | O100: 52
A101: 211-022-008 | B101: 022-008 | C101: 211 | D101: Proveedores, Usuarios Y Usufructuarios De Frecuencias Con Servicios De Regulación | E101: 22 | F101: 0 | G101: 0 | H101: 2 | I101: 0 | J101: Documento | K101: 4 | L101: 18 | M101: 22 | N101: 0 | O101: 0
A102: 211-022-008-0001 | B102: 022-008-0001 | C102: 211 | D102: Títulos De Usufructo Emitidos Para Personas Individuales Y/O Jurídicas | E102: 22 | F102: 0 | G102: 0 | H102: 2 | I102: 0 | J102: Documento | K102: 1 | L102: 14 | M102: 15 | N102: 0 | O102: 0
A103: 211-022-008-0002 | B103: 022-008-0002 | C103: 211 | D103: Licencias Emitidas A Proveedores Satelitales | E103: 22 | F103: 0 | G103: 0 | H103: 2 | I103: 0 | J103: Documento | K103: 2 | L103: 0 | M103: 2 | N103: 0 | O103: 0
A104: 211-022-008-0003 | B104: 022-008-0003 | C104: 211 | D104: Licencias Emitidas A Usuarios Satelitales | E104: 22 | F104: 0 | G104: 0 | H104: 2 | I104: 0 | J104: Documento | K104: 1 | L104: 0 | M104: 1 | N104: 0 | O104: 0
A105: 211-022-008-0004 | B105: 022-008-0004 | C105: 211 | D105: Monitoreo Al Espectro Radioeléctrico | E105: 22 | F105: 0 | G105: 0 | H105: 2 | I105: 0 | J105: Evento | K105: 175 | L105: 0 | M105: 175 | N105: 0 | O105: 0
A106: 211-022-009 | B106: 022-009 | C106: 211 | D106: Recursos De Telefonía Regulados | E106: 22 | F106: 0 | G106: 0 | H106: 3 | I106: 0 | J106: Documento | K106: 5267 | L106: 0 | M106: 5267 | N106: 314 | O106: 313
A107: 211-022-009-0001 | B107: 022-009-0001 | C107: 211 | D107: Operadores De Telefonía Registrados | E107: 22 | F107: 0 | G107: 0 | H107: 3 | I107: 0 | J107: Registro | K107: 184 | L107: 0 | M107: 184 | N107: 16 | O107: 11
A108: 211-022-009-0002 | B108: 022-009-0002 | C108: 211 | D108: Numeración Asignada A Personas Jurídicas Y /O Individuales | E108: 22 | F108: 0 | G108: 0 | H108: 3 | I108: 0 | J108: Documento | K108: 125 | L108: 0 | M108: 125 | N108: 13 | O108: 13
A109: 211-022-009-0003 | B109: 022-009-0003 | C109: 211 | D109: Puntos De Señalización Asignados A Personas Jurídicas Y/O Individuales | E109: 22 | F109: 0 | G109: 0 | H109: 3 | I109: 0 | J109: Documento | K109: 30 | L109: 0 | M109: 30 | N109: 1 | O109: 0
A110: 211-022-009-0004 | B110: 022-009-0004 | C110: 211 | D110: Constancias De Inscripción De Usuarios Jurídicos Y/O Individuales De Telecomunicaciones Móviles | E110: 22 | F110: 0 | G110: 0 | H110: 3 | I110: 0 | J110: Documento | K110: 5112 | L110: 0 | M110: 5112 | N110: 300 | O110: 300
A111: 212-000-010 | B111: 000-010 | C111: 212 | D111: Dirección Y Coordinación | E111: 23 | F111: 0 | G111: 0 | H111: 1 | I111: 0 | J111: Evento | K111: 38 | L111: -4 | M111: 34 | N111: 27 | O111: 27
A112: 212-000-010-0001 | B112: 000-010-0001 | C112: 212 | D112: Dirección Y Coordinación | E112: 23 | F112: 0 | G112: 0 | H112: 1 | I112: 0 | J112: Evento | K112: 38 | L112: -4 | M112: 34 | N112: 27 | O112: 27
A113: 212-000-015 | B113: 000-015 | C113: 212 | D113: Personas Beneficiadas Con Proyectos, Supervisión De Telefonía Y Conectividad Subsidiados | E113: 23 | F113: 0 | G113: 0 | H113: 2 | I113: 0 | J113: Persona | K113: 707 | L113: -681 | M113: 26 | N113: 0 | O113: 0
A114: 212-000-015-0001 | B114: 000-015-0001 | C114: 212 | D114: Personas Beneficiadas Con Proyectos, Supervisión De Telefonía Y Conectividad Subsidiados | E114: 23 | F114: 0 | G114: 0 | H114: 2 | I114: 0 | J114: Persona | K114: 707 | L114: -681 | M114: 26 | N114: 0 | O114: 0
A115: 214-000-022 | B115: 000-022 | C115: 214 | D115: Dirección Y Coordinación | E115: 20 | F115: 0 | G115: 0 | H115: 1 | I115: 0 | J115: Evento | K115: 201 | L115: -61 | M115: 140 | N115: 60 | O115: 60
A116: 214-000-022-0001 | B116: 000-022-0001 | C116: 214 | D116: Dirección Y Coordinación | E116: 20 | F116: 0 | G116: 0 | H116: 1 | I116: 0 | J116: Evento | K116: 201 | L116: -61 | M116: 140 | N116: 60 | O116: 60
A117: 214-000-023 | B117: 000-023 | C117: 214 | D117: Familias Beneficiadas Con Adjudicación De Propiedad De Vivienda | E117: 20 | F117: 0 | G117: 0 | H117: 2 | I117: 0 | J117: Familia | K117: 126 | L117: -69 | M117: 57 | N117: 0 | O117: 0
A118: 214-000-023-0001 | B118: 000-023-0001 | C118: 214 | D118: Familias Beneficiadas Con Adjudicación De Propiedad De Vivienda | E118: 20 | F118: 0 | G118: 0 | H118: 2 | I118: 0 | J118: Familia | K118: 126 | L118: -69 | M118: 57 | N118: 0 | O118: 0
A119: 214-000-023-0002 | B119: 000-023-0002 | C119: 214 | D119: Recuperación De La Cartera Crediticia | E119: 20 | F119: 0 | G119: 0 | H119: 2 | I119: 0 | J119: Unidad monetaria | K119: 1389000 | L119: 0 | M119: 1389000 | N119: 60000 | O119: 60000
A120: 216-021-001 | B120: 021-001 | C120: 216 | D120: Dirección Y Coordinación | E120: 18 | F120: 0 | G120: 0 | H120: 1 | I120: 0 | J120: Evento | K120: 720 | L120: -527 | M120: 193 | N120: 0 | O120: 0
A121: 216-021-001-0001 | B121: 021-001-0001 | C121: 216 | D121: Dirección Y Coordinación | E121: 18 | F121: 0 | G121: 0 | H121: 1 | I121: 0 | J121: Evento | K121: 720 | L121: -527 | M121: 193 | N121: 0 | O121: 0
A122: 216-021-002 | B122: 021-002 | C122: 216 | D122: Conductores Beneficiados Con Servicios De Vigilancia Y Asistencia Vial | E122: 18 | F122: 0 | G122: 0 | H122: 2 | I122: 0 | J122: Persona | K122: 318887 | L122: -13780 | M122: 305107 | N122: 0 | O122: 0
A123: 216-021-002-0001 | B123: 021-002-0001 | C123: 216 | D123: Personas Capacitadas En El Programa De Educación Y Seguridad Vial | E123: 18 | F123: 0 | G123: 0 | H123: 2 | I123: 0 | J123: Persona | K123: 23100 | L123: -3100 | M123: 20000 | N123: 0 | O123: 0
A124: 216-021-002-0002 | B124: 021-002-0002 | C124: 216 | D124: Elementos Formados Como Brigadas De Protección Y Seguridad Vial En Carretera | E124: 18 | F124: 0 | G124: 0 | H124: 2 | I124: 0 | J124: Persona | K124: 107 | L124: 0 | M124: 107 | N124: 0 | O124: 0
A125: 216-021-002-0003 | B125: 021-002-0003 | C125: 216 | D125: Conductores Atendidos Con Servicios De Seguridad Y Asistencia Vial En Carretera | E125: 18 | F125: 0 | G125: 0 | H125: 2 | I125: 0 | J125: Persona | K125: 64680 | L125: -4680 | M125: 60000 | N125: 0 | O125: 0
A126: 216-021-002-0004 | B126: 021-002-0004 | C126: 216 | D126: Servicios De Regulación Para Beneficio De Conductores Que Transitan En Carretera | E126: 18 | F126: 0 | G126: 0 | H126: 2 | I126: 0 | J126: Evento | K126: 7710 | L126: -710 | M126: 7000 | N126: 0 | O126: 0
A127: 216-021-002-0005 | B127: 021-002-0005 | C127: 216 | D127: Personas Atendidas Telefónicamente Por Medio Del Sistema 1520 (Emergencia Vial) | E127: 18 | F127: 0 | G127: 0 | H127: 2 | I127: 0 | J127: Persona | K127: 231000 | L127: -6000 | M127: 225000 | N127: 0 | O127: 0
A128: 216-021-002-0006 | B128: 021-002-0006 | C128: 216 | D128: Boleta De Llamada De Atención A Conductores Infractores | E128: 18 | F128: 0 | G128: 0 | H128: 2 | I128: 0 | J128: Documento | K128: 3234 | L128: -634 | M128: 2600 | N128: 0 | O128: 0
A129: 216-021-002-0007 | B129: 021-002-0007 | C129: 216 | D129: Investigaciones Realizadas De Accidentes De Tránsito En Carreteras | E129: 18 | F129: 0 | G129: 0 | H129: 2 | I129: 0 | J129: Evento | K129: 37 | L129: 28 | M129: 65 | N129: 0 | O129: 0
A130: 217-000-022 | B130: 000-022 | C130: 217 | D130: Dirección Y Coordinación | E130: 20 | F130: 0 | G130: 0 | H130: 1 | I130: 0 | J130: Evento | K130: 263 | L130: -2 | M130: 261 | N130: 0 | O130: 0
A131: 217-000-022-0001 | B131: 000-022-0001 | C131: 217 | D131: Dirección Y Coordinación | E131: 20 | F131: 0 | G131: 0 | H131: 1 | I131: 0 | J131: Evento | K131: 263 | L131: -2 | M131: 261 | N131: 0 | O131: 0
A132: 217-017-005 | B132: 017-005 | C132: 217 | D132: Red Vial Con Servicios De Mantenimiento | E132: 11 | F132: 0 | G132: 0 | H132: 2 | I132: 0 | J132: Kilómetro | K132: 219 | L132: 0 | M132: 219 | N132: 0 | O132: 0
A133: 217-017-005-0001 | B133: 017-005-0001 | C133: 217 | D133: Red Vial Con Servicios De Mantenimiento | E133: 11 | F133: 0 | G133: 0 | H133: 2 | I133: 0 | J133: Kilómetro | K133: 219 | L133: 0 | M133: 219 | N133: 0 | O133: 0
A134: 217-017-005-0002 | B134: 017-005-0002 | C134: 217 | D134: Dirección Y Coordinación (Convoyes) | E134: 11 | F134: 0 | G134: 0 | H134: 2 | I134: 0 | J134: Evento | K134: 128 | L134: 13 | M134: 141 | N134: 0 | O134: 0
A135: 218-019-001 | B135: 019-001 | C135: 218 | D135: Dirección Y Coordinación | E135: 19 | F135: 0 | G135: 0 | H135: 1 | I135: 0 | J135: Evento | K135: 225 | L135: 0 | M135: 225 | N135: 18 | O135: 18
A136: 218-019-001-0001 | B136: 019-001-0001 | C136: 218 | D136: Dirección Y Coordinación | E136: 19 | F136: 0 | G136: 0 | H136: 1 | I136: 0 | J136: Evento | K136: 225 | L136: 0 | M136: 225 | N136: 18 | O136: 18
A137: 218-019-002 | B137: 019-002 | C137: 218 | D137: Familias Beneficiadas Con Subsidios Para La Vivienda | E137: 19 | F137: 0 | G137: 0 | H137: 2 | I137: 0 | J137: Familia | K137: 17349 | L137: 105 | M137: 17454 | N137: 0 | O137: 0
A138: 218-019-002-0001 | B138: 019-002-0001 | C138: 218 | D138: Familias Con Subsidio Para Adquisición De Lote Con Servicios Básicos | E138: 19 | F138: 0 | G138: 0 | H138: 2 | I138: 0 | J138: Familia | K138: 360 | L138: 0 | M138: 360 | N138: 0 | O138: 0
A139: 218-019-002-0002 | B139: 019-002-0002 | C139: 218 | D139: Familias Con Subsidio Para Adquisición De Lote Con Vivienda | E139: 19 | F139: 0 | G139: 0 | H139: 2 | I139: 0 | J139: Familia | K139: 430 | L139: 0 | M139: 430 | N139: 0 | O139: 0
A140: 218-019-002-0003 | B140: 019-002-0003 | C140: 218 | D140: Familias Con Subsidio Para La Adquisición De Módulo Habitacional En Propiedad Horizontal | E140: 19 | F140: 0 | G140: 0 | H140: 2 | I140: 0 | J140: Familia | K140: 264 | L140: 0 | M140: 264 | N140: 0 | O140: 0
A141: 218-019-002-0004 | B141: 019-002-0004 | C141: 218 | D141: Familias Con Subsidio Para El Mejoramiento, Ampliación Y Reparación De Vivienda | E141: 19 | F141: 0 | G141: 0 | H141: 2 | I141: 0 | J141: Familia | K141: 1422 | L141: 0 | M141: 1422 | N141: 0 | O141: 0
A142: 218-019-002-0006 | B142: 019-002-0006 | C142: 218 | D142: Familias Con Subsidio Para Construcción De Vivienda | E142: 19 | F142: 0 | G142: 0 | H142: 2 | I142: 0 | J142: Familia | K142: 14873 | L142: 105 | M142: 14978 | N142: 0 | O142: 0
A143: -
A144: -
A145: -
A146: -
A147: -
A148: -
A149: -
A150: -
A151: -
A152: -
A153: -
A154: -
A155: -
A156: -
A157: -
A158: -
A159: -
A160: -
A161: -
A162: -
A163: -
A164: -
A165: -
A166: -
A167: -
A168: -
A169: -
A170: -
A171: -
A172: -
A173: -
A174: -
A175: -
A176: -
A177: -
A178: -
A179: -
A180: -
A181: -
A182: -
A183: -
A184: -
A185: -
A186: -
A187: -
A188: -
A189: -
A190: -
A191: -
A192: -
A193: -
A194: -
A195: -
A196: -
A197: -
A198: -
A199: -
A200: -
... 425 more rows

Sheet ENEFN (hidden)
A1: CONCATENADO | B1: PRODUCTO | C1: DESCRIPCION | D1: UNIDAD | E1: ASIGNADO | F1: MODIFICADO | G1: VIGENTE | H1: PRECOMPROMISO | I1: COMPROMETIDO | J1: DEVENGADO | K1: SALDO POR COMPROMETER | L1: SALDO POR DEVENGAR | M1: % EJEC | N1: Columna1
A2: 201-000-001-0001 | B2: 000-001-0001 | C2: Servicios financieros | D2: 201 | E2: 15083171 | F2: 0 | G2: 15083171 | H2: 0 | I2: 0 | J2: 0 | K2: 15083171 | L2: 15083171 | M2: 0 | N2: 201-000-001-0001
A3: 201-000-003-0001 | B3: 000-003-0001 | C3: Servicios administrativos | D3: 201 | E3: 15893462 | F3: 0 | G3: 15893462 | H3: 0 | I3: 1907931.32 | J3: 1907931.32 | K3: 13985530.68 | L3: 13985530.68 | M3: 12.00450424 | N3: 201-000-003-0001
A4: 201-000-004-0001 | B4: 000-004-0001 | C4: Personas jurídicas beneficiadas con aportes y/o cuotas para transporte | D4: 201 | E4: 5874520 | F4: 0 | G4: 5874520 | H4: 0 | I4: 384339 | J4: 384339 | K4: 5490181 | L4: 5490181 | M4: 6.54247496 | N4: 201-000-004-0001
A5: 201-000-005-0001 | B5: 000-005-0001 | C5: Personas jurídicas beneficiadas con aportes y/o cuotas para comunicaciones | D5: 201 | E5: 55159 | F5: 0 | G5: 55159 | H5: 0 | I5: 54464.94 | J5: 54464.94 | K5: 694.06 | L5: 694.06 | M5: 98.74171033 | N5: 201-000-005-0001
A6: 201-000-006-0001 | B6: 000-006-0001 | C6: Personas jurídicas beneficiadas con aportes y/o cuotas para control del medio ambiente | D6: 201 | E6: 400000 | F6: 0 | G6: 400000 | H6: 0 | I6: 0 | J6: 0 | K6: 400000 | L6: 400000 | M6: 0 | N6: 201-000-006-0001
A7: 201-000-009-0001 | B7: 000-009-0001 | C7: Dirección superior | D7: 201 | E7: 25693688 | F7: 0 | G7: 25693688 | H7: 0 | I7: 0 | J7: 0 | K7: 25693688 | L7: 25693688 | M7: 0 | N7: 201-000-009-0001
A8: 202-017-003-0001 | B8: 017-003-0001 | C8: Dirección y coordinación | D8: 202 | E8: 89558631 | F8: 0 | G8: 89558631 | H8: 0 | I8: 778525.64 | J8: 778525.64 | K8: 88780105.36 | L8: 88780105.36 | M8: 0.8692915817 | N8: 202-017-003-0001
A9: 202-017-005-0001 | B9: 017-005-0001 | C9: Red vial con servicios de mantenimiento | D9: 202 | E9: 201689369 | F9: 0 | G9: 201689369 | H9: 0 | I9: 2822.84 | J9: 2822.84 | K9: 201686546.2 | L9: 201686546.2 | M9: 0.001399597814 | N9: 202-017-005-0001
A10: 202-017-008-0001 | B10: 017-008-0001 | C10: Red vial con servicios de rehabilitación | D10: 202 | E10: 311854271 | F10: 0 | G10: 311854271 | H10: 0 | I10: 0 | J10: 0 | K10: 311854271 | L10: 311854271 | M10: 0 | N10: 202-017-008-0001
A11: 203-017-001-0003 | B11: 017-001-0003 | C11: Red vial pavimentada con servicios de mantenimiento (fideicomiso) | D11: 203 | E11: 5240000 | F11: 0 | G11: 5240000 | H11: 0 | I11: 0 | J11: 0 | K11: 5240000 | L11: 5240000 | M11: 0 | N11: 203-017-001-0003
A12: 203-017-002-0001 | B12: 017-002-0001 | C12: Red vial pavimentada con mantenimiento (ejecución normal) | D12: 203 | E12: 793952274 | F12: 0 | G12: 793952274 | H12: 0 | I12: 0 | J12: 0 | K12: 793952274 | L12: 793952274 | M12: 0 | N12: 203-017-002-0001
A13: 203-017-003-0001 | B13: 017-003-0001 | C13: Dirección y coordinación | D13: 203 | E13: 27407860 | F13: 0 | G13: 27407860 | H13: 0 | I13: 0 | J13: 0 | K13: 27407860 | L13: 27407860 | M13: 0 | N13: 203-017-003-0001
A14: 203-017-006-0002 | B14: 017-006-0002 | C14: Red vial rural con servicios de mantenimiento (fideicomiso) | D14: 203 | E14: 5000000 | F14: 0 | G14: 5000000 | H14: 0 | I14: 0 | J14: 0 | K14: 5000000 | L14: 5000000 | M14: 0 | N14: 203-017-006-0002
A15: 203-017-007-0001 | B15: 017-007-0001 | C15: Red vial terciaria con mantenimiento (ejecución normal) | D15: 203 | E15: 550792866 | F15: 0 | G15: 550792866 | H15: 0 | I15: 0 | J15: 0 | K15: 550792866 | L15: 550792866 | M15: 0 | N15: 203-017-007-0001
A16: 204-018-005-0001 | B16: 018-005-0001 | C16: Dirección y coordinación | D16: 204 | E16: 12264729 | F16: 0 | G16: 12264729 | H16: 0 | I16: 10621.37 | J16: 10621.37 | K16: 12254107.63 | L16: 12254107.63 | M16: 0.08660093509 | N16: 204-018-005-0001
A17: 204-018-006-0001 | B17: 018-006-0001 | C17: Personas jurídicas o individuales con licencias otorgadas de transporte extraurbano de pasajeros por carretera | D17: 204 | E17: 1031212 | F17: 0 | G17: 1031212 | H17: 0 | I17: 0 | J17: 0 | K17: 1031212 | L17: 1031212 | M17: 0 | N17: 204-018-006-0001
A18: 204-018-006-0002 | B18: 018-006-0002 | C18: Personas jurídicas o individuales con permisos temporales otorgados para el transporte extraurbano de pasajeros por carretera | D18: 204 | E18: 183000 | F18: 0 | G18: 183000 | H18: 0 | I18: 0 | J18: 0 | K18: 183000 | L18: 183000 | M18: 0 | N18: 204-018-006-0002
A19: 204-018-006-0003 | B19: 018-006-0003 | C19: Personas jurídicas o individuales con licencias modificadas de transporte extraurbano de pasajeros por carretera | D19: 204 | E19: 728318 | F19: 0 | G19: 728318 | H19: 0 | I19: 0 | J19: 0 | K19: 728318 | L19: 728318 | M19: 0 | N19: 204-018-006-0003
A20: 204-018-006-0004 | B20: 018-006-0004 | C20: Operativos de control fijo del servicio de transporte extraurbano | D20: 204 | E20: 369011 | F20: 0 | G20: 369011 | H20: 0 | I20: 0 | J20: 0 | K20: 369011 | L20: 369011 | M20: 0 | N20: 204-018-006-0004
A21: 204-018-006-0005 | B21: 018-006-0005 | C21: Personas jurídicas o individuales con permisos expresos para el transporte extraurbano de pasajeros por carretera | D21: 204 | E21: 350000 | F21: 0 | G21: 350000 | H21: 0 | I21: 0 | J21: 0 | K21: 350000 | L21: 350000 | M21: 0 | N21: 204-018-006-0005
A22: 204-018-006-0007 | B22: 018-006-0007 | C22: Personas jurídicas o individuales con constancias de registro de pilotos para el transporte extraurbano de pasajeros por carretera | D22: 204 | E22: 25000 | F22: 0 | G22: 25000 | H22: 0 | I22: 0 | J22: 0 | K22: 25000 | L22: 25000 | M22: 0 | N22: 204-018-006-0007
A23: 205-000-005-0001 | B23: 000-005-0001 | C23: Personas jurídicas beneficiadas con aportes y/o cuotas para comunicaciones | D23: 205 | E23: 450000 | F23: 0 | G23: 450000 | H23: 0 | I23: 0 | J23: 0 | K23: 450000 | L23: 450000 | M23: 0 | N23: 205-000-005-0001
A24: 205-000-013-0001 | B24: 000-013-0001 | C24: Dirección y coordinación | D24: 205 | E24: 144895709 | F24: 0 | G24: 144895709 | H24: 240000 | I24: 3339291.04 | J24: 3339291.04 | K24: 141556418 | L24: 141556418 | M24: 2.30461693 | N24: 205-000-013-0001
A25: 205-000-014-0001 | B25: 000-014-0001 | C25: Pasajeros que ingresan por medio de transporte aéreo con servicios de desembarque | D25: 205 | E25: 18478387 | F25: 0 | G25: 18478387 | H25: 0 | I25: 0 | J25: 0 | K25: 18478387 | L25: 18478387 | M25: 0 | N25: 205-000-014-0001
A26: 205-000-014-0002 | B26: 000-014-0002 | C26: Pasajeros que egresan por medio de transporte aéreo con servicios de embarque | D26: 205 | E26: 54283348 | F26: 0 | G26: 54283348 | H26: 0 | I26: 597225.19 | J26: 597225.19 | K26: 53686122.81 | L26: 53686122.81 | M26: 1.100199623 | N26: 205-000-014-0002
A27: 205-000-014-0003 | B27: 000-014-0003 | C27: Carga embarcada para la exportación aérea | D27: 205 | E27: 591375 | F27: 0 | G27: 591375 | H27: 0 | I27: 0 | J27: 0 | K27: 591375 | L27: 591375 | M27: 0 | N27: 205-000-014-0003
A28: 205-000-014-0004 | B28: 000-014-0004 | C28: Carga desembarcada para la importación aérea | D28: 205 | E28: 264205 | F28: 0 | G28: 264205 | H28: 0 | I28: 0 | J28: 0 | K28: 264205 | L28: 264205 | M28: 0 | N28: 205-000-014-0004
A29: 205-000-014-0005 | B29: 000-014-0005 | C29: Aeronaves con inspección técnica | D29: 205 | E29: 206100 | F29: 0 | G29: 206100 | H29: 0 | I29: 0 | J29: 0 | K29: 206100 | L29: 206100 | M29: 0 | N29: 205-000-014-0005
A30: 205-000-014-0006 | B30: 000-014-0006 | C30: Aeronaves nacionales y extranjeras con certificado de matrícula autorizada y renovada | D30: 205 | E30: 250275 | F30: 0 | G30: 250275 | H30: 0 | I30: 0 | J30: 0 | K30: 250275 | L30: 250275 | M30: 0 | N30: 205-000-014-0006
A31: 205-000-014-0007 | B31: 000-014-0007 | C31: Aeronaves con servicios de pernocte en rampa internacional del aeropuerto | D31: 205 | E31: 179825 | F31: 0 | G31: 179825 | H31: 0 | I31: 0 | J31: 0 | K31: 179825 | L31: 179825 | M31: 0 | N31: 205-000-014-0007
A32: 205-000-016-0001 | B32: 000-016-0001 | C32: Aeronaves con servicios operativos de aviación y soporte técnico | D32: 205 | E32: 13660761 | F32: 0 | G32: 13660761 | H32: 0 | I32: 0 | J32: 0 | K32: 13660761 | L32: 13660761 | M32: 0 | N32: 205-000-016-0001
A33: 205-000-017-0001 | B33: 000-017-0001 | C33: Infraestructura de la red aeroportuaria nacional con servicios de mantenimiento | D33: 205 | E33: 16133540 | F33: 0 | G33: 16133540 | H33: 0 | I33: 142767.08 | J33: 142767.08 | K33: 15990772.92 | L33: 15990772.92 | M33: 0.8849085817 | N33: 205-000-017-0001
A34: 206-000-018-0001 | B34: 000-018-0001 | C34: Dirección y coordinación | D34: 206 | E34: 28177916 | F34: 0 | G34: 28177916 | H34: 0 | I34: 86929.55 | J34: 86929.55 | K34: 28090986.45 | L34: 28090986.45 | M34: 0.3085024102 | N34: 206-000-018-0001
A35: 206-000-018-0002 | B35: 000-018-0002 | C35: Población estudiantil beneficiada con equipo educacional | D35: 206 | E35: 5100000 | F35: 0 | G35: 5100000 | H35: 0 | I35: 0 | J35: 0 | K35: 5100000 | L35: 5100000 | M35: 0 | N35: 206-000-018-0002
A36: 206-000-018-0003 | B36: 000-018-0003 | C36: Remozamiento de edificios públicos | D36: 206 | E36: 181478546 | F36: 0 | G36: 181478546 | H36: 0 | I36: 0 | J36: 0 | K36: 181478546 | L36: 181478546 | M36: 0 | N36: 206-000-018-0003
A37: 207-000-019-0001 | B37: 000-019-0001 | C37: Dirección y coordinación | D37: 207 | E37: 8687812 | F37: 0 | G37: 8687812 | H37: 0 | I37: 603633.53 | J37: 193633.53 | K37: 8084178.47 | L37: 8494178.47 | M37: 2.228795121 | N37: 207-000-019-0001
A38: 207-000-020-0003 | B38: 000-020-0003 | C38: Comerciales registrados de personas jurídicas o individuales | D38: 207 | E38: 2055172 | F38: 0 | G38: 2055172 | H38: 0 | I38: 0 | J38: 0 | K38: 2055172 | L38: 2055172 | M38: 0 | N38: 207-000-020-0003
A39: 207-000-020-0004 | B39: 000-020-0004 | C39: Técnicos con registro en radio y/o televisión | D39: 207 | E39: 45000 | F39: 0 | G39: 45000 | H39: 0 | I39: 0 | J39: 0 | K39: 45000 | L39: 45000 | M39: 0 | N39: 207-000-020-0004
A40: 207-000-020-0005 | B40: 000-020-0005 | C40: Locutores registrados en radio y/o televisión | D40: 207 | E40: 50000 | F40: 0 | G40: 50000 | H40: 0 | I40: 0 | J40: 0 | K40: 50000 | L40: 50000 | M40: 0 | N40: 207-000-020-0005
A41: 207-000-021-0001 | B41: 000-021-0001 | C41: Programas radiales a control remoto difundidos | D41: 207 | E41: 129476 | F41: 0 | G41: 129476 | H41: 0 | I41: 0 | J41: 0 | K41: 129476 | L41: 129476 | M41: 0 | N41: 207-000-021-0001
A42: 207-000-021-0002 | B42: 000-021-0002 | C42: Programas radiales difundidos | D42: 207 | E42: 1386359 | F42: 0 | G42: 1386359 | H42: 0 | I42: 110293.54 | J42: 110293.54 | K42: 1276065.46 | L42: 1276065.46 | M42: 7.955626212 | N42: 207-000-021-0002
A43: 207-000-021-0003 | B43: 000-021-0003 | C43: Spot gubernamentales otorgados a entidades públicas | D43: 207 | E43: 3192171 | F43: 0 | G43: 3192171 | H43: 0 | I43: 115515.5 | J43: 115515.5 | K43: 3076655.5 | L43: 3076655.5 | M43: 3.618712782 | N43: 207-000-021-0003
A44: 208-000-024-0001 | B44: 000-024-0001 | C44: Dirección y coordinación | D44: 208 | E44: 8433472 | F44: 0 | G44: 8433472 | H44: 0 | I44: 13840.71 | J44: 13840.71 | K44: 8419631.29 | L44: 8419631.29 | M44: 0.1641163924 | N44: 208-000-024-0001
A45: 208-000-025-0001 | B45: 000-025-0001 | C45: Empresas de cable con visitas de supervisión | D45: 208 | E45: 808467 | F45: 0 | G45: 808467 | H45: 0 | I45: 0 | J45: 0 | K45: 808467 | L45: 808467 | M45: 0 | N45: 208-000-025-0001
A46: 208-000-025-0002 | B46: 000-025-0002 | C46: Empresas de cable nuevas con registro | D46: 208 | E46: 568018 | F46: 0 | G46: 568018 | H46: 0 | I46: 0 | J46: 0 | K46: 568018 | L46: 568018 | M46: 0 | N46: 208-000-025-0002
A47: 208-000-025-0005 | B47: 000-025-0005 | C47: Empresas sancionadas por incumplimiento a la ley del cable | D47: 208 | E47: 474910 | F47: 0 | G47: 474910 | H47: 0 | I47: 0 | J47: 0 | K47: 474910 | L47: 474910 | M47: 0 | N47: 208-000-025-0005
A48: 209-000-005-0001 | B48: 000-005-0001 | C48: Personas jurídicas beneficiadas con aportes y/o cuotas para comunicaciones | D48: 209 | E48: 168000 | F48: 0 | G48: 168000 | H48: 0 | I48: 0 | J48: 0 | K48: 168000 | L48: 168000 | M48: 0 | N48: 209-000-005-0001
A49: 209-000-006-0001 | B49: 000-006-0001 | C49: Personas jurídicas beneficiadas con aportes y/o cuotas para control del medio ambiente | D49: 209 | E49: 208000 | F49: 0 | G49: 208000 | H49: 0 | I49: 0 | J49: 0 | K49: 208000 | L49: 208000 | M49: 0 | N49: 209-000-006-0001
A50: 209-020-006-0001 | B50: 020-006-0001 | C50: Dirección y coordinación | D50: 209 | E50: 15193176 | F50: 0 | G50: 15193176 | H50: 0 | I50: 100137.34 | J50: 100137.34 | K50: 15093038.66 | L50: 15093038.66 | M50: 0.6590941881 | N50: 209-020-006-0001
A51: 209-020-007-0001 | B51: 020-007-0001 | C51: Usuarios atendidos con información climática | D51: 209 | E51: 14190894 | F51: 0 | G51: 14190894 | H51: 0 | I51: 5668.39 | J51: 5668.39 | K51: 14185225.61 | L51: 14185225.61 | M51: 0.03994385414 | N51: 209-020-007-0001
A52: 209-020-007-0002 | B52: 020-007-0002 | C52: Boletines emitidos con información meteorológica | D52: 209 | E52: 710966 | F52: 0 | G52: 710966 | H52: 0 | I52: 470.32 | J52: 470.32 | K52: 710495.68 | L52: 710495.68 | M52: 0.06615224919 | N52: 209-020-007-0002
A53: 209-020-008-0001 | B53: 020-008-0001 | C53: Boletines emitidos con información geológica | D53: 209 | E53: 3746500 | F53: 0 | G53: 3746500 | H53: 0 | I53: 0 | J53: 0 | K53: 3746500 | L53: 3746500 | M53: 0 | N53: 209-020-008-0001
A54: 209-020-008-0002 | B54: 020-008-0002 | C54: Informes emitidos sobre deslizamiento de tierra | D54: 209 | E54: 1172097 | F54: 0 | G54: 1172097 | H54: 0 | I54: 0 | J54: 0 | K54: 1172097 | L54: 1172097 | M54: 0 | N54: 209-020-008-0002
A55: 209-020-009-0001 | B55: 020-009-0001 | C55: Boletines con información hidrológica | D55: 209 | E55: 5748425 | F55: 0 | G55: 5748425 | H55: 0 | I55: 658.46 | J55: 658.46 | K55: 5747766.54 | L55: 5747766.54 | M55: 0.01145461583 | N55: 209-020-009-0001
A56: 209-020-009-0002 | B56: 020-009-0002 | C56: Publicaciones anuales con información consolidada de efemérides solar, pronóstico de mareas, estudios de calidad de agua y de cuencas | D56: 209 | E56: 8542513 | F56: 0 | G56: 8542513 | H56: 0 | I56: 0 | J56: 0 | K56: 8542513 | L56: 8542513 | M56: 0 | N56: 209-020-009-0002
A57: 209-020-009-0003 | B57: 020-009-0003 | C57: Boletines emitidos con información del índice de calidad del aire | D57: 209 | E57: 402266 | F57: 0 | G57: 402266 | H57: 0 | I57: 1470.72 | J57: 1470.72 | K57: 400795.28 | L57: 400795.28 | M57: 0.365608826 | N57: 209-020-009-0003
A58: 210-000-005-0001 | B58: 000-005-0001 | C58: Personas jurídicas beneficiadas con aportes y/o cuotas para comunicaciones | D58: 210 | E58: 615180 | F58: 0 | G58: 615180 | H58: 0 | I58: 0 | J58: 0 | K58: 615180 | L58: 615180 | M58: 0 | N58: 210-000-005-0001
A59: 210-000-029-0001 | B59: 000-029-0001 | C59: Dirección y coordinación | D59: 210 | E59: 16300622 | F59: 0 | G59: 16300622 | H59: 0 | I59: 57076.54 | J59: 57076.54 | K59: 16243545.46 | L59: 16243545.46 | M59: 0.3501494606 | N59: 210-000-029-0001
A60: 210-000-030-0001 | B60: 000-030-0001 | C60: Personas individuales y/o jurídicas con servicios postales otorgados | D60: 210 | E60: 12442858 | F60: 0 | G60: 12442858 | H60: 0 | I60: 46736.43 | J60: 46736.43 | K60: 12396121.57 | L60: 12396121.57 | M60: 0.3756084816 | N60: 210-000-030-0001
A61: 211-000-005-0001 | B61: 000-005-0001 | C61: Personas jurídicas beneficiadas con aportes y/o cuotas para comunicaciones | D61: 211 | E61: 900000 | F61: 0 | G61: 900000 | H61: 0 | I61: 0 | J61: 0 | K61: 900000 | L61: 900000 | M61: 0 | N61: 211-000-005-0001
A62: 211-022-007-0001 | B62: 022-007-0001 | C62: Dirección y coordinación | D62: 211 | E62: 18250293 | F62: 0 | G62: 18250293 | H62: 0 | I62: 438451.62 | J62: 72451.62 | K62: 17811841.38 | L62: 18177841.38 | M62: 0.3969888045 | N62: 211-022-007-0001
A63: 211-022-008-0001 | B63: 022-008-0001 | C63: Títulos de usufructo emitidos para personas individuales y/o jurídicas | D63: 211 | E63: 1848739 | F63: 0 | G63: 1848739 | H63: 0 | I63: 0 | J63: 0 | K63: 1848739 | L63: 1848739 | M63: 0 | N63: 211-022-008-0001
A64: 211-022-008-0002 | B64: 022-008-0002 | C64: Licencias emitidas a proveedores satelitales | D64: 211 | E64: 14245 | F64: 0 | G64: 14245 | H64: 0 | I64: 0 | J64: 0 | K64: 14245 | L64: 14245 | M64: 0 | N64: 211-022-008-0002
A65: 211-022-008-0003 | B65: 022-008-0003 | C65: Licencias emitidas a usuarios satelitales | D65: 211 | E65: 36627 | F65: 0 | G65: 36627 | H65: 0 | I65: 0 | J65: 0 | K65: 36627 | L65: 36627 | M65: 0 | N65: 211-022-008-0003
A66: 211-022-008-0004 | B66: 022-008-0004 | C66: Monitoreo al espectro radioeléctrico | D66: 211 | E66: 20175 | F66: 0 | G66: 20175 | H66: 0 | I66: 0 | J66: 0 | K66: 20175 | L66: 20175 | M66: 0 | N66: 211-022-008-0004
A67: 211-022-009-0001 | B67: 022-009-0001 | C67: Operadores de telefonía registrados | D67: 211 | E67: 1933072 | F67: 0 | G67: 1933072 | H67: 0 | I67: 0 | J67: 0 | K67: 1933072 | L67: 1933072 | M67: 0 | N67: 211-022-009-0001
A68: 211-022-009-0002 | B68: 022-009-0002 | C68: Numeración asignada a personas jurídicas y /o individuales | D68: 211 | E68: 3533 | F68: 0 | G68: 3533 | H68: 0 | I68: 0 | J68: 0 | K68: 3533 | L68: 3533 | M68: 0 | N68: 211-022-009-0002
A69: 211-022-009-0003 | B69: 022-009-0003 | C69: Puntos de señalización asignados a personas jurídicas y/o individuales | D69: 211 | E69: 11392 | F69: 0 | G69: 11392 | H69: 0 | I69: 0 | J69: 0 | K69: 11392 | L69: 11392 | M69: 0 | N69: 211-022-009-0003
A70: 211-022-009-0004 | B70: 022-009-0004 | C70: Constancias de inscripción de usuarios jurídicos y/o individuales de telecomunicaciones móviles | D70: 211 | E70: 3015 | F70: 0 | G70: 3015 | H70: 0 | I70: 0 | J70: 0 | K70: 3015 | L70: 3015 | M70: 0 | N70: 211-022-009-0004
A71: 212-000-010-0001 | B71: 000-010-0001 | C71: Dirección y coordinación | D71: 212 | E71: 5076663 | F71: 0 | G71: 5076663 | H71: 0 | I71: 268400 | J71: 70900 | K71: 4808263 | L71: 5005763 | M71: 1.396586695 | N71: 212-000-010-0001
A72: 212-000-015-0001 | B72: 000-015-0001 | C72: Personas beneficiadas con proyectos, supervisión de telefonía y conectividad subsidiados | D72: 212 | E72: 2145715 | F72: 0 | G72: 2145715 | H72: 0 | I72: 50500 | J72: 10000 | K72: 2095215 | L72: 2135715 | M72: 0.4660451178 | N72: 212-000-015-0001
A73: 214-000-022-0001 | B73: 000-022-0001 | C73: Dirección y coordinación | D73: 214 | E73: 10935606 | F73: 0 | G73: 10935606 | H73: 0 | I73: 1128534.03 | J73: 263534.03 | K73: 9807071.97 | L73: 10672071.97 | M73: 2.409871296 | N73: 214-000-022-0001
A74: 214-000-023-0001 | B74: 000-023-0001 | C74: Familias beneficiadas con adjudicación de propiedad de vivienda | D74: 214 | E74: 86456 | F74: 0 | G74: 86456 | H74: 0 | I74: 0 | J74: 0 | K74: 86456 | L74: 86456 | M74: 0 | N74: 214-000-023-0001
A75: 214-000-023-0002 | B75: 000-023-0002 | C75: Recuperación de la cartera crediticia | D75: 214 | E75: 3505 | F75: 0 | G75: 3505 | H75: 0 | I75: 0 | J75: 0 | K75: 3505 | L75: 3505 | M75: 0 | N75: 214-000-023-0002
A76: 216-021-001-0001 | B76: 021-001-0001 | C76: Dirección y coordinación | D76: 216 | E76: 19713706 | F76: 0 | G76: 19713706 | H76: 0 | I76: 89726.65 | J76: 89726.65 | K76: 19623979.35 | L76: 19623979.35 | M76: 0.4551485652 | N76: 216-021-001-0001
A77: 216-021-002-0001 | B77: 021-002-0001 | C77: Personas capacitadas en el programa de educación y seguridad vial | D77: 216 | E77: 23000 | F77: 0 | G77: 23000 | H77: 0 | I77: 0 | J77: 0 | K77: 23000 | L77: 23000 | M77: 0 | N77: 216-021-002-0001
A78: 216-021-002-0002 | B78: 021-002-0002 | C78: Elementos formados como brigadas de protección y seguridad vial en carretera | D78: 216 | E78: 320400 | F78: 0 | G78: 320400 | H78: 0 | I78: 0 | J78: 0 | K78: 320400 | L78: 320400 | M78: 0 | N78: 216-021-002-0002
A79: 216-021-002-0003 | B79: 021-002-0003 | C79: Conductores atendidos con servicios de seguridad y asistencia vial en carretera | D79: 216 | E79: 639450 | F79: 0 | G79: 639450 | H79: 0 | I79: 0 | J79: 0 | K79: 639450 | L79: 639450 | M79: 0 | N79: 216-021-002-0003
A80: 216-021-002-0004 | B80: 021-002-0004 | C80: Servicios de regulación para beneficio de conductores que transitan en carretera | D80: 216 | E80: 25743932 | F80: 0 | G80: 25743932 | H80: 0 | I80: 0 | J80: 0 | K80: 25743932 | L80: 25743932 | M80: 0 | N80: 216-021-002-0004
A81: 216-021-002-0005 | B81: 021-002-0005 | C81: Personas atendidas telefónicamente por medio del sistema 1520 (emergencia vial) | D81: 216 | E81: 60000 | F81: 0 | G81: 60000 | H81: 0 | I81: 0 | J81: 0 | K81: 60000 | L81: 60000 | M81: 0 | N81: 216-021-002-0005
A82: 216-021-002-0006 | B82: 021-002-0006 | C82: Boleta de llamada de atención a conductores infractores | D82: 216 | E82: 2714475 | F82: 0 | G82: 2714475 | H82: 0 | I82: 0 | J82: 0 | K82: 2714475 | L82: 2714475 | M82: 0 | N82: 216-021-002-0006
A83: 216-021-002-0007 | B83: 021-002-0007 | C83: Investigaciones realizadas de accidentes de tránsito en carreteras | D83: 216 | E83: 67874 | F83: 0 | G83: 67874 | H83: 0 | I83: 0 | J83: 0 | K83: 67874 | L83: 67874 | M83: 0 | N83: 216-021-002-0007
A84: 217-000-022-0001 | B84: 000-022-0001 | C84: Dirección y coordinación | D84: 217 | E84: 50492933 | F84: 0 | G84: 50492933 | H84: 254410.95 | I84: 262242.49 | J84: 262242.49 | K84: 50230690.51 | L84: 50230690.51 | M84: 0.5193647396 | N84: 217-000-022-0001
A85: 217-017-005-0001 | B85: 017-005-0001 | C85: Red vial con servicios de mantenimiento | D85: 217 | E85: 15037645 | F85: 0 | G85: 15037645 | H85: 0 | I85: 0 | J85: 0 | K85: 15037645 | L85: 15037645 | M85: 0 | N85: 217-017-005-0001
A86: 217-017-005-0002 | B86: 017-005-0002 | C86: Dirección y coordinación (convoyes) | D86: 217 | E86: 8076000 | F86: 0 | G86: 8076000 | H86: 0 | I86: 0 | J86: 0 | K86: 8076000 | L86: 8076000 | M86: 0 | N86: 217-017-005-0002
A87: 218-019-001-0001 | B87: 019-001-0001 | C87: Dirección y coordinación | D87: 218 | E87: 50000000 | F87: 0 | G87: 50000000 | H87: 0 | I87: 2246881.53 | J87: 366881.53 | K87: 47753118.47 | L87: 49633118.47 | M87: 0.73376306 | N87: 218-019-001-0001
A88: 218-019-002-0001 | B88: 019-002-0001 | C88: Familias con subsidio para adquisición de lote con servicios básicos | D88: 218 | E88: 12600000 | F88: 0 | G88: 12600000 | H88: 0 | I88: 0 | J88: 0 | K88: 12600000 | L88: 12600000 | M88: 0 | N88: 218-019-002-0001
A89: 218-019-002-0002 | B89: 019-002-0002 | C89: Familias con subsidio para adquisición de lote con vivienda | D89: 218 | E89: 15050000 | F89: 0 | G89: 15050000 | H89: 0 | I89: 0 | J89: 0 | K89: 15050000 | L89: 15050000 | M89: 0 | N89: 218-019-002-0002
A90: 218-019-002-0003 | B90: 019-002-0003 | C90: Familias con subsidio para la adquisición de módulo habitacional en propiedad horizontal | D90: 218 | E90: 9254000 | F90: 0 | G90: 9254000 | H90: 0 | I90: 0 | J90: 0 | K90: 9254000 | L90: 9254000 | M90: 0 | N90: 218-019-002-0003
A91: 218-019-002-0004 | B91: 019-002-0004 | C91: Familias con subsidio para el mejoramiento, ampliación y reparación de vivienda | D91: 218 | E91: 49546000 | F91: 0 | G91: 49546000 | H91: 0 | I91: 0 | J91: 0 | K91: 49546000 | L91: 49546000 | M91: 0 | N91: 218-019-002-0004
A92: 218-019-002-0006 | B92: 019-002-0006 | C92: Familias con subsidio para construcción de vivienda | D92: 218 | E92: 524216000 | F92: 0 | G92: 524216000 | H92: 0 | I92: 2156000 | J92: 2156000 | K92: 522060000 | L92: 522060000 | M92: 0.4112808461 | N92: 218-019-002-0006
A93: - | N93: -
A94: - | N94: -
A95: - | N95: -
A96: - | N96: -
A97: - | N97: -
A98: - | N98: -
A99: - | N99: -
A100: - | N100: -
A101: - | N101: -
A102: - | N102: -
A103: - | N103: -
A104: - | N104: -
A105: - | N105: -
A106: - | N106: -
A107: - | N107: -
A108: - | N108: -
A109: - | N109: -
A110: - | N110: -
A111: - | N111: -
A112: - | N112: -
A113: - | N113: -
A114: - | N114: -
A115: - | N115: -
A116: - | N116: -
A117: - | N117: -
A118: - | N118: -
A119: - | N119: -
A120: - | N120: -
A121: - | N121: -
A122: - | N122: -
A123: - | N123: -
A124: - | N124: -
A125: - | N125: -
A126: - | N126: -
A127: - | N127: -
A128: - | N128: -
A129: - | N129: -
A130: - | N130: -
A131: - | N131: -
A132: - | N132: -
A133: - | N133: -
A134: - | N134: -
A135: - | N135: -
A136: - | N136: -
A137: - | N137: -
A138: - | N138: -
A139: - | N139: -
A140: - | N140: -
A141: - | N141: -
A142: - | N142: -
A143: - | N143: -
A144: - | N144: -
A145: - | N145: -
A146: - | N146: -
A147: - | N147: -
A148: - | N148: -
A149: - | N149: -
A150: - | N150: -
A151: - | N151: -
A152: - | N152: -
A153: - | N153: -
A154: - | N154: -
A155: - | N155: -
A156: - | N156: -
A157: - | N157: -
A158: - | N158: -
A159: - | N159: -
A160: - | N160: -
A161: - | N161: -
A162: - | N162: -
A163: - | N163: -
A164: - | N164: -
A165: - | N165: -
A166: - | N166: -
A167: - | N167: -
A168: - | N168: -
A169: - | N169: -
A170: - | N170: -
A171: - | N171: -
A172: - | N172: -
A173: - | N173: -
A174: - | N174: -
A175: - | N175: -
A176: - | N176: -
A177: - | N177: -
A178: - | N178: -
A179: - | N179: -
A180: - | N180: -
A181: - | N181: -
A182: - | N182: -
A183: - | N183: -
A184: - | N184: -
A185: - | N185: -
A186: - | N186: -
A187: - | N187: -
A188: - | N188: -
A189: - | N189: -
A190: - | N190: -
A191: - | N191: -
A192: - | N192: -
A193: - | N193: -
A194: - | N194: -
A195: - | N195: -
A196: - | N196: -
A197: - | N197: -
A198: - | N198: -
A199: - | N199: -
A200: - | N200: -
... 220 more rows

Sheet FEBMT (hidden)
A1: CONCATENADO | B1: PRODUCTO | C1: UNIDAD | D1: DESCRIPCION | E1: PG | F1: SP | G1: PY | H1: ACT | I1: OB | J1: UNIDAD DE MEDIDA | K1: INICIAL | L1: MODIFICADO | M1: VIGENTE | N1: PROGRAMADO | O1: EJECUTADO
A2: 201-000-001 | B2: 000-001 | C2: 201 | D2: Servicios Financieros | E2: 1 | F2: 0 | G2: 0 | H2: 3 | I2: 0 | J2: Evento | K2: 31 | L2: 0 | M2: 31 | N2: 26 | O2: 0
A3: 201-000-001-0001 | B3: 000-001-0001 | C3: 201 | D3: Servicios Financieros | E3: 1 | F3: 0 | G3: 0 | H3: 3 | I3: 0 | J3: Evento | K3: 31 | L3: 0 | M3: 31 | N3: 26 | O3: 0
A4: 201-000-003 | B4: 000-003 | C4: 201 | D4: Servicios Administrativos | E4: 1 | F4: 0 | G4: 0 | H4: 2 | I4: 0 | J4: Evento | K4: 319 | L4: 0 | M4: 319 | N4: 104 | O4: 0
A5: 201-000-003-0001 | B5: 000-003-0001 | C5: 201 | D5: Servicios Administrativos | E5: 1 | F5: 0 | G5: 0 | H5: 2 | I5: 0 | J5: Evento | K5: 319 | L5: 0 | M5: 319 | N5: 104 | O5: 0
A6: 201-000-004 | B6: 000-004 | C6: 201 | D6: Personas Jurídicas Beneficiadas Con Aportes Y/O Cuotas Para Transporte | E6: 99 | F6: 0 | G6: 0 | H6: 1 | I6: 0 | J6: Aporte | K6: 13 | L6: 0 | M6: 13 | N6: 3 | O6: 0
A7: 201-000-004-0001 | B7: 000-004-0001 | C7: 201 | D7: Personas Jurídicas Beneficiadas Con Aportes Y/O Cuotas Para Transporte | E7: 99 | F7: 0 | G7: 0 | H7: 1 | I7: 0 | J7: Aporte | K7: 13 | L7: 0 | M7: 13 | N7: 3 | O7: 0
A8: 201-000-005 | B8: 000-005 | C8: 201 | D8: Personas Jurídicas Beneficiadas Con Aportes Y/O Cuotas Para Comunicaciones | E8: 99 | F8: 0 | G8: 0 | H8: 2 | I8: 0 | J8: Aporte | K8: 1 | L8: 0 | M8: 1 | N8: 1 | O8: 0
A9: 201-000-005-0001 | B9: 000-005-0001 | C9: 201 | D9: Personas Jurídicas Beneficiadas Con Aportes Y/O Cuotas Para Comunicaciones | E9: 99 | F9: 0 | G9: 0 | H9: 2 | I9: 0 | J9: Aporte | K9: 1 | L9: 0 | M9: 1 | N9: 1 | O9: 0
A10: 201-000-006 | B10: 000-006 | C10: 201 | D10: Personas Jurídicas Beneficiadas Con Aportes Y/O Cuotas Para Control Del Medio Ambiente | E10: 99 | F10: 0 | G10: 0 | H10: 3 | I10: 0 | J10: Aporte | K10: 1 | L10: 0 | M10: 1 | N10: 0 | O10: 0
A11: 201-000-006-0001 | B11: 000-006-0001 | C11: 201 | D11: Personas Jurídicas Beneficiadas Con Aportes Y/O Cuotas Para Control Del Medio Ambiente | E11: 99 | F11: 0 | G11: 0 | H11: 3 | I11: 0 | J11: Aporte | K11: 1 | L11: 0 | M11: 1 | N11: 0 | O11: 0
A12: 201-000-009 | B12: 000-009 | C12: 201 | D12: Dirección Superior | E12: 1 | F12: 0 | G12: 0 | H12: 1 | I12: 0 | J12: Evento | K12: 216 | L12: 11 | M12: 227 | N12: 146 | O12: 0
A13: 201-000-009-0001 | B13: 000-009-0001 | C13: 201 | D13: Dirección Superior | E13: 1 | F13: 0 | G13: 0 | H13: 1 | I13: 0 | J13: Evento | K13: 216 | L13: 11 | M13: 227 | N13: 146 | O13: 0
A14: 202-017-003 | B14: 017-003 | C14: 202 | D14: Dirección Y Coordinación | E14: 11 | F14: 0 | G14: 0 | H14: 1 | I14: 0 | J14: Evento | K14: 472 | L14: 0 | M14: 472 | N14: 250 | O14: 0
A15: 202-017-003-0001 | B15: 017-003-0001 | C15: 202 | D15: Dirección Y Coordinación | E15: 11 | F15: 0 | G15: 0 | H15: 1 | I15: 0 | J15: Evento | K15: 472 | L15: 0 | M15: 472 | N15: 250 | O15: 0
A16: 202-017-005 | B16: 017-005 | C16: 202 | D16: Red Vial Con Servicios De Mantenimiento | E16: 11 | F16: 0 | G16: 0 | H16: 2 | I16: 0 | J16: Kilómetro | K16: 2657 | L16: 0 | M16: 2657 | N16: 314 | O16: 0
A17: 202-017-005-0001 | B17: 017-005-0001 | C17: 202 | D17: Red Vial Con Servicios De Mantenimiento | E17: 11 | F17: 0 | G17: 0 | H17: 2 | I17: 0 | J17: Kilómetro | K17: 2657 | L17: 0 | M17: 2657 | N17: 314 | O17: 0
A18: 202-017-008 | B18: 017-008 | C18: 202 | D18: Red Vial De Rutas Centroamericanas Con Servicios De Mantenimiento | E18: 11 | F18: 3 | G18: 0 | H18: 1 | I18: 0 | J18: Kilómetro | K18: 82 | L18: 44 | M18: 126 | N18: 21 | O18: 0
A19: 202-017-008-0001 | B19: 017-008-0001 | C19: 202 | D19: Red Vial Con Servicios De Rehabilitación | E19: 11 | F19: 3 | G19: 0 | H19: 1 | I19: 0 | J19: Kilómetro | K19: 82 | L19: 44 | M19: 126 | N19: 21 | O19: 0
A20: 203-000-049 | B20: 000-049 | C20: 203 | D20: Intervenciones Realizadas Para La Atención De La Emergencia Por Época Lluviosa, Temporada Ciclónica Y Sistema De Baja Presión | E20: 94 | F20: 14 | G20: 0 | H20: 1 | I20: 0 | J20: Documento | K20: 0 | L20: 45 | M20: 45 | N20: 0 | O20: 0
A21: 203-000-049-0001 | B21: 000-049-0001 | C21: 203 | D21: Intervenciones Realizadas Para La Atención De La Emergencia Por Época Lluviosa, Temporada Ciclónica Y Sistema De Baja Presión | E21: 94 | F21: 14 | G21: 0 | H21: 1 | I21: 0 | J21: Documento | K21: 0 | L21: 45 | M21: 45 | N21: 0 | O21: 0
A22: 203-000-051 | B22: 000-051 | C22: 203 | D22: Intervenciones Realizadas Para La Atención De La Emergencia Provocada Por Los Efectos De La Época Lluviosa Y El Ciclón Tropical Julia | E22: 94 | F22: 15 | G22: 0 | H22: 1 | I22: 0 | J22: Documento | K22: 0 | L22: 103 | M22: 103 | N22: 0 | O22: 0
A23: 203-000-051-0001 | B23: 000-051-0001 | C23: 203 | D23: Intervenciones Realizadas Para La Atención De La Emergencia Provocada Por Los Efectos De La Época Lluviosa Y El Ciclón Tropical Julia | E23: 94 | F23: 15 | G23: 0 | H23: 1 | I23: 0 | J23: Documento | K23: 0 | L23: 103 | M23: 103 | N23: 0 | O23: 0
A24: 203-017-001 | B24: 017-001 | C24: 203 | D24: Red Vial Pavimentada Con Servicios De Mantenimiento (Fideicomiso) | E24: 11 | F24: 1 | G24: 0 | H24: 1 | I24: 0 | J24: Documento | K24: 11 | L24: 0 | M24: 11 | N24: 1 | O24: 0
A25: 203-017-001-0003 | B25: 017-001-0003 | C25: 203 | D25: Red Vial Pavimentada Con Servicios De Mantenimiento (Fideicomiso) | E25: 11 | F25: 1 | G25: 0 | H25: 1 | I25: 0 | J25: Documento | K25: 11 | L25: 0 | M25: 11 | N25: 1 | O25: 0
A26: 203-017-002 | B26: 017-002 | C26: 203 | D26: Red Vial Pavimentada Con Mantenimiento (Ejecución Normal) | E26: 11 | F26: 1 | G26: 0 | H26: 2 | I26: 0 | J26: Kilómetro | K26: 6453 | L26: 0 | M26: 6453 | N26: 1133 | O26: 470
A27: 203-017-002-0001 | B27: 017-002-0001 | C27: 203 | D27: Red Vial Pavimentada Con Mantenimiento (Ejecución Normal) | E27: 11 | F27: 1 | G27: 0 | H27: 2 | I27: 0 | J27: Kilómetro | K27: 6453 | L27: 0 | M27: 6453 | N27: 1133 | O27: 470
A28: 203-017-003 | B28: 017-003 | C28: 203 | D28: Dirección Y Coordinación | E28: 11 | F28: 0 | G28: 0 | H28: 1 | I28: 0 | J28: Evento | K28: 120 | L28: 0 | M28: 120 | N28: 13 | O28: 0
A29: 203-017-003-0001 | B29: 017-003-0001 | C29: 203 | D29: Dirección Y Coordinación | E29: 11 | F29: 0 | G29: 0 | H29: 1 | I29: 0 | J29: Evento | K29: 120 | L29: 0 | M29: 120 | N29: 13 | O29: 0
A30: 203-017-006 | B30: 017-006 | C30: 203 | D30: Red Vial Rural Con Servicios De Mantenimiento (Fideicomiso) | E30: 11 | F30: 2 | G30: 0 | H30: 1 | I30: 0 | J30: Documento | K30: 10 | L30: 0 | M30: 10 | N30: 1 | O30: 0
A31: 203-017-006-0002 | B31: 017-006-0002 | C31: 203 | D31: Red Vial Rural Con Servicios De Mantenimiento (Fideicomiso) | E31: 11 | F31: 2 | G31: 0 | H31: 1 | I31: 0 | J31: Documento | K31: 10 | L31: 0 | M31: 10 | N31: 1 | O31: 0
A32: 203-017-007 | B32: 017-007 | C32: 203 | D32: Red Vial Terciaria Con Mantenimiento (Ejecución Normal) | E32: 11 | F32: 2 | G32: 0 | H32: 2 | I32: 0 | J32: Kilómetro | K32: 5349 | L32: 0 | M32: 5349 | N32: 964 | O32: 431
A33: 203-017-007-0001 | B33: 017-007-0001 | C33: 203 | D33: Red Vial Terciaria Con Mantenimiento (Ejecución Normal) | E33: 11 | F33: 2 | G33: 0 | H33: 2 | I33: 0 | J33: Kilómetro | K33: 5349 | L33: 0 | M33: 5349 | N33: 964 | O33: 431
A34: 204-018-005 | B34: 018-005 | C34: 204 | D34: Dirección Y Coordinación | E34: 12 | F34: 0 | G34: 0 | H34: 1 | I34: 0 | J34: Evento | K34: 85 | L34: 180 | M34: 265 | N34: 1 | O34: 0
A35: 204-018-005-0001 | B35: 018-005-0001 | C35: 204 | D35: Dirección Y Coordinación | E35: 12 | F35: 0 | G35: 0 | H35: 1 | I35: 0 | J35: Evento | K35: 85 | L35: 180 | M35: 265 | N35: 1 | O35: 0
A36: 204-018-006 | B36: 018-006 | C36: 204 | D36: Regulación De Transporte Extraurbano De Pasajeros Y Carga Por Carretera | E36: 12 | F36: 0 | G36: 0 | H36: 2 | I36: 0 | J36: Documento | K36: 4595 | L36: 11100 | M36: 15695 | N36: 985 | O36: 0
A37: 204-018-006-0001 | B37: 018-006-0001 | C37: 204 | D37: Personas Jurídicas O Individuales Con Licencias Otorgadas De Transporte Extraurbano De Pasajeros Por Carretera | E37: 12 | F37: 0 | G37: 0 | H37: 2 | I37: 0 | J37: Documento | K37: 525 | L37: 0 | M37: 525 | N37: 40 | O37: 0
A38: 204-018-006-0002 | B38: 018-006-0002 | C38: 204 | D38: Personas Jurídicas O Individuales Con Permisos Temporales Otorgados Para El Transporte Extraurbano De Pasajeros Por Carretera | E38: 12 | F38: 0 | G38: 0 | H38: 2 | I38: 0 | J38: Documento | K38: 1575 | L38: 2100 | M38: 3675 | N38: 195 | O38: 0
A39: 204-018-006-0003 | B39: 018-006-0003 | C39: 204 | D39: Personas Jurídicas O Individuales Con Licencias Modificadas De Transporte Extraurbano De Pasajeros Por Carretera | E39: 12 | F39: 0 | G39: 0 | H39: 2 | I39: 0 | J39: Documento | K39: 1550 | L39: 2000 | M39: 3550 | N39: 170 | O39: 0
A40: 204-018-006-0004 | B40: 018-006-0004 | C40: 204 | D40: Operativos De Control Fijo Del Servicio De Transporte Extraurbano | E40: 12 | F40: 0 | G40: 0 | H40: 2 | I40: 0 | J40: Evento | K40: 1470 | L40: 2200 | M40: 3670 | N40: 180 | O40: 0
A41: 204-018-006-0005 | B41: 018-006-0005 | C41: 204 | D41: Personas Jurídicas O Individuales Con Permisos Expresos Para El Transporte Extraurbano De Pasajeros Por Carretera | E41: 12 | F41: 0 | G41: 0 | H41: 2 | I41: 0 | J41: Documento | K41: 420 | L41: 6000 | M41: 6420 | N41: 500 | O41: 0
A42: 204-018-006-0007 | B42: 018-006-0007 | C42: 204 | D42: Personas Jurídicas O Individuales Con Constancias De Registro De Pilotos Para El Transporte Extraurbano De Pasajeros Por Carretera | E42: 12 | F42: 0 | G42: 0 | H42: 2 | I42: 0 | J42: Documento | K42: 525 | L42: 1000 | M42: 1525 | N42: 80 | O42: 0
A43: 205-000-005 | B43: 000-005 | C43: 205 | D43: Personas Jurídicas Beneficiadas Con Aportes Y/O Cuotas Para Comunicaciones | E43: 99 | F43: 0 | G43: 0 | H43: 2 | I43: 0 | J43: Aporte | K43: 1 | L43: 1 | M43: 2 | N43: 0 | O43: 0
A44: 205-000-005-0001 | B44: 000-005-0001 | C44: 205 | D44: Personas Jurídicas Beneficiadas Con Aportes Y/O Cuotas Para Comunicaciones | E44: 99 | F44: 0 | G44: 0 | H44: 2 | I44: 0 | J44: Aporte | K44: 1 | L44: 1 | M44: 2 | N44: 0 | O44: 0
A45: 205-000-013 | B45: 000-013 | C45: 205 | D45: Dirección Y Coordinación | E45: 13 | F45: 0 | G45: 0 | H45: 1 | I45: 0 | J45: Evento | K45: 990 | L45: 1160 | M45: 2150 | N45: 15 | O45: 0
A46: 205-000-013-0001 | B46: 000-013-0001 | C46: 205 | D46: Dirección Y Coordinación | E46: 13 | F46: 0 | G46: 0 | H46: 1 | I46: 0 | J46: Evento | K46: 990 | L46: 1160 | M46: 2150 | N46: 15 | O46: 0
A47: 205-000-014 | B47: 000-014 | C47: 205 | D47: Aeronaves Con Servicios De Aeronavegabilidad | E47: 13 | F47: 0 | G47: 0 | H47: 2 | I47: 0 | J47: Aeronave | K47: 1676 | L47: 2587 | M47: 4263 | N47: 303 | O47: 0
A48: 205-000-014-0001 | B48: 000-014-0001 | C48: 205 | D48: Pasajeros Que Ingresan Por Medio De Transporte Aéreo Con Servicios De Desembarque | E48: 13 | F48: 0 | G48: 0 | H48: 2 | I48: 0 | J48: Persona | K48: 291179 | L48: 1362624 | M48: 1653803 | N48: 109481 | O48: 0
A49: 205-000-014-0002 | B49: 000-014-0002 | C49: 205 | D49: Pasajeros Que Egresan Por Medio De Transporte Aéreo Con Servicios De Embarque | E49: 13 | F49: 0 | G49: 0 | H49: 2 | I49: 0 | J49: Persona | K49: 1676801 | L49: -31518 | M49: 1645283 | N49: 110618 | O49: 0
A50: 205-000-014-0003 | B50: 000-014-0003 | C50: 205 | D50: Carga Embarcada Para La Exportación Aérea | E50: 13 | F50: 0 | G50: 0 | H50: 2 | I50: 0 | J50: Kilogramo | K50: 86739745 | L50: -55553178 | M50: 31186567 | N50: 2178551 | O50: 0
A51: 205-000-014-0004 | B51: 000-014-0004 | C51: 205 | D51: Carga Desembarcada Para La Importación Aérea | E51: 13 | F51: 0 | G51: 0 | H51: 2 | I51: 0 | J51: Kilogramo | K51: 33930296 | L51: -9847837 | M51: 24082459 | N51: 1915646 | O51: 0
A52: 205-000-014-0005 | B52: 000-014-0005 | C52: 205 | D52: Aeronaves Con Inspección Técnica | E52: 13 | F52: 0 | G52: 0 | H52: 2 | I52: 0 | J52: Aeronave | K52: 297 | L52: 226 | M52: 523 | N52: 42 | O52: 0
A53: 205-000-014-0006 | B53: 000-014-0006 | C53: 205 | D53: Aeronaves Nacionales Y Extranjeras Con Certificado De Matrícula Autorizada Y Renovada | E53: 13 | F53: 0 | G53: 0 | H53: 2 | I53: 0 | J53: Aeronave | K53: 135 | L53: 75 | M53: 210 | N53: 11 | O53: 0
A54: 205-000-014-0007 | B54: 000-014-0007 | C54: 205 | D54: Aeronaves Con Servicios De Pernocte En Rampa Internacional Del Aeropuerto | E54: 13 | F54: 0 | G54: 0 | H54: 2 | I54: 0 | J54: Aeronave | K54: 1244 | L54: 2286 | M54: 3530 | N54: 250 | O54: 0
A55: 205-000-016 | B55: 000-016 | C55: 205 | D55: Aeronaves Con Servicios Operativos De Aviación Y Soporte Técnico | E55: 13 | F55: 0 | G55: 0 | H55: 3 | I55: 0 | J55: Aeronave | K55: 84696 | L55: 4555 | M55: 89251 | N55: 7075 | O55: 0
A56: 205-000-016-0001 | B56: 000-016-0001 | C56: 205 | D56: Aeronaves Con Servicios Operativos De Aviación Y Soporte Técnico | E56: 13 | F56: 0 | G56: 0 | H56: 3 | I56: 0 | J56: Aeronave | K56: 84696 | L56: 4555 | M56: 89251 | N56: 7075 | O56: 0
A57: 205-000-017 | B57: 000-017 | C57: 205 | D57: Infraestructura De La Red Aeroportuaria Nacional Con Servicios De Mantenimiento | E57: 13 | F57: 0 | G57: 0 | H57: 4 | I57: 0 | J57: Metro cuadrado | K57: 728874 | L57: -543530 | M57: 185344 | N57: 9009 | O57: 0
A58: 205-000-017-0001 | B58: 000-017-0001 | C58: 205 | D58: Infraestructura De La Red Aeroportuaria Nacional Con Servicios De Mantenimiento | E58: 13 | F58: 0 | G58: 0 | H58: 4 | I58: 0 | J58: Metro cuadrado | K58: 728874 | L58: -543530 | M58: 185344 | N58: 9009 | O58: 0
A59: 206-000-018 | B59: 000-018 | C59: 206 | D59: Dirección Y Coordinación | E59: 14 | F59: 0 | G59: 0 | H59: 1 | I59: 0 | J59: Evento | K59: 233 | L59: -27 | M59: 206 | N59: 40 | O59: 0
A60: 206-000-018-0001 | B60: 000-018-0001 | C60: 206 | D60: Dirección Y Coordinación | E60: 14 | F60: 0 | G60: 0 | H60: 1 | I60: 0 | J60: Evento | K60: 117 | L60: -1 | M60: 116 | N60: 30 | O60: 0
A61: 206-000-018-0002 | B61: 000-018-0002 | C61: 206 | D61: Población Estudiantil Beneficiada Con Equipo Educacional | E61: 14 | F61: 0 | G61: 0 | H61: 1 | I61: 0 | J61: Persona | K61: 10354 | L61: -963 | M61: 9391 | N61: 0 | O61: 0
A62: 206-000-018-0003 | B62: 000-018-0003 | C62: 206 | D62: Remozamiento De Edificios Públicos | E62: 14 | F62: 0 | G62: 0 | H62: 1 | I62: 0 | J62: Evento | K62: 116 | L62: -26 | M62: 90 | N62: 0 | O62: 0
A63: 206-000-048 | B63: 000-048 | C63: 206 | D63: Intervenciones Realizadas Para La Atención De Daños Provocados Por Depresión Tropical Eta | E63: 94 | F63: 11 | G63: 0 | H63: 1 | I63: 0 | J63: Documento | K63: 0 | L63: 0 | M63: 0 | N63: 0 | O63: 0
A64: 206-000-048-0002 | B64: 000-048-0002 | C64: 206 | D64: Remozamiento De Edificios Públicos Para La Atención De Daños Provocados Por Depresiones Tropicales | E64: 94 | F64: 11 | G64: 0 | H64: 1 | I64: 0 | J64: Evento | K64: 0 | L64: 31 | M64: 31 | N64: 0 | O64: 0
A65: 206-000-049 | B65: 000-049 | C65: 206 | D65: Intervenciones Realizadas Para La Atención De La Emergencia Por Época Lluviosa, Temporada Ciclónica Y Sistema De Baja Presión | E65: 94 | F65: 14 | G65: 0 | H65: 1 | I65: 0 | J65: Documento | K65: 0 | L65: 40 | M65: 40 | N65: 0 | O65: 0
A66: 206-000-049-0001 | B66: 000-049-0001 | C66: 206 | D66: Intervenciones Realizadas Para La Atención De La Emergencia Por Época Lluviosa, Temporada Ciclónica Y Sistema De Baja Presión | E66: 94 | F66: 14 | G66: 0 | H66: 1 | I66: 0 | J66: Documento | K66: 0 | L66: 40 | M66: 40 | N66: 0 | O66: 0
A67: 206-000-051 | B67: 000-051 | C67: 206 | D67: Intervenciones Realizadas Para La Atención De La Emergencia Provocada Por Los Efectos De La Época Lluviosa Y El Ciclón Tropical Julia | E67: 94 | F67: 15 | G67: 0 | H67: 1 | I67: 0 | J67: Documento | K67: 0 | L67: 40 | M67: 40 | N67: 0 | O67: 0
A68: 206-000-051-0001 | B68: 000-051-0001 | C68: 206 | D68: Intervenciones Realizadas Para La Atención De La Emergencia Provocada Por Los Efectos De La Época Lluviosa Y El Ciclón Tropical Julia | E68: 94 | F68: 15 | G68: 0 | H68: 1 | I68: 0 | J68: Documento | K68: 0 | L68: 40 | M68: 40 | N68: 0 | O68: 0
A69: 207-000-019 | B69: 000-019 | C69: 207 | D69: Dirección Y Coordinación | E69: 15 | F69: 0 | G69: 0 | H69: 1 | I69: 0 | J69: Evento | K69: 233 | L69: 0 | M69: 233 | N69: 10 | O69: 2
A70: 207-000-019-0001 | B70: 000-019-0001 | C70: 207 | D70: Dirección Y Coordinación | E70: 15 | F70: 0 | G70: 0 | H70: 1 | I70: 0 | J70: Evento | K70: 233 | L70: 0 | M70: 233 | N70: 10 | O70: 2
A71: 207-000-020 | B71: 000-020 | C71: 207 | D71: Personas Individuales Y Jurídicas Registradas En Radiodifusión Y Televisión | E71: 15 | F71: 0 | G71: 0 | H71: 2 | I71: 0 | J71: Persona | K71: 997 | L71: 0 | M71: 997 | N71: 101 | O71: 101
A72: 207-000-020-0003 | B72: 000-020-0003 | C72: 207 | D72: Comerciales Registrados De Personas Jurídicas O Individuales | E72: 15 | F72: 0 | G72: 0 | H72: 2 | I72: 0 | J72: Persona | K72: 790 | L72: 0 | M72: 790 | N72: 80 | O72: 80
A73: 207-000-020-0004 | B73: 000-020-0004 | C73: 207 | D73: Técnicos Con Registro En Radio Y/O Televisión | E73: 15 | F73: 0 | G73: 0 | H73: 2 | I73: 0 | J73: Persona | K73: 3 | L73: 0 | M73: 3 | N73: 1 | O73: 1
A74: 207-000-020-0005 | B74: 000-020-0005 | C74: 207 | D74: Locutores Registrados En Radio Y/O Televisión | E74: 15 | F74: 0 | G74: 0 | H74: 2 | I74: 0 | J74: Persona | K74: 204 | L74: 0 | M74: 204 | N74: 20 | O74: 20
A75: 207-000-021 | B75: 000-021 | C75: 207 | D75: Servicios De Radiodifusión | E75: 15 | F75: 0 | G75: 0 | H75: 3 | I75: 0 | J75: Evento | K75: 54998 | L75: 64000 | M75: 118998 | N75: 4636 | O75: 4636
A76: 207-000-021-0001 | B76: 000-021-0001 | C76: 207 | D76: Programas Radiales A Control Remoto Difundidos | E76: 15 | F76: 0 | G76: 0 | H76: 3 | I76: 0 | J76: Evento | K76: 2818 | L76: 0 | M76: 2818 | N76: 235 | O76: 235
A77: 207-000-021-0002 | B77: 000-021-0002 | C77: 207 | D77: Programas Radiales Difundidos | E77: 15 | F77: 0 | G77: 0 | H77: 3 | I77: 0 | J77: Evento | K77: 11880 | L77: 0 | M77: 11880 | N77: 976 | O77: 976
A78: 207-000-021-0003 | B78: 000-021-0003 | C78: 207 | D78: Spot Gubernamentales Otorgados A Entidades Públicas | E78: 15 | F78: 0 | G78: 0 | H78: 3 | I78: 0 | J78: Evento | K78: 40300 | L78: 64000 | M78: 104300 | N78: 3425 | O78: 3425
A79: 208-000-024 | B79: 000-024 | C79: 208 | D79: Dirección Y Coordinación | E79: 21 | F79: 0 | G79: 0 | H79: 1 | I79: 0 | J79: Evento | K79: 218 | L79: 0 | M79: 218 | N79: 1 | O79: 1
A80: 208-000-024-0001 | B80: 000-024-0001 | C80: 208 | D80: Dirección Y Coordinación | E80: 21 | F80: 0 | G80: 0 | H80: 1 | I80: 0 | J80: Evento | K80: 218 | L80: 0 | M80: 218 | N80: 1 | O80: 1
A81: 208-000-025 | B81: 000-025 | C81: 208 | D81: Empresas De Cable Con Registro Y Supervisión | E81: 21 | F81: 0 | G81: 0 | H81: 2 | I81: 0 | J81: Entidad | K81: 2958 | L81: 0 | M81: 2958 | N81: 312 | O81: 310
A82: 208-000-025-0001 | B82: 000-025-0001 | C82: 208 | D82: Empresas De Cable Con Visitas De Supervisión | E82: 21 | F82: 0 | G82: 0 | H82: 2 | I82: 0 | J82: Entidad | K82: 2814 | L82: 0 | M82: 2814 | N82: 293 | O82: 291
A83: 208-000-025-0002 | B83: 000-025-0002 | C83: 208 | D83: Empresas De Cable Nuevas Con Registro | E83: 21 | F83: 0 | G83: 0 | H83: 2 | I83: 0 | J83: Entidad | K83: 26 | L83: 0 | M83: 26 | N83: 6 | O83: 6
A84: 208-000-025-0005 | B84: 000-025-0005 | C84: 208 | D84: Empresas Sancionadas Por Incumplimiento A La Ley Del Cable | E84: 21 | F84: 0 | G84: 0 | H84: 2 | I84: 0 | J84: Entidad | K84: 118 | L84: 0 | M84: 118 | N84: 13 | O84: 13
A85: 209-000-005 | B85: 000-005 | C85: 209 | D85: Personas Jurídicas Beneficiadas Con Aportes Y/O Cuotas Para Comunicaciones | E85: 99 | F85: 0 | G85: 0 | H85: 2 | I85: 0 | J85: Aporte | K85: 2 | L85: 0 | M85: 2 | N85: 0 | O85: 0
A86: 209-000-005-0001 | B86: 000-005-0001 | C86: 209 | D86: Personas Jurídicas Beneficiadas Con Aportes Y/O Cuotas Para Comunicaciones | E86: 99 | F86: 0 | G86: 0 | H86: 2 | I86: 0 | J86: Aporte | K86: 2 | L86: 0 | M86: 2 | N86: 0 | O86: 0
A87: 209-000-006 | B87: 000-006 | C87: 209 | D87: Personas Jurídicas Beneficiadas Con Aportes Y/O Cuotas Para Control Del Medio Ambiente | E87: 99 | F87: 0 | G87: 0 | H87: 3 | I87: 0 | J87: Aporte | K87: 2 | L87: 0 | M87: 2 | N87: 0 | O87: 0
A88: 209-000-006-0001 | B88: 000-006-0001 | C88: 209 | D88: Personas Jurídicas Beneficiadas Con Aportes Y/O Cuotas Para Control Del Medio Ambiente | E88: 99 | F88: 0 | G88: 0 | H88: 3 | I88: 0 | J88: Aporte | K88: 2 | L88: 0 | M88: 2 | N88: 0 | O88: 0
A89: 209-020-006 | B89: 020-006 | C89: 209 | D89: Dirección Y Coordinación | E89: 16 | F89: 0 | G89: 0 | H89: 1 | I89: 0 | J89: Evento | K89: 850 | L89: -44 | M89: 806 | N89: 136 | O89: 136
A90: 209-020-006-0001 | B90: 020-006-0001 | C90: 209 | D90: Dirección Y Coordinación | E90: 16 | F90: 0 | G90: 0 | H90: 1 | I90: 0 | J90: Evento | K90: 850 | L90: -44 | M90: 806 | N90: 136 | O90: 136
A91: 209-020-007 | B91: 020-007 | C91: 209 | D91: Boletines Con Información Climática | E91: 16 | F91: 0 | G91: 0 | H91: 2 | I91: 0 | J91: Documento | K91: 16107 | L91: -2258 | M91: 13849 | N91: 2310 | O91: 2301
A92: 209-020-007-0001 | B92: 020-007-0001 | C92: 209 | D92: Usuarios Atendidos Con Información Climática | E92: 16 | F92: 0 | G92: 0 | H92: 2 | I92: 0 | J92: Documento | K92: 12763 | L92: -1173 | M92: 11590 | N92: 1933 | O92: 1924
A93: 209-020-007-0002 | B93: 020-007-0002 | C93: 209 | D93: Boletines Emitidos Con Información Meteorológica | E93: 16 | F93: 0 | G93: 0 | H93: 2 | I93: 0 | J93: Documento | K93: 3344 | L93: -1085 | M93: 2259 | N93: 377 | O93: 377
A94: 209-020-008 | B94: 020-008 | C94: 209 | D94: Información De Amenaza Sísmica Y Volcánica Registrada | E94: 16 | F94: 0 | G94: 0 | H94: 3 | I94: 0 | J94: Documento | K94: 8100 | L94: 3883 | M94: 11983 | N94: 1990 | O94: 1990
A95: 209-020-008-0001 | B95: 020-008-0001 | C95: 209 | D95: Boletines Emitidos Con Información Geológica | E95: 16 | F95: 0 | G95: 0 | H95: 3 | I95: 0 | J95: Documento | K95: 3872 | L95: 2075 | M95: 5947 | N95: 987 | O95: 987
A96: 209-020-008-0002 | B96: 020-008-0002 | C96: 209 | D96: Informes Emitidos Sobre Deslizamiento De Tierra | E96: 16 | F96: 0 | G96: 0 | H96: 3 | I96: 0 | J96: Documento | K96: 4228 | L96: 1808 | M96: 6036 | N96: 1003 | O96: 1003
A97: 209-020-009 | B97: 020-009 | C97: 209 | D97: Información De Actividad Hidrológica Registrada | E97: 16 | F97: 0 | G97: 0 | H97: 4 | I97: 0 | J97: Documento | K97: 9508 | L97: 108 | M97: 9616 | N97: 1593 | O97: 1570
A98: 209-020-009-0001 | B98: 020-009-0001 | C98: 209 | D98: Boletines Con Información Hidrológica | E98: 16 | F98: 0 | G98: 0 | H98: 4 | I98: 0 | J98: Documento | K98: 3265 | L98: 1135 | M98: 4400 | N98: 727 | O98: 719
A99: 209-020-009-0002 | B99: 020-009-0002 | C99: 209 | D99: Publicaciones Anuales Con Información Consolidada De Efemérides Solar, Pronóstico De Mareas, Estudios De Calidad De Agua Y De Cuencas | E99: 16 | F99: 0 | G99: 0 | H99: 4 | I99: 0 | J99: Documento | K99: 2985 | L99: -29 | M99: 2956 | N99: 488 | O99: 473
A100: 209-020-009-0003 | B100: 020-009-0003 | C100: 209 | D100: Boletines Emitidos Con Información Del Índice De Calidad Del Aire | E100: 16 | F100: 0 | G100: 0 | H100: 4 | I100: 0 | J100: Documento | K100: 3258 | L100: -998 | M100: 2260 | N100: 378 | O100: 378
A101: 210-000-005 | B101: 000-005 | C101: 210 | D101: Personas Jurídicas Beneficiadas Con Aportes Y/O Cuotas Para Comunicaciones | E101: 99 | F101: 0 | G101: 0 | H101: 2 | I101: 0 | J101: Aporte | K101: 3 | L101: 0 | M101: 3 | N101: 0 | O101: 0
A102: 210-000-005-0001 | B102: 000-005-0001 | C102: 210 | D102: Personas Jurídicas Beneficiadas Con Aportes Y/O Cuotas Para Comunicaciones | E102: 99 | F102: 0 | G102: 0 | H102: 2 | I102: 0 | J102: Aporte | K102: 3 | L102: 0 | M102: 3 | N102: 0 | O102: 0
A103: 210-000-029 | B103: 000-029 | C103: 210 | D103: Dirección Y Coordinación | E103: 17 | F103: 0 | G103: 0 | H103: 1 | I103: 0 | J103: Evento | K103: 608 | L103: 91 | M103: 699 | N103: 27 | O103: 0
A104: 210-000-029-0001 | B104: 000-029-0001 | C104: 210 | D104: Dirección Y Coordinación | E104: 17 | F104: 0 | G104: 0 | H104: 1 | I104: 0 | J104: Evento | K104: 608 | L104: 91 | M104: 699 | N104: 27 | O104: 0
A105: 210-000-030 | B105: 000-030 | C105: 210 | D105: Personas Individuales Y/O Jurídicas Con Servicios Postales Otorgados | E105: 17 | F105: 0 | G105: 0 | H105: 2 | I105: 0 | J105: Persona | K105: 476400 | L105: 47067 | M105: 523467 | N105: 31770 | O105: 30837
A106: 210-000-030-0001 | B106: 000-030-0001 | C106: 210 | D106: Personas Individuales Y/O Jurídicas Con Servicios Postales Otorgados | E106: 17 | F106: 0 | G106: 0 | H106: 2 | I106: 0 | J106: Persona | K106: 476400 | L106: 47067 | M106: 523467 | N106: 31770 | O106: 30837
A107: 211-000-005 | B107: 000-005 | C107: 211 | D107: Personas Jurídicas Beneficiadas Con Aportes Y/O Cuotas Para Comunicaciones | E107: 99 | F107: 0 | G107: 0 | H107: 2 | I107: 0 | J107: Aporte | K107: 2 | L107: 0 | M107: 2 | N107: 0 | O107: 0
A108: 211-000-005-0001 | B108: 000-005-0001 | C108: 211 | D108: Personas Jurídicas Beneficiadas Con Aportes Y/O Cuotas Para Comunicaciones | E108: 99 | F108: 0 | G108: 0 | H108: 2 | I108: 0 | J108: Aporte | K108: 2 | L108: 0 | M108: 2 | N108: 0 | O108: 0
A109: 211-022-007 | B109: 022-007 | C109: 211 | D109: Dirección Y Coordinación | E109: 22 | F109: 0 | G109: 0 | H109: 1 | I109: 0 | J109: Evento | K109: 154 | L109: -18 | M109: 136 | N109: 3 | O109: 0
A110: 211-022-007-0001 | B110: 022-007-0001 | C110: 211 | D110: Dirección Y Coordinación | E110: 22 | F110: 0 | G110: 0 | H110: 1 | I110: 0 | J110: Evento | K110: 154 | L110: -18 | M110: 136 | N110: 3 | O110: 0
A111: 211-022-008 | B111: 022-008 | C111: 211 | D111: Proveedores, Usuarios Y Usufructuarios De Frecuencias Con Servicios De Regulación | E111: 22 | F111: 0 | G111: 0 | H111: 2 | I111: 0 | J111: Documento | K111: 4 | L111: 18 | M111: 22 | N111: 0 | O111: 0
A112: 211-022-008-0001 | B112: 022-008-0001 | C112: 211 | D112: Títulos De Usufructo Emitidos Para Personas Individuales Y/O Jurídicas | E112: 22 | F112: 0 | G112: 0 | H112: 2 | I112: 0 | J112: Documento | K112: 1 | L112: 14 | M112: 15 | N112: 0 | O112: 0
A113: 211-022-008-0002 | B113: 022-008-0002 | C113: 211 | D113: Licencias Emitidas A Proveedores Satelitales | E113: 22 | F113: 0 | G113: 0 | H113: 2 | I113: 0 | J113: Documento | K113: 2 | L113: 0 | M113: 2 | N113: 0 | O113: 0
A114: 211-022-008-0003 | B114: 022-008-0003 | C114: 211 | D114: Licencias Emitidas A Usuarios Satelitales | E114: 22 | F114: 0 | G114: 0 | H114: 2 | I114: 0 | J114: Documento | K114: 1 | L114: 0 | M114: 1 | N114: 0 | O114: 0
A115: 211-022-008-0004 | B115: 022-008-0004 | C115: 211 | D115: Monitoreo Al Espectro Radioeléctrico | E115: 22 | F115: 0 | G115: 0 | H115: 2 | I115: 0 | J115: Evento | K115: 175 | L115: 0 | M115: 175 | N115: 10 | O115: 3
A116: 211-022-009 | B116: 022-009 | C116: 211 | D116: Recursos De Telefonía Regulados | E116: 22 | F116: 0 | G116: 0 | H116: 3 | I116: 0 | J116: Documento | K116: 5267 | L116: 0 | M116: 5267 | N116: 2528 | O116: 2527
A117: 211-022-009-0001 | B117: 022-009-0001 | C117: 211 | D117: Operadores De Telefonía Registrados | E117: 22 | F117: 0 | G117: 0 | H117: 3 | I117: 0 | J117: Registro | K117: 184 | L117: 0 | M117: 184 | N117: 51 | O117: 51
A118: 211-022-009-0002 | B118: 022-009-0002 | C118: 211 | D118: Numeración Asignada A Personas Jurídicas Y /O Individuales | E118: 22 | F118: 0 | G118: 0 | H118: 3 | I118: 0 | J118: Documento | K118: 125 | L118: 0 | M118: 125 | N118: 21 | O118: 21
A119: 211-022-009-0003 | B119: 022-009-0003 | C119: 211 | D119: Puntos De Señalización Asignados A Personas Jurídicas Y/O Individuales | E119: 22 | F119: 0 | G119: 0 | H119: 3 | I119: 0 | J119: Documento | K119: 30 | L119: 0 | M119: 30 | N119: 1 | O119: 0
A120: 211-022-009-0004 | B120: 022-009-0004 | C120: 211 | D120: Constancias De Inscripción De Usuarios Jurídicos Y/O Individuales De Telecomunicaciones Móviles | E120: 22 | F120: 0 | G120: 0 | H120: 3 | I120: 0 | J120: Documento | K120: 5112 | L120: 0 | M120: 5112 | N120: 2506 | O120: 2506
A121: 212-000-010 | B121: 000-010 | C121: 212 | D121: Dirección Y Coordinación | E121: 23 | F121: 0 | G121: 0 | H121: 1 | I121: 0 | J121: Evento | K121: 38 | L121: -4 | M121: 34 | N121: 1 | O121: 1
A122: 212-000-010-0001 | B122: 000-010-0001 | C122: 212 | D122: Dirección Y Coordinación | E122: 23 | F122: 0 | G122: 0 | H122: 1 | I122: 0 | J122: Evento | K122: 38 | L122: -4 | M122: 34 | N122: 1 | O122: 1
A123: 212-000-015 | B123: 000-015 | C123: 212 | D123: Personas Beneficiadas Con Proyectos, Supervisión De Telefonía Y Conectividad Subsidiados | E123: 23 | F123: 0 | G123: 0 | H123: 2 | I123: 0 | J123: Persona | K123: 707 | L123: -681 | M123: 26 | N123: 0 | O123: 0
A124: 212-000-015-0001 | B124: 000-015-0001 | C124: 212 | D124: Personas Beneficiadas Con Proyectos, Supervisión De Telefonía Y Conectividad Subsidiados | E124: 23 | F124: 0 | G124: 0 | H124: 2 | I124: 0 | J124: Persona | K124: 707 | L124: -681 | M124: 26 | N124: 0 | O124: 0
A125: 214-000-022 | B125: 000-022 | C125: 214 | D125: Dirección Y Coordinación | E125: 20 | F125: 0 | G125: 0 | H125: 1 | I125: 0 | J125: Evento | K125: 201 | L125: -61 | M125: 140 | N125: 5 | O125: 5
A126: 214-000-022-0001 | B126: 000-022-0001 | C126: 214 | D126: Dirección Y Coordinación | E126: 20 | F126: 0 | G126: 0 | H126: 1 | I126: 0 | J126: Evento | K126: 201 | L126: -61 | M126: 140 | N126: 5 | O126: 5
A127: 214-000-023 | B127: 000-023 | C127: 214 | D127: Familias Beneficiadas Con Adjudicación De Propiedad De Vivienda | E127: 20 | F127: 0 | G127: 0 | H127: 2 | I127: 0 | J127: Familia | K127: 126 | L127: -69 | M127: 57 | N127: 0 | O127: 0
A128: 214-000-023-0001 | B128: 000-023-0001 | C128: 214 | D128: Familias Beneficiadas Con Adjudicación De Propiedad De Vivienda | E128: 20 | F128: 0 | G128: 0 | H128: 2 | I128: 0 | J128: Familia | K128: 126 | L128: -69 | M128: 57 | N128: 0 | O128: 0
A129: 214-000-023-0002 | B129: 000-023-0002 | C129: 214 | D129: Recuperación De La Cartera Crediticia | E129: 20 | F129: 0 | G129: 0 | H129: 2 | I129: 0 | J129: Unidad monetaria | K129: 1389000 | L129: 0 | M129: 1389000 | N129: 75000 | O129: 75000
A130: 216-021-001 | B130: 021-001 | C130: 216 | D130: Dirección Y Coordinación | E130: 18 | F130: 0 | G130: 0 | H130: 1 | I130: 0 | J130: Evento | K130: 720 | L130: -527 | M130: 193 | N130: 29 | O130: 0
A131: 216-021-001-0001 | B131: 021-001-0001 | C131: 216 | D131: Dirección Y Coordinación | E131: 18 | F131: 0 | G131: 0 | H131: 1 | I131: 0 | J131: Evento | K131: 720 | L131: -527 | M131: 193 | N131: 29 | O131: 0
A132: 216-021-002 | B132: 021-002 | C132: 216 | D132: Conductores Beneficiados Con Servicios De Vigilancia Y Asistencia Vial | E132: 18 | F132: 0 | G132: 0 | H132: 2 | I132: 0 | J132: Persona | K132: 318887 | L132: -13780 | M132: 305107 | N132: 47640 | O132: 0
A133: 216-021-002-0001 | B133: 021-002-0001 | C133: 216 | D133: Personas Capacitadas En El Programa De Educación Y Seguridad Vial | E133: 18 | F133: 0 | G133: 0 | H133: 2 | I133: 0 | J133: Persona | K133: 23100 | L133: -3100 | M133: 20000 | N133: 2640 | O133: 0
A134: 216-021-002-0002 | B134: 021-002-0002 | C134: 216 | D134: Elementos Formados Como Brigadas De Protección Y Seguridad Vial En Carretera | E134: 18 | F134: 0 | G134: 0 | H134: 2 | I134: 0 | J134: Persona | K134: 107 | L134: 0 | M134: 107 | N134: 0 | O134: 0
A135: 216-021-002-0003 | B135: 021-002-0003 | C135: 216 | D135: Conductores Atendidos Con Servicios De Seguridad Y Asistencia Vial En Carretera | E135: 18 | F135: 0 | G135: 0 | H135: 2 | I135: 0 | J135: Persona | K135: 64680 | L135: -4680 | M135: 60000 | N135: 7500 | O135: 0
A136: 216-021-002-0004 | B136: 021-002-0004 | C136: 216 | D136: Servicios De Regulación Para Beneficio De Conductores Que Transitan En Carretera | E136: 18 | F136: 0 | G136: 0 | H136: 2 | I136: 0 | J136: Evento | K136: 7710 | L136: -710 | M136: 7000 | N136: 720 | O136: 0
A137: 216-021-002-0005 | B137: 021-002-0005 | C137: 216 | D137: Personas Atendidas Telefónicamente Por Medio Del Sistema 1520 (Emergencia Vial) | E137: 18 | F137: 0 | G137: 0 | H137: 2 | I137: 0 | J137: Persona | K137: 231000 | L137: -6000 | M137: 225000 | N137: 37500 | O137: 0
A138: 216-021-002-0006 | B138: 021-002-0006 | C138: 216 | D138: Boleta De Llamada De Atención A Conductores Infractores | E138: 18 | F138: 0 | G138: 0 | H138: 2 | I138: 0 | J138: Documento | K138: 3234 | L138: -634 | M138: 2600 | N138: 280 | O138: 0
A139: 216-021-002-0007 | B139: 021-002-0007 | C139: 216 | D139: Investigaciones Realizadas De Accidentes De Tránsito En Carreteras | E139: 18 | F139: 0 | G139: 0 | H139: 2 | I139: 0 | J139: Evento | K139: 37 | L139: 28 | M139: 65 | N139: 10 | O139: 0
A140: 217-000-022 | B140: 000-022 | C140: 217 | D140: Dirección Y Coordinación | E140: 20 | F140: 0 | G140: 0 | H140: 1 | I140: 0 | J140: Evento | K140: 263 | L140: -2 | M140: 261 | N140: 34 | O140: 0
A141: 217-000-022-0001 | B141: 000-022-0001 | C141: 217 | D141: Dirección Y Coordinación | E141: 20 | F141: 0 | G141: 0 | H141: 1 | I141: 0 | J141: Evento | K141: 263 | L141: -2 | M141: 261 | N141: 34 | O141: 0
A142: 217-017-005 | B142: 017-005 | C142: 217 | D142: Red Vial Con Servicios De Mantenimiento | E142: 11 | F142: 0 | G142: 0 | H142: 2 | I142: 0 | J142: Kilómetro | K142: 219 | L142: 0 | M142: 219 | N142: 37 | O142: 0
A143: 217-017-005-0001 | B143: 017-005-0001 | C143: 217 | D143: Red Vial Con Servicios De Mantenimiento | E143: 11 | F143: 0 | G143: 0 | H143: 2 | I143: 0 | J143: Kilómetro | K143: 219 | L143: 0 | M143: 219 | N143: 37 | O143: 0
A144: 217-017-005-0002 | B144: 017-005-0002 | C144: 217 | D144: Dirección Y Coordinación (Convoyes) | E144: 11 | F144: 0 | G144: 0 | H144: 2 | I144: 0 | J144: Evento | K144: 128 | L144: 22 | M144: 150 | N144: 19 | O144: 0
A145: 218-019-001 | B145: 019-001 | C145: 218 | D145: Dirección Y Coordinación | E145: 19 | F145: 0 | G145: 0 | H145: 1 | I145: 0 | J145: Evento | K145: 225 | L145: 0 | M145: 225 | N145: 0 | O145: 0
A146: 218-019-001-0001 | B146: 019-001-0001 | C146: 218 | D146: Dirección Y Coordinación | E146: 19 | F146: 0 | G146: 0 | H146: 1 | I146: 0 | J146: Evento | K146: 225 | L146: 0 | M146: 225 | N146: 0 | O146: 0
A147: 218-019-002 | B147: 019-002 | C147: 218 | D147: Familias Beneficiadas Con Subsidios Para La Vivienda | E147: 19 | F147: 0 | G147: 0 | H147: 2 | I147: 0 | J147: Familia | K147: 17349 | L147: 105 | M147: 17454 | N147: 57 | O147: 57
A148: 218-019-002-0001 | B148: 019-002-0001 | C148: 218 | D148: Familias Con Subsidio Para Adquisición De Lote Con Servicios Básicos | E148: 19 | F148: 0 | G148: 0 | H148: 2 | I148: 0 | J148: Familia | K148: 360 | L148: 0 | M148: 360 | N148: 0 | O148: 0
A149: 218-019-002-0002 | B149: 019-002-0002 | C149: 218 | D149: Familias Con Subsidio Para Adquisición De Lote Con Vivienda | E149: 19 | F149: 0 | G149: 0 | H149: 2 | I149: 0 | J149: Familia | K149: 430 | L149: -40 | M149: 390 | N149: 0 | O149: 0
A150: 218-019-002-0003 | B150: 019-002-0003 | C150: 218 | D150: Familias Con Subsidio Para La Adquisición De Módulo Habitacional En Propiedad Horizontal | E150: 19 | F150: 0 | G150: 0 | H150: 2 | I150: 0 | J150: Familia | K150: 264 | L150: -194 | M150: 70 | N150: 0 | O150: 0
A151: 218-019-002-0004 | B151: 019-002-0004 | C151: 218 | D151: Familias Con Subsidio Para El Mejoramiento, Ampliación Y Reparación De Vivienda | E151: 19 | F151: 0 | G151: 0 | H151: 2 | I151: 0 | J151: Familia | K151: 1422 | L151: -137 | M151: 1285 | N151: 0 | O151: 0
A152: 218-019-002-0006 | B152: 019-002-0006 | C152: 218 | D152: Familias Con Subsidio Para Construcción De Vivienda | E152: 19 | F152: 0 | G152: 0 | H152: 2 | I152: 0 | J152: Familia | K152: 14873 | L152: 476 | M152: 15349 | N152: 57 | O152: 57
A153: -
A154: -
A155: -
A156: -
A157: -
A158: -
A159: -
A160: -
A161: -
A162: -
A163: -
A164: -
A165: -
A166: -
A167: -
A168: -
A169: -
A170: -
A171: -
A172: -
A173: -
A174: -
A175: -
A176: -
A177: -
A178: -
A179: -
A180: -
A181: -
A182: -
A183: -
A184: -
A185: -
A186: -
A187: -
A188: -
A189: -
A190: -
A191: -
A192: -
A193: -
A194: -
A195: -
A196: -
A197: -
A198: -
A199: -
A200: -
... 425 more rows

Sheet FEBFN (hidden)
A1: CONCATENADO | B1: PRODUCTO | C1: DESCRIPCION | D1: UNIDAD | E1: ASIGNADO | F1: MODIFICADO | G1: VIGENTE | H1: PRECOMPROMISO | I1: COMPROMETIDO | J1: DEVENGADO | K1: SALDO POR COMPROMETER | L1: SALDO POR DEVENGAR | M1: % EJEC | N1: Columna1
A2: 201-000-001-0001 | B2: 000-001-0001 | C2: Servicios financieros | D2: 201 | E2: 15083171 | F2: -708597 | G2: 14374574 | H2: 0 | I2: 0 | J2: 0 | K2: 14374574 | L2: 14374574 | M2: 0 | N2: 201-000-001-0001
A3: 201-000-003-0001 | B3: 000-003-0001 | C3: Servicios administrativos | D3: 201 | E3: 15893462 | F3: 515356 | G3: 16408818 | H3: 0 | I3: 1290774.04 | J3: 1282519.04 | K3: 13210112.64 | L3: 13218367.64 | M3: 19.44351117 | N3: 201-000-003-0001
A4: 201-000-004-0001 | B4: 000-004-0001 | C4: Personas jurídicas beneficiadas con aportes y/o cuotas para transporte | D4: 201 | E4: 5874520 | F4: 0 | G4: 5874520 | H4: 0 | I4: 505774 | J4: 505774 | K4: 4984407 | L4: 4984407 | M4: 15.15209753 | N4: 201-000-004-0001
A5: 201-000-005-0001 | B5: 000-005-0001 | C5: Personas jurídicas beneficiadas con aportes y/o cuotas para comunicaciones | D5: 201 | E5: 55159 | F5: 0 | G5: 55159 | H5: 0 | I5: 0 | J5: -1363.82 | K5: 694.06 | L5: 2057.88 | M5: 96.26918545 | N5: 201-000-005-0001
A6: 201-000-006-0001 | B6: 000-006-0001 | C6: Personas jurídicas beneficiadas con aportes y/o cuotas para control del medio ambiente | D6: 201 | E6: 400000 | F6: 0 | G6: 400000 | H6: 0 | I6: 391064.5 | J6: 391064.5 | K6: 8935.5 | L6: 8935.5 | M6: 97.766125 | N6: 201-000-006-0001
A7: 201-000-009-0001 | B7: 000-009-0001 | C7: Dirección superior | D7: 201 | E7: 25693688 | F7: 193241 | G7: 25886929 | H7: 0 | I7: 3173.5 | J7: 3173.5 | K7: 25883755.5 | L7: 25883755.5 | M7: 0.01225908257 | N7: 201-000-009-0001
A8: 202-017-003-0001 | B8: 017-003-0001 | C8: Dirección y coordinación | D8: 202 | E8: 89558631 | F8: 275900 | G8: 89834531 | H8: 0 | I8: 2292998.7 | J8: 2217877.62 | K8: 86763006.66 | L8: 86838127.74 | M8: 3.335469364 | N8: 202-017-003-0001
A9: 202-017-005-0001 | B9: 017-005-0001 | C9: Red vial con servicios de mantenimiento | D9: 202 | E9: 201689369 | F9: -275900 | G9: 201413469 | H9: 0 | I9: 11569648.48 | J9: 11142958.25 | K9: 189840997.7 | L9: 190267687.9 | M9: 5.533781403 | N9: 202-017-005-0001
A10: 202-017-008-0001 | B10: 017-008-0001 | C10: Red vial con servicios de rehabilitación | D10: 202 | E10: 311854271 | F10: 0 | G10: 311854271 | H10: 0 | I10: 166119397.6 | J10: 165955202.7 | K10: 145734873.4 | L10: 145899068.3 | M10: 53.21562606 | N10: 202-017-008-0001
A11: 203-000-049-0001 | B11: 000-049-0001 | C11: Intervenciones realizadas para la atención de la emergencia por Época Lluviosa, Temporada Ciclónica y Sistema de Baja Presión | D11: 203 | E11: 0 | F11: 50000000 | G11: 50000000 | H11: 0 | I11: 0 | J11: 0 | K11: 50000000 | L11: 50000000 | M11: 0 | N11: 203-000-049-0001
A12: 203-000-051-0001 | B12: 000-051-0001 | C12: Intervenciones realizadas para la atención de la emergencia provocada por los efectos de la época lluviosa y el Ciclón Tropical Julia | D12: 203 | E12: 0 | F12: 300000000 | G12: 300000000 | H12: 0 | I12: 0 | J12: 0 | K12: 300000000 | L12: 300000000 | M12: 0 | N12: 203-000-051-0001
A13: 203-017-001-0003 | B13: 017-001-0003 | C13: Red vial pavimentada con servicios de mantenimiento (fideicomiso) | D13: 203 | E13: 5240000 | F13: 0 | G13: 5240000 | H13: 0 | I13: 0 | J13: 0 | K13: 5240000 | L13: 5240000 | M13: 0 | N13: 203-017-001-0003
A14: 203-017-002-0001 | B14: 017-002-0001 | C14: Red vial pavimentada con mantenimiento (ejecución normal) | D14: 203 | E14: 793952274 | F14: -243739226 | G14: 550213048 | H14: 0 | I14: 57037015.33 | J14: 57037015.33 | K14: 493176032.7 | L14: 493176032.7 | M14: 10.36635091 | N14: 203-017-002-0001
A15: 203-017-003-0001 | B15: 017-003-0001 | C15: Dirección y coordinación | D15: 203 | E15: 27407860 | F15: 0 | G15: 27407860 | H15: 0 | I15: 372209.57 | J15: 372209.57 | K15: 27035650.43 | L15: 27035650.43 | M15: 1.358039519 | N15: 203-017-003-0001
A16: 203-017-006-0002 | B16: 017-006-0002 | C16: Red vial rural con servicios de mantenimiento (fideicomiso) | D16: 203 | E16: 5000000 | F16: 0 | G16: 5000000 | H16: 0 | I16: 0 | J16: 0 | K16: 5000000 | L16: 5000000 | M16: 0 | N16: 203-017-006-0002
A17: 203-017-007-0001 | B17: 017-007-0001 | C17: Red vial terciaria con mantenimiento (ejecución normal) | D17: 203 | E17: 550792866 | F17: -106260774 | G17: 444532092 | H17: 0 | I17: 37962984.11 | J17: 37962984.11 | K17: 406569107.9 | L17: 406569107.9 | M17: 8.539987279 | N17: 203-017-007-0001
A18: 204-018-005-0001 | B18: 018-005-0001 | C18: Dirección y coordinación | D18: 204 | E18: 12264729 | F18: -823882 | G18: 11440847 | H18: 0 | I18: 197901.98 | J18: 197901.98 | K18: 11232323.65 | L18: 11232323.65 | M18: 1.822621612 | N18: 204-018-005-0001
A19: 204-018-006-0001 | B19: 018-006-0001 | C19: Personas jurídicas o individuales con licencias otorgadas de transporte extraurbano de pasajeros por carretera | D19: 204 | E19: 1031212 | F19: -120386 | G19: 910826 | H19: 0 | I19: 239205.6 | J19: 239205.6 | K19: 671620.4 | L19: 671620.4 | M19: 26.26249141 | N19: 204-018-006-0001
A20: 204-018-006-0002 | B20: 018-006-0002 | C20: Personas jurídicas o individuales con permisos temporales otorgados para el transporte extraurbano de pasajeros por carretera | D20: 204 | E20: 183000 | F20: 0 | G20: 183000 | H20: 0 | I20: 0 | J20: 0 | K20: 183000 | L20: 183000 | M20: 0 | N20: 204-018-006-0002
A21: 204-018-006-0003 | B21: 018-006-0003 | C21: Personas jurídicas o individuales con licencias modificadas de transporte extraurbano de pasajeros por carretera | D21: 204 | E21: 728318 | F21: 879200 | G21: 1607518 | H21: 0 | I21: 6300 | J21: 6300 | K21: 1601218 | L21: 1601218 | M21: 0.3919085198 | N21: 204-018-006-0003
A22: 204-018-006-0004 | B22: 018-006-0004 | C22: Operativos de control fijo del servicio de transporte extraurbano | D22: 204 | E22: 369011 | F22: 0 | G22: 369011 | H22: 0 | I22: 52828.92 | J22: 52828.92 | K22: 316182.08 | L22: 316182.08 | M22: 14.31635371 | N22: 204-018-006-0004
A23: 204-018-006-0005 | B23: 018-006-0005 | C23: Personas jurídicas o individuales con permisos expresos para el transporte extraurbano de pasajeros por carretera | D23: 204 | E23: 350000 | F23: 65068 | G23: 415068 | H23: 0 | I23: 38816.8 | J23: 38816.8 | K23: 376251.2 | L23: 376251.2 | M23: 9.351913421 | N23: 204-018-006-0005
A24: 204-018-006-0007 | B24: 018-006-0007 | C24: Personas jurídicas o individuales con constancias de registro de pilotos para el transporte extraurbano de pasajeros por carretera | D24: 204 | E24: 25000 | F24: 0 | G24: 25000 | H24: 0 | I24: 0 | J24: 0 | K24: 25000 | L24: 25000 | M24: 0 | N24: 204-018-006-0007
A25: 205-000-005-0001 | B25: 000-005-0001 | C25: Personas jurídicas beneficiadas con aportes y/o cuotas para comunicaciones | D25: 205 | E25: 450000 | F25: 0 | G25: 450000 | H25: 0 | I25: 0 | J25: 0 | K25: 450000 | L25: 450000 | M25: 0 | N25: 205-000-005-0001
A26: 205-000-013-0001 | B26: 000-013-0001 | C26: Dirección y coordinación | D26: 205 | E26: 144895709 | F26: -35504447 | G26: 109391262 | H26: 0 | I26: 7513269.94 | J26: 7513269.94 | K26: 98538701.02 | L26: 98538701.02 | M26: 9.920866422 | N26: 205-000-013-0001
A27: 205-000-014-0001 | B27: 000-014-0001 | C27: Pasajeros que ingresan por medio de transporte aéreo con servicios de desembarque | D27: 205 | E27: 18478387 | F27: 6185 | G27: 18484572 | H27: 0 | I27: 0 | J27: 0 | K27: 18484572 | L27: 18484572 | M27: 0 | N27: 205-000-014-0001
A28: 205-000-014-0002 | B28: 000-014-0002 | C28: Pasajeros que egresan por medio de transporte aéreo con servicios de embarque | D28: 205 | E28: 54283348 | F28: 5673576 | G28: 59956924 | H28: 0 | I28: 879266.44 | J28: 879266.44 | K28: 58480432.37 | L28: 58480432.37 | M28: 2.462587357 | N28: 205-000-014-0002
A29: 205-000-014-0003 | B29: 000-014-0003 | C29: Carga embarcada para la exportación aérea | D29: 205 | E29: 591375 | F29: 0 | G29: 591375 | H29: 0 | I29: 0 | J29: 0 | K29: 591375 | L29: 591375 | M29: 0 | N29: 205-000-014-0003
A30: 205-000-014-0004 | B30: 000-014-0004 | C30: Carga desembarcada para la importación aérea | D30: 205 | E30: 264205 | F30: 0 | G30: 264205 | H30: 0 | I30: 0 | J30: 0 | K30: 264205 | L30: 264205 | M30: 0 | N30: 205-000-014-0004
A31: 205-000-014-0005 | B31: 000-014-0005 | C31: Aeronaves con inspección técnica | D31: 205 | E31: 206100 | F31: 0 | G31: 206100 | H31: 0 | I31: 0 | J31: 0 | K31: 206100 | L31: 206100 | M31: 0 | N31: 205-000-014-0005
A32: 205-000-014-0006 | B32: 000-014-0006 | C32: Aeronaves nacionales y extranjeras con certificado de matrícula autorizada y renovada | D32: 205 | E32: 250275 | F32: 0 | G32: 250275 | H32: 0 | I32: 0 | J32: 0 | K32: 250275 | L32: 250275 | M32: 0 | N32: 205-000-014-0006
A33: 205-000-014-0007 | B33: 000-014-0007 | C33: Aeronaves con servicios de pernocte en rampa internacional del aeropuerto | D33: 205 | E33: 179825 | F33: 0 | G33: 179825 | H33: 0 | I33: 0 | J33: 0 | K33: 179825 | L33: 179825 | M33: 0 | N33: 205-000-014-0007
A34: 205-000-016-0001 | B34: 000-016-0001 | C34: Aeronaves con servicios operativos de aviación y soporte técnico | D34: 205 | E34: 13660761 | F34: 0 | G34: 13660761 | H34: 0 | I34: 0 | J34: 0 | K34: 13660761 | L34: 13660761 | M34: 0 | N34: 205-000-016-0001
A35: 205-000-017-0001 | B35: 000-017-0001 | C35: Infraestructura de la red aeroportuaria nacional con servicios de mantenimiento | D35: 205 | E35: 16133540 | F35: 29824686 | G35: 45958226 | H35: 26351601.19 | I35: 302714.45 | J35: 302714.45 | K35: 45512744.47 | L35: 45512744.47 | M35: 0.9693183762 | N35: 205-000-017-0001
A36: 206-000-018-0001 | B36: 000-018-0001 | C36: Dirección y coordinación | D36: 206 | E36: 28177916 | F36: 203222 | G36: 28381138 | H36: 0 | I36: 310085.48 | J36: 310085.48 | K36: 27984122.97 | L36: 27984122.97 | M36: 1.398869312 | N36: 206-000-018-0001
A37: 206-000-018-0002 | B37: 000-018-0002 | C37: Población estudiantil beneficiada con equipo educacional | D37: 206 | E37: 5100000 | F37: 77000 | G37: 5177000 | H37: 0 | I37: 0 | J37: 0 | K37: 5177000 | L37: 5177000 | M37: 0 | N37: 206-000-018-0002
A38: 206-000-018-0003 | B38: 000-018-0003 | C38: Remozamiento de edificios públicos | D38: 206 | E38: 181478546 | F38: -68685067 | G38: 112793479 | H38: 0 | I38: 3412083.92 | J38: 3412083.92 | K38: 109381395.1 | L38: 109381395.1 | M38: 3.025071972 | N38: 206-000-018-0003
A39: 206-000-048-0002 | B39: 000-048-0002 | C39: Remozamiento de edificios públicos para la atención de daños provocados por depresiones tropicales | D39: 206 | E39: 0 | F39: 47685453 | G39: 47685453 | H39: 0 | I39: 10909559 | J39: 10909559 | K39: 36775894 | L39: 36775894 | M39: 22.87816999 | N39: 206-000-048-0002
A40: 206-000-049-0001 | B40: 000-049-0001 | C40: Intervenciones realizadas para la atención de la emergencia por Época Lluviosa, Temporada Ciclónica y Sistema de Baja Presión | D40: 206 | E40: 0 | F40: 7022508 | G40: 7022508 | H40: 0 | I40: 0 | J40: 0 | K40: 7022508 | L40: 7022508 | M40: 0 | N40: 206-000-049-0001
A41: 206-000-051-0001 | B41: 000-051-0001 | C41: Intervenciones realizadas para la atención de la emergencia provocada por los efectos de la época lluviosa y el Ciclón Tropical Julia | D41: 206 | E41: 0 | F41: 13696884 | G41: 13696884 | H41: 0 | I41: 572765 | J41: 572765 | K41: 13124119 | L41: 13124119 | M41: 4.181717535 | N41: 206-000-051-0001
A42: 207-000-019-0001 | B42: 000-019-0001 | C42: Dirección y coordinación | D42: 207 | E42: 8687812 | F42: -248750 | G42: 8439062 | H42: 0 | I42: 80128.27 | J42: 180628.27 | K42: 7755300.2 | L42: 8064800.2 | M42: 4.434874397 | N42: 207-000-019-0001
A43: 207-000-020-0003 | B43: 000-020-0003 | C43: Comerciales registrados de personas jurídicas o individuales | D43: 207 | E43: 2055172 | F43: 630 | G43: 2055802 | H43: 0 | I43: 0 | J43: 0 | K43: 2055802 | L43: 2055802 | M43: 0 | N43: 207-000-020-0003
A44: 207-000-020-0004 | B44: 000-020-0004 | C44: Técnicos con registro en radio y/o televisión | D44: 207 | E44: 45000 | F44: 0 | G44: 45000 | H44: 0 | I44: 11990 | J44: 11990 | K44: 33010 | L44: 33010 | M44: 26.64444444 | N44: 207-000-020-0004
A45: 207-000-020-0005 | B45: 000-020-0005 | C45: Locutores registrados en radio y/o televisión | D45: 207 | E45: 50000 | F45: 0 | G45: 50000 | H45: 0 | I45: 0 | J45: 0 | K45: 50000 | L45: 50000 | M45: 0 | N45: 207-000-020-0005
A46: 207-000-021-0001 | B46: 000-021-0001 | C46: Programas radiales a control remoto difundidos | D46: 207 | E46: 129476 | F46: 0 | G46: 129476 | H46: 0 | I46: 0 | J46: 0 | K46: 129476 | L46: 129476 | M46: 0 | N46: 207-000-021-0001
A47: 207-000-021-0002 | B47: 000-021-0002 | C47: Programas radiales difundidos | D47: 207 | E47: 1386359 | F47: -44700 | G47: 1341659 | H47: 0 | I47: 463321.47 | J47: 463321.47 | K47: 768043.99 | L47: 768043.99 | M47: 42.7541581 | N47: 207-000-021-0002
A48: 207-000-021-0003 | B48: 000-021-0003 | C48: Spot gubernamentales otorgados a entidades públicas | D48: 207 | E48: 3192171 | F48: 292820 | G48: 3484991 | H48: 0 | I48: 171443.1 | J48: 171443.1 | K48: 3198032.4 | L48: 3198032.4 | M48: 8.234127434 | N48: 207-000-021-0003
A49: 208-000-024-0001 | B49: 000-024-0001 | C49: Dirección y coordinación | D49: 208 | E49: 8433472 | F49: 0 | G49: 8433472 | H49: 0 | I49: 35842.12 | J49: 35842.12 | K49: 8383789.17 | L49: 8383789.17 | M49: 0.5891147798 | N49: 208-000-024-0001
A50: 208-000-025-0001 | B50: 000-025-0001 | C50: Empresas de cable con visitas de supervisión | D50: 208 | E50: 808467 | F50: 0 | G50: 808467 | H50: 0 | I50: 20689.96 | J50: 20689.96 | K50: 787777.04 | L50: 787777.04 | M50: 2.559159496 | N50: 208-000-025-0001
A51: 208-000-025-0002 | B51: 000-025-0002 | C51: Empresas de cable nuevas con registro | D51: 208 | E51: 568018 | F51: 0 | G51: 568018 | H51: 0 | I51: 0 | J51: 0 | K51: 568018 | L51: 568018 | M51: 0 | N51: 208-000-025-0002
A52: 208-000-025-0005 | B52: 000-025-0005 | C52: Empresas sancionadas por incumplimiento a la ley del cable | D52: 208 | E52: 474910 | F52: 0 | G52: 474910 | H52: 0 | I52: 0 | J52: 0 | K52: 474910 | L52: 474910 | M52: 0 | N52: 208-000-025-0005
A53: 209-000-005-0001 | B53: 000-005-0001 | C53: Personas jurídicas beneficiadas con aportes y/o cuotas para comunicaciones | D53: 209 | E53: 168000 | F53: 0 | G53: 168000 | H53: 0 | I53: 0 | J53: 0 | K53: 168000 | L53: 168000 | M53: 0 | N53: 209-000-005-0001
A54: 209-000-006-0001 | B54: 000-006-0001 | C54: Personas jurídicas beneficiadas con aportes y/o cuotas para control del medio ambiente | D54: 209 | E54: 208000 | F54: 0 | G54: 208000 | H54: 0 | I54: 85996.9 | J54: 85996.9 | K54: 122003.1 | L54: 122003.1 | M54: 41.34466346 | N54: 209-000-006-0001
A55: 209-020-006-0001 | B55: 020-006-0001 | C55: Dirección y coordinación | D55: 209 | E55: 15193176 | F55: 219328 | G55: 15412504 | H55: 0 | I55: 211016.64 | J55: 211016.64 | K55: 15101350.02 | L55: 15101350.02 | M55: 2.018841195 | N55: 209-020-006-0001
A56: 209-020-007-0001 | B56: 020-007-0001 | C56: Usuarios atendidos con información climática | D56: 209 | E56: 14190894 | F56: -194328 | G56: 13996566 | H56: 0 | I56: 27356.21 | J56: 27356.21 | K56: 13963541.4 | L56: 13963541.4 | M56: 0.2359478746 | N56: 209-020-007-0001
A57: 209-020-007-0002 | B57: 020-007-0002 | C57: Boletines emitidos con información meteorológica | D57: 209 | E57: 710966 | F57: -25000 | G57: 685966 | H57: 0 | I57: 11260.37 | J57: 11260.37 | K57: 674235.31 | L57: 674235.31 | M57: 1.710097877 | N57: 209-020-007-0002
A58: 209-020-008-0001 | B58: 020-008-0001 | C58: Boletines emitidos con información geológica | D58: 209 | E58: 3746500 | F58: 0 | G58: 3746500 | H58: 0 | I58: 6322 | J58: 6322 | K58: 3740178 | L58: 3740178 | M58: 0.1687441612 | N58: 209-020-008-0001
A59: 209-020-008-0002 | B59: 020-008-0002 | C59: Informes emitidos sobre deslizamiento de tierra | D59: 209 | E59: 1172097 | F59: 0 | G59: 1172097 | H59: 0 | I59: 0 | J59: 0 | K59: 1172097 | L59: 1172097 | M59: 0 | N59: 209-020-008-0002
A60: 209-020-009-0001 | B60: 020-009-0001 | C60: Boletines con información hidrológica | D60: 209 | E60: 5748425 | F60: 0 | G60: 5748425 | H60: 0 | I60: 4590.53 | J60: 4590.53 | K60: 5743176.01 | L60: 5743176.01 | M60: 0.0913117941 | N60: 209-020-009-0001
A61: 209-020-009-0002 | B61: 020-009-0002 | C61: Publicaciones anuales con información consolidada de efemérides solar, pronóstico de mareas, estudios de calidad de agua y de cuencas | D61: 209 | E61: 8542513 | F61: 0 | G61: 8542513 | H61: 0 | I61: 171351 | J61: 171351 | K61: 8371162 | L61: 8371162 | M61: 2.005861741 | N61: 209-020-009-0002
A62: 209-020-009-0003 | B62: 020-009-0003 | C62: Boletines emitidos con información del índice de calidad del aire | D62: 209 | E62: 402266 | F62: 0 | G62: 402266 | H62: 0 | I62: 1570.14 | J62: 1570.14 | K62: 399225.14 | L62: 399225.14 | M62: 0.7559326416 | N62: 209-020-009-0003
A63: 210-000-005-0001 | B63: 000-005-0001 | C63: Personas jurídicas beneficiadas con aportes y/o cuotas para comunicaciones | D63: 210 | E63: 615180 | F63: 45000 | G63: 660180 | H63: 0 | I63: 0 | J63: 0 | K63: 660180 | L63: 660180 | M63: 0 | N63: 210-000-005-0001
A64: 210-000-029-0001 | B64: 000-029-0001 | C64: Dirección y coordinación | D64: 210 | E64: 16300622 | F64: -45000 | G64: 16255622 | H64: 0 | I64: 456624.44 | J64: 456624.44 | K64: 15741921.02 | L64: 15741921.02 | M64: 3.160143488 | N64: 210-000-029-0001
A65: 210-000-030-0001 | B65: 000-030-0001 | C65: Personas individuales y/o jurídicas con servicios postales otorgados | D65: 210 | E65: 12442858 | F65: 0 | G65: 12442858 | H65: 0 | I65: 58324 | J65: 58324 | K65: 12337797.57 | L65: 12337797.57 | M65: 0.8443432369 | N65: 210-000-030-0001
A66: 211-000-005-0001 | B66: 000-005-0001 | C66: Personas jurídicas beneficiadas con aportes y/o cuotas para comunicaciones | D66: 211 | E66: 900000 | F66: 0 | G66: 900000 | H66: 0 | I66: 895439.26 | J66: 895439.26 | K66: 4560.74 | L66: 4560.74 | M66: 99.49325111 | N66: 211-000-005-0001
A67: 211-022-007-0001 | B67: 022-007-0001 | C67: Dirección y coordinación | D67: 211 | E67: 18250293 | F67: 0 | G67: 18250293 | H67: 0 | I67: 161217.39 | J67: 239217.39 | K67: 17650623.99 | L67: 17938623.99 | M67: 1.70774798 | N67: 211-022-007-0001
A68: 211-022-008-0001 | B68: 022-008-0001 | C68: Títulos de usufructo emitidos para personas individuales y/o jurídicas | D68: 211 | E68: 1848739 | F68: 0 | G68: 1848739 | H68: 0 | I68: 0 | J68: 0 | K68: 1848739 | L68: 1848739 | M68: 0 | N68: 211-022-008-0001
A69: 211-022-008-0002 | B69: 022-008-0002 | C69: Licencias emitidas a proveedores satelitales | D69: 211 | E69: 14245 | F69: 0 | G69: 14245 | H69: 0 | I69: 0 | J69: 0 | K69: 14245 | L69: 14245 | M69: 0 | N69: 211-022-008-0002
A70: 211-022-008-0003 | B70: 022-008-0003 | C70: Licencias emitidas a usuarios satelitales | D70: 211 | E70: 36627 | F70: 0 | G70: 36627 | H70: 0 | I70: 0 | J70: 0 | K70: 36627 | L70: 36627 | M70: 0 | N70: 211-022-008-0003
A71: 211-022-008-0004 | B71: 022-008-0004 | C71: Monitoreo al espectro radioeléctrico | D71: 211 | E71: 20175 | F71: 0 | G71: 20175 | H71: 0 | I71: 0 | J71: 0 | K71: 20175 | L71: 20175 | M71: 0 | N71: 211-022-008-0004
A72: 211-022-009-0001 | B72: 022-009-0001 | C72: Operadores de telefonía registrados | D72: 211 | E72: 1933072 | F72: 0 | G72: 1933072 | H72: 0 | I72: 0 | J72: 0 | K72: 1933072 | L72: 1933072 | M72: 0 | N72: 211-022-009-0001
A73: 211-022-009-0002 | B73: 022-009-0002 | C73: Numeración asignada a personas jurídicas y /o individuales | D73: 211 | E73: 3533 | F73: 0 | G73: 3533 | H73: 0 | I73: 0 | J73: 0 | K73: 3533 | L73: 3533 | M73: 0 | N73: 211-022-009-0002
A74: 211-022-009-0003 | B74: 022-009-0003 | C74: Puntos de señalización asignados a personas jurídicas y/o individuales | D74: 211 | E74: 11392 | F74: 0 | G74: 11392 | H74: 0 | I74: 0 | J74: 0 | K74: 11392 | L74: 11392 | M74: 0 | N74: 211-022-009-0003
A75: 211-022-009-0004 | B75: 022-009-0004 | C75: Constancias de inscripción de usuarios jurídicos y/o individuales de telecomunicaciones móviles | D75: 211 | E75: 3015 | F75: 0 | G75: 3015 | H75: 0 | I75: 0 | J75: 0 | K75: 3015 | L75: 3015 | M75: 0 | N75: 211-022-009-0004
A76: 212-000-010-0001 | B76: 000-010-0001 | C76: Dirección y coordinación | D76: 212 | E76: 5076663 | F76: 275097 | G76: 5351760 | H76: 0 | I76: 126130.94 | J76: 174630.94 | K76: 4957229.06 | L76: 5106229.06 | M76: 4.587854089 | N76: 212-000-010-0001
A77: 212-000-015-0001 | B77: 000-015-0001 | C77: Personas beneficiadas con proyectos, supervisión de telefonía y conectividad subsidiados | D77: 212 | E77: 2145715 | F77: -275097 | G77: 1870618 | H77: 0 | I77: 45592 | J77: 40092 | K77: 1774526 | L77: 1820526 | M77: 2.677831604 | N77: 212-000-015-0001
A78: 214-000-022-0001 | B78: 000-022-0001 | C78: Dirección y coordinación | D78: 214 | E78: 10935606 | F78: 0 | G78: 10935606 | H78: 0 | I78: 884468.76 | J78: 753468.76 | K78: 8922603.21 | L78: 9918603.21 | M78: 9.29992165 | N78: 214-000-022-0001
A79: 214-000-023-0001 | B79: 000-023-0001 | C79: Familias beneficiadas con adjudicación de propiedad de vivienda | D79: 214 | E79: 86456 | F79: 0 | G79: 86456 | H79: 0 | I79: 0 | J79: 0 | K79: 86456 | L79: 86456 | M79: 0 | N79: 214-000-023-0001
A80: 214-000-023-0002 | B80: 000-023-0002 | C80: Recuperación de la cartera crediticia | D80: 214 | E80: 3505 | F80: 0 | G80: 3505 | H80: 0 | I80: 0 | J80: 0 | K80: 3505 | L80: 3505 | M80: 0 | N80: 214-000-023-0002
A81: 216-021-001-0001 | B81: 021-001-0001 | C81: Dirección y coordinación | D81: 216 | E81: 19713706 | F81: 0 | G81: 19713706 | H81: 0 | I81: 250691.89 | J81: 250691.89 | K81: 19373287.46 | L81: 19373287.46 | M81: 1.726811488 | N81: 216-021-001-0001
A82: 216-021-002-0001 | B82: 021-002-0001 | C82: Personas capacitadas en el programa de educación y seguridad vial | D82: 216 | E82: 23000 | F82: 0 | G82: 23000 | H82: 0 | I82: 4800 | J82: 0 | K82: 18200 | L82: 23000 | M82: 0 | N82: 216-021-002-0001
A83: 216-021-002-0002 | B83: 021-002-0002 | C83: Elementos formados como brigadas de protección y seguridad vial en carretera | D83: 216 | E83: 320400 | F83: 0 | G83: 320400 | H83: 0 | I83: 0 | J83: 0 | K83: 320400 | L83: 320400 | M83: 0 | N83: 216-021-002-0002
A84: 216-021-002-0003 | B84: 021-002-0003 | C84: Conductores atendidos con servicios de seguridad y asistencia vial en carretera | D84: 216 | E84: 639450 | F84: 0 | G84: 639450 | H84: 0 | I84: 46684.94 | J84: 46684.94 | K84: 592765.06 | L84: 592765.06 | M84: 7.300795997 | N84: 216-021-002-0003
A85: 216-021-002-0004 | B85: 021-002-0004 | C85: Servicios de regulación para beneficio de conductores que transitan en carretera | D85: 216 | E85: 25743932 | F85: 0 | G85: 25743932 | H85: 0 | I85: 0 | J85: 0 | K85: 25743932 | L85: 25743932 | M85: 0 | N85: 216-021-002-0004
A86: 216-021-002-0005 | B86: 021-002-0005 | C86: Personas atendidas telefónicamente por medio del sistema 1520 (emergencia vial) | D86: 216 | E86: 60000 | F86: 0 | G86: 60000 | H86: 0 | I86: 0 | J86: 0 | K86: 60000 | L86: 60000 | M86: 0 | N86: 216-021-002-0005
A87: 216-021-002-0006 | B87: 021-002-0006 | C87: Boleta de llamada de atención a conductores infractores | D87: 216 | E87: 2714475 | F87: 0 | G87: 2714475 | H87: 0 | I87: 136656.42 | J87: 136656.42 | K87: 2577818.58 | L87: 2577818.58 | M87: 5.03435913 | N87: 216-021-002-0006
A88: 216-021-002-0007 | B88: 021-002-0007 | C88: Investigaciones realizadas de accidentes de tránsito en carreteras | D88: 216 | E88: 67874 | F88: 0 | G88: 67874 | H88: 0 | I88: 0 | J88: 0 | K88: 67874 | L88: 67874 | M88: 0 | N88: 216-021-002-0007
A89: 217-000-022-0001 | B89: 000-022-0001 | C89: Dirección y coordinación | D89: 217 | E89: 50492933 | F89: 0 | G89: 50492933 | H89: 0 | I89: 453062.63 | J89: 453062.63 | K89: 49777627.88 | L89: 49777627.88 | M89: 1.416644028 | N89: 217-000-022-0001
A90: 217-017-005-0001 | B90: 017-005-0001 | C90: Red vial con servicios de mantenimiento | D90: 217 | E90: 15037645 | F90: -6357760 | G90: 8679885 | H90: 0 | I90: 0 | J90: 0 | K90: 8679885 | L90: 8679885 | M90: 0 | N90: 217-017-005-0001
A91: 217-017-005-0002 | B91: 017-005-0002 | C91: Dirección y coordinación (convoyes) | D91: 217 | E91: 8076000 | F91: 6357760 | G91: 14433760 | H91: 1625014 | I91: 0 | J91: 0 | K91: 14433760 | L91: 14433760 | M91: 0 | N91: 217-017-005-0002
A92: 218-019-001-0001 | B92: 019-001-0001 | C92: Dirección y coordinación | D92: 218 | E92: 50000000 | F92: 0 | G92: 50000000 | H92: 592950 | I92: -1391183.73 | J92: 424816.27 | K92: 49144302.2 | L92: 49208302.2 | M92: 1.5833956 | N92: 218-019-001-0001
A93: 218-019-002-0001 | B93: 019-002-0001 | C93: Familias con subsidio para adquisición de lote con servicios básicos | D93: 218 | E93: 12600000 | F93: 0 | G93: 12600000 | H93: 0 | I93: 0 | J93: 0 | K93: 12600000 | L93: 12600000 | M93: 0 | N93: 218-019-002-0001
A94: 218-019-002-0002 | B94: 019-002-0002 | C94: Familias con subsidio para adquisición de lote con vivienda | D94: 218 | E94: 15050000 | F94: -1745500 | G94: 13304500 | H94: 0 | I94: 0 | J94: 0 | K94: 13304500 | L94: 13304500 | M94: 0 | N94: 218-019-002-0002
A95: 218-019-002-0003 | B95: 019-002-0003 | C95: Familias con subsidio para la adquisición de módulo habitacional en propiedad horizontal | D95: 218 | E95: 9254000 | F95: -6804000 | G95: 2450000 | H95: 0 | I95: 0 | J95: 0 | K95: 2450000 | L95: 2450000 | M95: 0 | N95: 218-019-002-0003
A96: 218-019-002-0004 | B96: 019-002-0004 | C96: Familias con subsidio para el mejoramiento, ampliación y reparación de vivienda | D96: 218 | E96: 49546000 | F96: -4962500 | G96: 44583500 | H96: 0 | I96: 0 | J96: 0 | K96: 44583500 | L96: 44583500 | M96: 0 | N96: 218-019-002-0004
A97: 218-019-002-0006 | B97: 019-002-0006 | C97: Familias con subsidio para construcción de vivienda | D97: 218 | E97: 524216000 | F97: 13512000 | G97: 537728000 | H97: 0 | I97: 0 | J97: 0 | K97: 535572000 | L97: 535572000 | M97: 0.4009462033 | N97: 218-019-002-0006
A98: - | N98: -
A99: - | N99: -
A100: - | N100: -
A101: - | N101: -
A102: - | N102: -
A103: - | N103: -
A104: - | N104: -
A105: - | N105: -
A106: - | N106: -
A107: - | N107: -
A108: - | N108: -
A109: - | N109: -
A110: - | N110: -
A111: - | N111: -
A112: - | N112: -
A113: - | N113: -
A114: - | N114: -
A115: - | N115: -
A116: - | N116: -
A117: - | N117: -
A118: - | N118: -
A119: - | N119: -
A120: - | N120: -
A121: - | N121: -
A122: - | N122: -
A123: - | N123: -
A124: - | N124: -
A125: - | N125: -
A126: - | N126: -
A127: - | N127: -
A128: - | N128: -
A129: - | N129: -
A130: - | N130: -
A131: - | N131: -
A132: - | N132: -
A133: - | N133: -
A134: - | N134: -
A135: - | N135: -
A136: - | N136: -
A137: - | N137: -
A138: - | N138: -
A139: - | N139: -
A140: - | N140: -
A141: - | N141: -
A142: - | N142: -
A143: - | N143: -
A144: - | N144: -
A145: - | N145: -
A146: - | N146: -
A147: - | N147: -
A148: - | N148: -
A149: - | N149: -
A150: - | N150: -
A151: - | N151: -
A152: - | N152: -
A153: - | N153: -
A154: - | N154: -
A155: - | N155: -
A156: - | N156: -
A157: - | N157: -
A158: - | N158: -
A159: - | N159: -
A160: - | N160: -
A161: - | N161: -
A162: - | N162: -
A163: - | N163: -
A164: - | N164: -
A165: - | N165: -
A166: - | N166: -
A167: - | N167: -
A168: - | N168: -
A169: - | N169: -
A170: - | N170: -
A171: - | N171: -
A172: - | N172: -
A173: - | N173: -
A174: - | N174: -
A175: - | N175: -
A176: - | N176: -
A177: - | N177: -
A178: - | N178: -
A179: - | N179: -
A180: - | N180: -
A181: - | N181: -
A182: - | N182: -
A183: - | N183: -
A184: - | N184: -
A185: - | N185: -
A186: - | N186: -
A187: - | N187: -
A188: - | N188: -
A189: - | N189: -
A190: - | N190: -
A191: - | N191: -
A192: - | N192: -
A193: - | N193: -
A194: - | N194: -
A195: - | N195: -
A196: - | N196: -
A197: - | N197: -
A198: - | N198: -
A199: - | N199: -
A200: - | N200: -
... 220 more rows

Sheet MARMT (hidden)
A1: CONCATENADO | B1: PRODUCTO | C1: UNIDAD | D1: DESCRIPCION | E1: PG | F1: SP | G1: PY | H1: ACT | I1: OB | J1: UNIDAD DE MEDIDA | K1: INICIAL | L1: MODIFICADO | M1: VIGENTE | N1: PROGRAMADO | O1: EJECUTADO

Sheet MARFN (hidden)
A1: CONCATENADO | B1: PRODUCTO | C1: DESCRIPCION | D1: UNIDAD | E1: ASIGNADO | F1: MODIFICADO | G1: VIGENTE | H1: PRECOMPROMISO | I1: COMPROMETIDO | J1: DEVENGADO | K1: SALDO POR COMPROMETER | L1: SALDO POR DEVENGAR | M1: % EJEC | N1: Columna1

Sheet ABRMT (hidden)
A1: CONCATENADO | B1: PRODUCTO | C1: UNIDAD | D1: DESCRIPCION | E1: PG | F1: SP | G1: PY | H1: ACT | I1: OB | J1: UNIDAD DE MEDIDA | K1: INICIAL | L1: MODIFICADO | M1: VIGENTE | N1: PROGRAMADO | O1: EJECUTADO

Sheet ABRFN (hidden)
A1: CONCATENADO | B1: PRODUCTO | C1: DESCRIPCION | D1: UNIDAD | E1: ASIGNADO | F1: MODIFICADO | G1: VIGENTE | H1: PRECOMPROMISO | I1: COMPROMETIDO | J1: DEVENGADO | K1: SALDO POR COMPROMETER | L1: SALDO POR DEVENGAR | M1: % EJEC | N1: Columna1

Sheet MAYMT (hidden)
A1: CONCATENADO | B1: PRODUCTO | C1: UNIDAD | D1: DESCRIPCION | E1: PG | F1: SP | G1: PY | H1: ACT | I1: OB | J1: UNIDAD DE MEDIDA | K1: INICIAL | L1: MODIFICADO | M1: VIGENTE | N1: PROGRAMADO | O1: EJECUTADO

Sheet MAYFN (hidden)
A1: CONCATENADO | B1: PRODUCTO | C1: DESCRIPCION | D1: UNIDAD | E1: ASIGNADO | F1: MODIFICADO | G1: VIGENTE | H1: PRECOMPROMISO | I1: COMPROMETIDO | J1: DEVENGADO | K1: SALDO POR COMPROMETER | L1: SALDO POR DEVENGAR | M1: % EJEC | N1: Columna1

Sheet JUNFN (hidden)
A1: CONCATENADO | B1: PRODUCTO | C1: DESCRIPCION | D1: UNIDAD | E1: ASIGNADO | F1: MODIFICADO | G1: VIGENTE | H1: PRECOMPROMISO | I1: COMPROMETIDO | J1: DEVENGADO | K1: SALDO POR COMPROMETER | L1: SALDO POR DEVENGAR | M1: % EJEC | N1: Columna1

Sheet JUNMT (hidden)
A1: CONCATENADO | B1: PRODUCTO | C1: UNIDAD | D1: DESCRIPCION | E1: PG | F1: SP | G1: PY | H1: ACT | I1: OB | J1: UNIDAD DE MEDIDA | K1: INICIAL | L1: MODIFICADO | M1: VIGENTE | N1: PROGRAMADO | O1: EJECUTADO

Sheet JULMT (hidden)
A1: CONCATENADO | B1: PRODUCTO | C1: UNIDAD | D1: DESCRIPCION | E1: PG | F1: SP | G1: PY | H1: ACT | I1: OB | J1: UNIDAD DE MEDIDA | K1: INICIAL | L1: MODIFICADO | M1: VIGENTE | N1: PROGRAMADO | O1: EJECUTADO

Sheet JULFN (hidden)
A1: CONCATENADO | B1: PRODUCTO | C1: DESCRIPCION | D1: UNIDAD | E1: ASIGNADO | F1: MODIFICADO | G1: VIGENTE | H1: PRECOMPROMISO | I1: COMPROMETIDO | J1: DEVENGADO | K1: SALDO POR COMPROMETER | L1: SALDO POR DEVENGAR | M1: % EJEC | N1: Columna1

Sheet AGOMT (hidden)
A1: CONCATENADO | B1: PRODUCTO | C1: UNIDAD | D1: DESCRIPCION | E1: PG | F1: SP | G1: PY | H1: ACT | I1: OB | J1: UNIDAD DE MEDIDA | K1: INICIAL | L1: MODIFICADO | M1: VIGENTE | N1: PROGRAMADO | O1: EJECUTADO

Sheet AGOFN (hidden)
A1: CONCATENADO | B1: PRODUCTO | C1: DESCRIPCION | D1: UNIDAD | E1: ASIGNADO | F1: MODIFICADO | G1: VIGENTE | H1: PRECOMPROMISO | I1: COMPROMETIDO | J1: DEVENGADO | K1: SALDO POR COMPROMETER | L1: SALDO POR DEVENGAR | M1: % EJEC | N1: Columna1

Sheet SEPMT (hidden)
A1: CONCATENADO | B1: PRODUCTO | C1: UNIDAD | D1: DESCRIPCION | E1: PG | F1: SP | G1: PY | H1: ACT | I1: OB | J1: UNIDAD DE MEDIDA | K1: INICIAL | L1: MODIFICADO | M1: VIGENTE | N1: PROGRAMADO | O1: EJECUTADO

Sheet SEPFN (hidden)
A1: CONCATENADO | B1: PRODUCTO | C1: DESCRIPCION | D1: UNIDAD | E1: ASIGNADO | F1: MODIFICADO | G1: VIGENTE | H1: PRECOMPROMISO | I1: COMPROMETIDO | J1: DEVENGADO | K1: SALDO POR COMPROMETER | L1: SALDO POR DEVENGAR | M1: % EJEC | N1: Columna1

Sheet OCTMT (hidden)
A1: CONCATENADO | B1: PRODUCTO | C1: UNIDAD | D1: DESCRIPCION | E1: PG | F1: SP | G1: PY | H1: ACT | I1: OB | J1: UNIDAD DE MEDIDA | K1: INICIAL | L1: MODIFICADO | M1: VIGENTE | N1: PROGRAMADO | O1: EJECUTADO

Sheet OCTFN (hidden)
A1: CONCATENADO | B1: PRODUCTO | C1: DESCRIPCION | D1: UNIDAD | E1: ASIGNADO | F1: MODIFICADO | G1: VIGENTE | H1: PRECOMPROMISO | I1: COMPROMETIDO | J1: DEVENGADO | K1: SALDO POR COMPROMETER | L1: SALDO POR DEVENGAR | M1: % EJEC | N1: Columna1

Sheet NOVMT (hidden)
A1: CONCATENADO | B1: PRODUCTO | C1: UNIDAD | D1: DESCRIPCION | E1: PG | F1: SP | G1: PY | H1: ACT | I1: OB | J1: UNIDAD DE MEDIDA | K1: INICIAL | L1: MODIFICADO | M1: VIGENTE | N1: PROGRAMADO | O1: EJECUTADO

Sheet NOVFN (hidden)
A1: CONCATENADO | B1: PRODUCTO | C1: DESCRIPCION | D1: UNIDAD | E1: ASIGNADO | F1: MODIFICADO | G1: VIGENTE | H1: PRECOMPROMISO | I1: COMPROMETIDO | J1: DEVENGADO | K1: SALDO POR COMPROMETER | L1: SALDO POR DEVENGAR | M1: % EJEC | N1: Columna1

Sheet DICMT (hidden)
A1: CONCATENADO | B1: PRODUCTO | C1: UNIDAD | D1: DESCRIPCION | E1: PG | F1: SP | G1: PY | H1: ACT | I1: OB | J1: UNIDAD DE MEDIDA | K1: INICIAL | L1: MODIFICADO | M1: VIGENTE | N1: PROGRAMADO | O1: EJECUTADO

Sheet DICFN (hidden)
A1: CONCATENADO | B1: PRODUCTO | C1: DESCRIPCION | D1: UNIDAD | E1: ASIGNADO | F1: MODIFICADO | G1: VIGENTE | H1: PRECOMPROMISO | I1: COMPROMETIDO | J1: DEVENGADO | K1: SALDO POR COMPROMETER | L1: SALDO POR DEVENGAR | M1: % EJEC | N1: Columna1
